Trans No.,Service Area Categorisation,Service Division Categorisation,Responsible Unit,Unit Code,Expenses Type,Expenses Sub Type,Expense Code,Narrative,Amount,Invoice Date,CAP/REV,SupplierName
1,Childrens & Education Services,Leaving Care Services,CL Setting Up Home Allowance,W1DF41,Third Party Payments          ,Private Contractors           ,EH01,Miscellaneous Agency Services           ,3795.00,21/04/2015,REV,CARE O LINE                   
2,Childrens & Education Services,Leaving Care Services,CL Setting Up Home Allowance,W1DF41,Third Party Payments          ,Private Contractors           ,EH01,Miscellaneous Agency Services           ,792.00,21/05/2015,REV,SOUTH WEST LONDON LAW CENTRES 
3,Childrens & Education Services,Leaving Care Services,CL Setting Up Home Allowance,W1DF41,Third Party Payments          ,Private Contractors           ,EH01,Miscellaneous Agency Services           ,889.06,16/06/2015,REV,WRIXON CARE SERVICES          
4,Adult Social Care,LD u65 Residentl Care Placemnt,LD Residential Care External,W2KB55,Third Party Payments          ,Private Contractors           ,EH01,Miscellaneous Agency Services           ,617.90,01/06/2015,REV,CANTERBURY OAST TRUST LTD     
5,Adult Social Care,LD u65 Residentl Care Placemnt,LD Residential Care External,W2KB55,Third Party Payments          ,Private Contractors           ,EH01,Miscellaneous Agency Services           ,617.90,01/06/2015,REV,CANTERBURY OAST TRUST LTD     
6,Adult Social Care,LD u65 Residentl Care Placemnt,LD Residential Care External,W2KB55,Third Party Payments          ,Private Contractors           ,EH01,Miscellaneous Agency Services           ,617.90,01/06/2015,REV,CANTERBURY OAST TRUST LTD     
7,Adult Social Care,LD u65 Residentl Care Placemnt,LD Residential Care External,W2KB55,Third Party Payments          ,Private Contractors           ,EH01,Miscellaneous Agency Services           ,745.00,01/06/2015,REV,CANTERBURY OAST TRUST LTD     
8,Adult Social Care,LD u65 Residentl Care Placemnt,LD Residential Care External,W2KB55,Third Party Payments          ,Private Contractors           ,EH01,Miscellaneous Agency Services           ,2793.50,15/06/2015,REV,CONSENSUS - WALLACE CRESCENT  
9,Adult Social Care,LD u65 Residentl Care Placemnt,LD Residential Care External,W2KB55,Third Party Payments          ,Private Contractors           ,EH01,Miscellaneous Agency Services           ,-1775.00,15/06/2015,REV,CONSENSUS - WALLACE CRESCENT  
10,Adult Social Care,LD u65 Residentl Care Placemnt,LD Residential Care External,W2KB55,Third Party Payments          ,Private Contractors           ,EH01,Miscellaneous Agency Services           ,2793.50,15/06/2015,REV,CONSENSUS - WALLACE CRESCENT  
11,Adult Social Care,LD u65 Residentl Care Placemnt,LD Residential Care External,W2KB55,Third Party Payments          ,Private Contractors           ,EH01,Miscellaneous Agency Services           ,-1775.00,15/06/2015,REV,CONSENSUS - WALLACE CRESCENT  
12,Adult Social Care,LD u65 Residentl Care Placemnt,LD Residential Care External,W2KB55,Third Party Payments          ,Private Contractors           ,EH01,Miscellaneous Agency Services           ,1201.03,23/06/2015,REV,FIDDLERS GREEN                
13,Adult Social Care,LD u65 Residentl Care Placemnt,LD Residential Care External,W2KB55,Third Party Payments          ,Private Contractors           ,EH01,Miscellaneous Agency Services           ,1201.03,23/06/2015,REV,FIDDLERS GREEN                
14,Adult Social Care,LD u65 Residentl Care Placemnt,LD Residential Care External,W2KB55,Third Party Payments          ,Private Contractors           ,EH01,Miscellaneous Agency Services           ,1201.03,23/06/2015,REV,FIDDLERS GREEN                
15,Adult Social Care,LD u65 Residentl Care Placemnt,LD Residential Care External,W2KB55,Third Party Payments          ,Private Contractors           ,EH01,Miscellaneous Agency Services           ,1201.03,23/06/2015,REV,FIDDLERS GREEN                
16,Adult Social Care,LD u65 Residentl Care Placemnt,LD Residential Care External,W2KB55,Third Party Payments          ,Private Contractors           ,EH01,Miscellaneous Agency Services           ,-849.73,01/06/2015,REV,THE FRANCES TAYLOR FOUNDATION 
17,Adult Social Care,LD u65 Residentl Care Placemnt,LD Residential Care External,W2KB55,Third Party Payments          ,Private Contractors           ,EH01,Miscellaneous Agency Services           ,521.91,12/07/2015,REV,LINKAGE COMMUNITY TR.LONG-STAY
18,Adult Social Care,LD u65 Residentl Care Placemnt,LD Residential Care External,W2KB55,Third Party Payments          ,Private Contractors           ,EH01,Miscellaneous Agency Services           ,521.91,12/07/2015,REV,LINKAGE COMMUNITY TR.LONG-STAY
19,Adult Social Care,LD u65 Residentl Care Placemnt,LD Residential Care External,W2KB55,Third Party Payments          ,Private Contractors           ,EH01,Miscellaneous Agency Services           ,521.91,12/07/2015,REV,LINKAGE COMMUNITY TR.LONG-STAY
20,Adult Social Care,LD u65 Residentl Care Placemnt,LD Residential Care External,W2KB55,Third Party Payments          ,Private Contractors           ,EH01,Miscellaneous Agency Services           ,521.91,12/07/2015,REV,LINKAGE COMMUNITY TR.LONG-STAY
21,Adult Social Care,LD u65 Residentl Care Placemnt,LD Residential Care External,W2KB55,Third Party Payments          ,Private Contractors           ,EH01,Miscellaneous Agency Services           ,2700.00,01/06/2015,REV,REAMCARE LTD                  
22,Adult Social Care,LD u65 Residentl Care Placemnt,LD Residential Care External,W2KB55,Third Party Payments          ,Private Contractors           ,EH01,Miscellaneous Agency Services           ,2700.00,01/06/2015,REV,REAMCARE LTD                  
23,Adult Social Care,LD u65 Residentl Care Placemnt,LD Residential Care External,W2KB55,Third Party Payments          ,Private Contractors           ,EH01,Miscellaneous Agency Services           ,2700.00,01/06/2015,REV,REAMCARE LTD                  
24,Adult Social Care,LD u65 Residentl Care Placemnt,LD Residential Care External,W2KB55,Third Party Payments          ,Private Contractors           ,EH01,Miscellaneous Agency Services           ,2700.00,01/06/2015,REV,REAMCARE LTD                  
25,Adult Social Care,LD u65 Residentl Care Placemnt,LD Residential Care External,W2KB55,Third Party Payments          ,Private Contractors           ,EH01,Miscellaneous Agency Services           ,2700.00,01/06/2015,REV,REAMCARE LTD                  
26,Adult Social Care,LD u65 Residentl Care Placemnt,LD Residential Care External,W2KB55,Third Party Payments          ,Private Contractors           ,EH01,Miscellaneous Agency Services           ,-1856.70,01/06/2015,REV,REAMCARE LTD                  
27,Childrens & Education Services,Asset Management,S106 Bid,K08077,Premises Related Expenditure  ,RepairsAlterations&MtceOfBldgs,BA05,DDM - Electrical                        ,1543.98,01/07/2015,REV,EA ENERGY SOLUTIONS LIMITED   
28,Adult Social Care,LD u65 Residentl Care Placemnt,LD Residential Care External,W2KB55,Third Party Payments          ,Private Contractors           ,EH01,Miscellaneous Agency Services           ,650.00,22/06/2015,REV,BARONS LODGE NURSING HOME     
29,Adult Social Care,LD u65 Residentl Care Placemnt,LD Residential Care External,W2KB55,Third Party Payments          ,Private Contractors           ,EH01,Miscellaneous Agency Services           ,650.00,22/06/2015,REV,BARONS LODGE NURSING HOME     
30,Adult Social Care,LD u65 Residentl Care Placemnt,LD Residential Care External,W2KB55,Third Party Payments          ,Private Contractors           ,EH01,Miscellaneous Agency Services           ,650.00,22/06/2015,REV,BARONS LODGE NURSING HOME     
31,Adult Social Care,LD u65 Residentl Care Placemnt,LD Residential Care External,W2KB55,Third Party Payments          ,Private Contractors           ,EH01,Miscellaneous Agency Services           ,650.00,22/06/2015,REV,BARONS LODGE NURSING HOME     
32,Adult Social Care,LD u65 Residentl Care Placemnt,LD Residential Care External,W2KB55,Third Party Payments          ,Private Contractors           ,EH01,Miscellaneous Agency Services           ,700.00,17/06/2015,REV,COTTISBRAINE HOUSE            
33,Adult Social Care,LD u65 Residentl Care Placemnt,LD Residential Care External,W2KB55,Third Party Payments          ,Private Contractors           ,EH01,Miscellaneous Agency Services           ,700.00,17/06/2015,REV,COTTISBRAINE HOUSE            
34,Adult Social Care,LD u65 Residentl Care Placemnt,LD Residential Care External,W2KB55,Third Party Payments          ,Private Contractors           ,EH01,Miscellaneous Agency Services           ,700.00,17/06/2015,REV,COTTISBRAINE HOUSE            
35,Adult Social Care,LD u65 Residentl Care Placemnt,LD Residential Care External,W2KB55,Third Party Payments          ,Private Contractors           ,EH01,Miscellaneous Agency Services           ,700.00,17/06/2015,REV,COTTISBRAINE HOUSE            
36,Adult Social Care,LD u65 Residentl Care Placemnt,LD Residential Care External,W2KB55,Third Party Payments          ,Private Contractors           ,EH01,Miscellaneous Agency Services           ,654.55,17/06/2015,REV,COTTISBRAINE HOUSE            
37,Adult Social Care,LD u65 Residentl Care Placemnt,LD Residential Care External,W2KB55,Third Party Payments          ,Private Contractors           ,EH01,Miscellaneous Agency Services           ,654.55,17/06/2015,REV,COTTISBRAINE HOUSE            
38,Adult Social Care,LD u65 Residentl Care Placemnt,LD Residential Care External,W2KB55,Third Party Payments          ,Private Contractors           ,EH01,Miscellaneous Agency Services           ,654.55,17/06/2015,REV,COTTISBRAINE HOUSE            
39,Adult Social Care,LD u65 Residentl Care Placemnt,LD Residential Care External,W2KB55,Third Party Payments          ,Private Contractors           ,EH01,Miscellaneous Agency Services           ,654.55,17/06/2015,REV,COTTISBRAINE HOUSE            
40,Adult Social Care,LD u65 Residentl Care Placemnt,LD Residential Care External,W2KB55,Third Party Payments          ,Private Contractors           ,EH01,Miscellaneous Agency Services           ,1600.00,15/06/2015,REV,EVERGREEN PARTNERSHIP         
41,Adult Social Care,LD u65 Residentl Care Placemnt,LD Residential Care External,W2KB55,Third Party Payments          ,Private Contractors           ,EH01,Miscellaneous Agency Services           ,1600.00,15/06/2015,REV,EVERGREEN PARTNERSHIP         
42,Adult Social Care,LD u65 Residentl Care Placemnt,LD Residential Care External,W2KB55,Third Party Payments          ,Private Contractors           ,EH01,Miscellaneous Agency Services           ,1600.00,15/06/2015,REV,EVERGREEN PARTNERSHIP         
43,Adult Social Care,LD u65 Residentl Care Placemnt,LD Residential Care External,W2KB55,Third Party Payments          ,Private Contractors           ,EH01,Miscellaneous Agency Services           ,1600.00,15/06/2015,REV,EVERGREEN PARTNERSHIP         
44,Adult Social Care,LD u65 Residentl Care Placemnt,LD Residential Care External,W2KB55,Third Party Payments          ,Private Contractors           ,EH01,Miscellaneous Agency Services           ,638.21,14/06/2015,REV,FREEWAYS TRUST LTD            
45,Adult Social Care,LD u65 Residentl Care Placemnt,LD Residential Care External,W2KB55,Third Party Payments          ,Private Contractors           ,EH01,Miscellaneous Agency Services           ,638.21,14/06/2015,REV,FREEWAYS TRUST LTD            
46,Adult Social Care,LD u65 Residentl Care Placemnt,LD Residential Care External,W2KB55,Third Party Payments          ,Private Contractors           ,EH01,Miscellaneous Agency Services           ,638.21,14/06/2015,REV,FREEWAYS TRUST LTD            
47,Adult Social Care,LD u65 Residentl Care Placemnt,LD Residential Care External,W2KB55,Third Party Payments          ,Private Contractors           ,EH01,Miscellaneous Agency Services           ,638.21,14/06/2015,REV,FREEWAYS TRUST LTD            
48,Adult Social Care,LD u65 Residentl Care Placemnt,LD Residential Care External,W2KB55,Third Party Payments          ,Private Contractors           ,EH01,Miscellaneous Agency Services           ,713.48,13/06/2015,REV,THE GRANGE & WALTON COTTAGE   
49,Adult Social Care,LD u65 Residentl Care Placemnt,LD Residential Care External,W2KB55,Third Party Payments          ,Private Contractors           ,EH01,Miscellaneous Agency Services           ,713.48,13/06/2015,REV,THE GRANGE & WALTON COTTAGE   
50,Adult Social Care,LD u65 Residentl Care Placemnt,LD Residential Care External,W2KB55,Third Party Payments          ,Private Contractors           ,EH01,Miscellaneous Agency Services           ,713.48,13/06/2015,REV,THE GRANGE & WALTON COTTAGE   
51,Adult Social Care,LD u65 Residentl Care Placemnt,LD Residential Care External,W2KB55,Third Party Payments          ,Private Contractors           ,EH01,Miscellaneous Agency Services           ,713.48,13/06/2015,REV,THE GRANGE & WALTON COTTAGE   
52,Adult Social Care,LD u65 Residentl Care Placemnt,LD Residential Care External,W2KB55,Third Party Payments          ,Private Contractors           ,EH01,Miscellaneous Agency Services           ,1827.00,16/06/2015,REV,INDEPENDENCE HOMES LTD        
53,Adult Social Care,LD u65 Residentl Care Placemnt,LD Residential Care External,W2KB55,Third Party Payments          ,Private Contractors           ,EH01,Miscellaneous Agency Services           ,1827.00,16/06/2015,REV,INDEPENDENCE HOMES LTD        
54,Adult Social Care,LD u65 Residentl Care Placemnt,LD Residential Care External,W2KB55,Third Party Payments          ,Private Contractors           ,EH01,Miscellaneous Agency Services           ,1827.00,16/06/2015,REV,INDEPENDENCE HOMES LTD        
55,Adult Social Care,LD u65 Residentl Care Placemnt,LD Residential Care External,W2KB55,Third Party Payments          ,Private Contractors           ,EH01,Miscellaneous Agency Services           ,1827.00,16/06/2015,REV,INDEPENDENCE HOMES LTD        
56,Adult Social Care,LD u65 Residentl Care Placemnt,LD Residential Care External,W2KB55,Third Party Payments          ,Private Contractors           ,EH01,Miscellaneous Agency Services           ,1199.00,31/03/2015,REV,NCYPE                         
57,Adult Social Care,LD u65 Residentl Care Placemnt,LD Residential Care External,W2KB55,Third Party Payments          ,Private Contractors           ,EH01,Miscellaneous Agency Services           ,1199.00,31/03/2015,REV,NCYPE                         
58,Adult Social Care,LD u65 Residentl Care Placemnt,LD Residential Care External,W2KB55,Third Party Payments          ,Private Contractors           ,EH01,Miscellaneous Agency Services           ,1199.00,31/03/2015,REV,NCYPE                         
59,Adult Social Care,LD u65 Residentl Care Placemnt,LD Residential Care External,W2KB55,Third Party Payments          ,Private Contractors           ,EH01,Miscellaneous Agency Services           ,1199.00,31/03/2015,REV,NCYPE                         
60,Adult Social Care,LD u65 Residentl Care Placemnt,LD Residential Care External,W2KB55,Third Party Payments          ,Private Contractors           ,EH01,Miscellaneous Agency Services           ,1199.00,31/03/2015,REV,NCYPE                         
61,Adult Social Care,LD u65 Residentl Care Placemnt,LD Residential Care External,W2KB55,Third Party Payments          ,Private Contractors           ,EH01,Miscellaneous Agency Services           ,1199.00,31/03/2015,REV,NCYPE                         
62,Adult Social Care,LD u65 Residentl Care Placemnt,LD Residential Care External,W2KB55,Third Party Payments          ,Private Contractors           ,EH01,Miscellaneous Agency Services           ,1199.00,31/03/2015,REV,NCYPE                         
63,Adult Social Care,LD u65 Residentl Care Placemnt,LD Residential Care External,W2KB55,Third Party Payments          ,Private Contractors           ,EH01,Miscellaneous Agency Services           ,1199.00,31/03/2015,REV,NCYPE                         
64,Adult Social Care,LD u65 Residentl Care Placemnt,LD Residential Care External,W2KB55,Third Party Payments          ,Private Contractors           ,EH01,Miscellaneous Agency Services           ,1199.00,31/03/2015,REV,NCYPE                         
65,Adult Social Care,LD u65 Residentl Care Placemnt,LD Residential Care External,W2KB55,Third Party Payments          ,Private Contractors           ,EH01,Miscellaneous Agency Services           ,1199.00,31/03/2015,REV,NCYPE                         
66,Adult Social Care,LD u65 Residentl Care Placemnt,LD Residential Care External,W2KB55,Third Party Payments          ,Private Contractors           ,EH01,Miscellaneous Agency Services           ,1199.00,31/03/2015,REV,NCYPE                         
67,Adult Social Care,LD u65 Residentl Care Placemnt,LD Residential Care External,W2KB55,Third Party Payments          ,Private Contractors           ,EH01,Miscellaneous Agency Services           ,1199.00,31/03/2015,REV,NCYPE                         
68,Adult Social Care,LD u65 Residentl Care Placemnt,LD Residential Care External,W2KB55,Third Party Payments          ,Private Contractors           ,EH01,Miscellaneous Agency Services           ,1199.00,31/03/2015,REV,NCYPE                         
69,Adult Social Care,LD u65 Residentl Care Placemnt,LD Residential Care External,W2KB55,Third Party Payments          ,Private Contractors           ,EH01,Miscellaneous Agency Services           ,-2913.58,31/03/2015,REV,NCYPE                         
70,Adult Social Care,LD u65 Residentl Care Placemnt,LD Residential Care External,W2KB55,Third Party Payments          ,Private Contractors           ,EH01,Miscellaneous Agency Services           ,1199.00,31/03/2015,REV,NCYPE                         
71,Adult Social Care,LD u65 Residentl Care Placemnt,LD Residential Care External,W2KB55,Third Party Payments          ,Private Contractors           ,EH01,Miscellaneous Agency Services           ,856.43,31/03/2015,REV,NCYPE                         
72,Adult Social Care,LD u65 Residentl Care Placemnt,LD Residential Care External,W2KB55,Third Party Payments          ,Private Contractors           ,EH01,Miscellaneous Agency Services           ,1714.29,01/07/2015,REV,RAPKYNS CARE CENTRE           
73,Adult Social Care,LD u65 Residentl Care Placemnt,LD Residential Care External,W2KB55,Third Party Payments          ,Private Contractors           ,EH01,Miscellaneous Agency Services           ,2400.00,01/07/2015,REV,RAPKYNS CARE CENTRE           
74,Adult Social Care,LD u65 Residentl Care Placemnt,LD Residential Care External,W2KB55,Third Party Payments          ,Private Contractors           ,EH01,Miscellaneous Agency Services           ,2400.00,01/07/2015,REV,RAPKYNS CARE CENTRE           
75,Adult Social Care,LD u65 Residentl Care Placemnt,LD Residential Care External,W2KB55,Third Party Payments          ,Private Contractors           ,EH01,Miscellaneous Agency Services           ,2400.00,01/07/2015,REV,RAPKYNS CARE CENTRE           
76,Adult Social Care,LD u65 Residentl Care Placemnt,LD Residential Care External,W2KB55,Third Party Payments          ,Private Contractors           ,EH01,Miscellaneous Agency Services           ,2400.00,01/07/2015,REV,RAPKYNS CARE CENTRE           
77,Adult Social Care,LD u65 Residentl Care Placemnt,LD Residential Care External,W2KB55,Third Party Payments          ,Private Contractors           ,EH01,Miscellaneous Agency Services           ,-685.71,01/07/2015,REV,RAPKYNS CARE CENTRE           
78,Adult Social Care,LD u65 Residentl Care Placemnt,LD Residential Care External,W2KB55,Third Party Payments          ,Private Contractors           ,EH01,Miscellaneous Agency Services           ,2748.92,20/06/2015,REV,AIMS CARE PARTNERSHIP         
79,Adult Social Care,LD u65 Residentl Care Placemnt,LD Residential Care External,W2KB55,Third Party Payments          ,Private Contractors           ,EH01,Miscellaneous Agency Services           ,2748.92,20/06/2015,REV,AIMS CARE PARTNERSHIP         
80,Adult Social Care,LD u65 Residentl Care Placemnt,LD Residential Care External,W2KB55,Third Party Payments          ,Private Contractors           ,EH01,Miscellaneous Agency Services           ,2748.92,20/06/2015,REV,AIMS CARE PARTNERSHIP         
81,Adult Social Care,LD u65 Residentl Care Placemnt,LD Residential Care External,W2KB55,Third Party Payments          ,Private Contractors           ,EH01,Miscellaneous Agency Services           ,2748.92,20/06/2015,REV,AIMS CARE PARTNERSHIP         
82,Adult Social Care,LD u65 Residentl Care Placemnt,LD Residential Care External,W2KB55,Third Party Payments          ,Private Contractors           ,EH01,Miscellaneous Agency Services           ,645.71,01/07/2015,REV,VITALISE                      
83,Adult Social Care,LD u65 Residentl Care Placemnt,LD Residential Care External,W2KB55,Third Party Payments          ,Private Contractors           ,EH01,Miscellaneous Agency Services           ,1134.00,01/07/2015,REV,VITALISE                      
84,Adult Social Care,LD u65 Residentl Care Placemnt,LD Residential Care External,W2KB55,Third Party Payments          ,Private Contractors           ,EH01,Miscellaneous Agency Services           ,749.00,01/07/2015,REV,VITALISE                      
85,Adult Social Care,LD u65 Residentl Care Placemnt,LD Residential Care External,W2KB55,Third Party Payments          ,Private Contractors           ,EH01,Miscellaneous Agency Services           ,535.00,01/07/2015,REV,VITALISE                      
86,Adult Social Care,LD u65 Residentl Care Placemnt,LD Residential Care External,W2KB55,Third Party Payments          ,Private Contractors           ,EH01,Miscellaneous Agency Services           ,737.86,17/09/2014,REV,VITALISE                      
87,Adult Social Care,PS u65 Residentl Care Placemnt,PD R/Park-Residential Care              ,W2JM55,Third Party Payments          ,Private Contractors           ,EH01,Miscellaneous Contrct Services          ,1113.00,01/07/2015,REV,VITALISE                      
88,Adult Social Care,PS u65 Residentl Care Placemnt,PD R/Park-Residential Care              ,W2JM55,Third Party Payments          ,Private Contractors           ,EH01,Miscellaneous Contrct Services          ,795.00,01/07/2015,REV,VITALISE                      
89,Adult Social Care,LD u65 Residentl Care Placemnt,LD Residential Care External,W2KB55,Third Party Payments          ,Private Contractors           ,EH01,Miscellaneous Agency Services           ,2079.67,30/04/2015,REV,WESC FOUNDATION               
90,Adult Social Care,LD u65 Residentl Care Placemnt,LD Residential Care External,W2KB55,Third Party Payments          ,Private Contractors           ,EH01,Miscellaneous Agency Services           ,2079.67,30/04/2015,REV,WESC FOUNDATION               
91,Adult Social Care,LD u65 Residentl Care Placemnt,LD Residential Care External,W2KB55,Third Party Payments          ,Private Contractors           ,EH01,Miscellaneous Agency Services           ,2079.67,30/04/2015,REV,WESC FOUNDATION               
92,Adult Social Care,LD u65 Residentl Care Placemnt,LD Residential Care External,W2KB55,Third Party Payments          ,Private Contractors           ,EH01,Miscellaneous Agency Services           ,2079.67,30/04/2015,REV,WESC FOUNDATION               
93,Adult Social Care,LD u65 Residentl Care Placemnt,LD Residential Care External,W2KB55,Third Party Payments          ,Private Contractors           ,EH01,Miscellaneous Agency Services           ,2079.67,30/04/2015,REV,WESC FOUNDATION               
94,Adult Social Care,LD u65 Residentl Care Placemnt,LD Residential Care External,W2KB55,Third Party Payments          ,Private Contractors           ,EH01,Miscellaneous Agency Services           ,2079.67,30/04/2015,REV,WESC FOUNDATION               
95,Adult Social Care,LD u65 Residentl Care Placemnt,LD Residential Care External,W2KB55,Third Party Payments          ,Private Contractors           ,EH01,Miscellaneous Agency Services           ,2079.67,30/04/2015,REV,WESC FOUNDATION               
96,Adult Social Care,LD u65 Residentl Care Placemnt,LD Residential Care External,W2KB55,Third Party Payments          ,Private Contractors           ,EH01,Miscellaneous Agency Services           ,2079.67,30/04/2015,REV,WESC FOUNDATION               
97,Adult Social Care,LD u65 Residentl Care Placemnt,LD Residential Care External,W2KB55,Third Party Payments          ,Private Contractors           ,EH01,Miscellaneous Agency Services           ,2079.67,30/04/2015,REV,WESC FOUNDATION               
98,Adult Social Care,LD u65 Residentl Care Placemnt,LD Residential Care External,W2KB55,Third Party Payments          ,Private Contractors           ,EH01,Miscellaneous Agency Services           ,2079.67,30/04/2015,REV,WESC FOUNDATION               
99,Adult Social Care,LD u65 Residentl Care Placemnt,LD Residential Care External,W2KB55,Third Party Payments          ,Private Contractors           ,EH01,Miscellaneous Agency Services           ,2079.67,30/04/2015,REV,WESC FOUNDATION               
100,Adult Social Care,LD u65 Residentl Care Placemnt,LD Residential Care External,W2KB55,Third Party Payments          ,Private Contractors           ,EH01,Miscellaneous Agency Services           ,2079.67,30/04/2015,REV,WESC FOUNDATION               
101,Adult Social Care,LD u65 Residentl Care Placemnt,LD Residential Care External,W2KB55,Third Party Payments          ,Private Contractors           ,EH01,Miscellaneous Agency Services           ,2079.67,30/04/2015,REV,WESC FOUNDATION               
102,Adult Social Care,LD u65 Residentl Care Placemnt,LD Residential Care External,W2KB55,Third Party Payments          ,Private Contractors           ,EH01,Miscellaneous Agency Services           ,1485.48,30/04/2015,REV,WESC FOUNDATION               
103,Adult Social Care,LD u65 Residentl Care Placemnt,LD Residential Care External,W2KB55,Third Party Payments          ,Private Contractors           ,EH01,Miscellaneous Agency Services           ,1016.47,01/07/2015,REV,ASHINGTON HOUSE               
104,Adult Social Care,LD u65 Residentl Care Placemnt,LD Residential Care External,W2KB55,Third Party Payments          ,Private Contractors           ,EH01,Miscellaneous Agency Services           ,1016.47,01/07/2015,REV,ASHINGTON HOUSE               
105,Adult Social Care,LD u65 Residentl Care Placemnt,LD Residential Care External,W2KB55,Third Party Payments          ,Private Contractors           ,EH01,Miscellaneous Agency Services           ,1016.47,01/07/2015,REV,ASHINGTON HOUSE               
106,Adult Social Care,LD u65 Residentl Care Placemnt,LD Residential Care External,W2KB55,Third Party Payments          ,Private Contractors           ,EH01,Miscellaneous Agency Services           ,1016.47,01/07/2015,REV,ASHINGTON HOUSE               
107,Adult Social Care,LD u65 Residentl Care Placemnt,LD Residential Care External,W2KB55,Third Party Payments          ,Private Contractors           ,EH01,Miscellaneous Agency Services           ,1016.47,01/07/2015,REV,ASHINGTON HOUSE               
108,Adult Social Care,LD u65 Residentl Care Placemnt,LD Residential Care External,W2KB55,Third Party Payments          ,Private Contractors           ,EH01,Miscellaneous Agency Services           ,1195.00,23/06/2015,REV,GREENFIELD CARE HOMES LTD     
109,Adult Social Care,LD u65 Residentl Care Placemnt,LD Residential Care External,W2KB55,Third Party Payments          ,Private Contractors           ,EH01,Miscellaneous Agency Services           ,1156.00,23/06/2015,REV,GREENFIELD CARE HOMES LTD     
110,Adult Social Care,LD u65 Residentl Care Placemnt,LD Residential Care External,W2KB55,Third Party Payments          ,Private Contractors           ,EH01,Miscellaneous Agency Services           ,1183.00,23/06/2015,REV,GREENFIELD CARE HOMES LTD     
111,Adult Social Care,LD u65 Residentl Care Placemnt,LD Residential Care External,W2KB55,Third Party Payments          ,Private Contractors           ,EH01,Miscellaneous Agency Services           ,1195.00,23/06/2015,REV,GREENFIELD CARE HOMES LTD     
112,Adult Social Care,LD u65 Residentl Care Placemnt,LD Residential Care External,W2KB55,Third Party Payments          ,Private Contractors           ,EH01,Miscellaneous Agency Services           ,1195.00,24/06/2015,REV,GREENFIELD CARE HOMES LTD     
113,Adult Social Care,LD u65 Residentl Care Placemnt,LD Residential Care External,W2KB55,Third Party Payments          ,Private Contractors           ,EH01,Miscellaneous Agency Services           ,1186.00,23/06/2015,REV,GREENFIELD CARE HOMES LTD     
114,Adult Social Care,LD u65 Residentl Care Placemnt,LD Residential Care External,W2KB55,Third Party Payments          ,Private Contractors           ,EH01,Miscellaneous Agency Services           ,750.00,23/06/2015,REV,GREENFIELD CARE HOMES LTD     
115,Adult Social Care,LD u65 Residentl Care Placemnt,LD Residential Care External,W2KB55,Third Party Payments          ,Private Contractors           ,EH01,Miscellaneous Agency Services           ,1082.61,01/07/2015,REV,HUNTERS' LODGE                
116,Adult Social Care,LD u65 Residentl Care Placemnt,LD Residential Care External,W2KB55,Third Party Payments          ,Private Contractors           ,EH01,Miscellaneous Agency Services           ,1082.61,01/07/2015,REV,HUNTERS' LODGE                
117,Adult Social Care,LD u65 Residentl Care Placemnt,LD Residential Care External,W2KB55,Third Party Payments          ,Private Contractors           ,EH01,Miscellaneous Agency Services           ,1082.61,01/07/2015,REV,HUNTERS' LODGE                
118,Adult Social Care,LD u65 Residentl Care Placemnt,LD Residential Care External,W2KB55,Third Party Payments          ,Private Contractors           ,EH01,Miscellaneous Agency Services           ,1082.61,01/07/2015,REV,HUNTERS' LODGE                
119,Adult Social Care,LD u65 Residentl Care Placemnt,LD Residential Care External,W2KB55,Third Party Payments          ,Private Contractors           ,EH01,Miscellaneous Agency Services           ,913.50,19/06/2015,REV,THE LODGE TRUST               
120,Adult Social Care,LD u65 Residentl Care Placemnt,LD Residential Care External,W2KB55,Third Party Payments          ,Private Contractors           ,EH01,Miscellaneous Agency Services           ,913.50,19/06/2015,REV,THE LODGE TRUST               
121,Adult Social Care,LD u65 Residentl Care Placemnt,LD Residential Care External,W2KB55,Third Party Payments          ,Private Contractors           ,EH01,Miscellaneous Agency Services           ,913.50,19/06/2015,REV,THE LODGE TRUST               
122,Adult Social Care,LD u65 Residentl Care Placemnt,LD Residential Care External,W2KB55,Third Party Payments          ,Private Contractors           ,EH01,Miscellaneous Agency Services           ,913.50,19/06/2015,REV,THE LODGE TRUST               
123,Adult Social Care,LD u65 Residentl Care Placemnt,LD Residential Care External,W2KB55,Third Party Payments          ,Private Contractors           ,EH01,Miscellaneous Agency Services           ,1275.00,06/07/2015,REV,MACINTYRE                     
124,Adult Social Care,LD u65 Residentl Care Placemnt,LD Residential Care External,W2KB55,Third Party Payments          ,Private Contractors           ,EH01,Miscellaneous Agency Services           ,1275.00,06/07/2015,REV,MACINTYRE                     
125,Adult Social Care,LD u65 Residentl Care Placemnt,LD Residential Care External,W2KB55,Third Party Payments          ,Private Contractors           ,EH01,Miscellaneous Agency Services           ,1275.00,06/07/2015,REV,MACINTYRE                     
126,Adult Social Care,LD u65 Residentl Care Placemnt,LD Residential Care External,W2KB55,Third Party Payments          ,Private Contractors           ,EH01,Miscellaneous Agency Services           ,1275.00,06/07/2015,REV,MACINTYRE                     
127,Adult Social Care,LD u65 Residentl Care Placemnt,LD Residential Care External,W2KB55,Third Party Payments          ,Private Contractors           ,EH01,Miscellaneous Agency Services           ,761.31,06/07/2015,REV,MACINTYRE                     
128,Adult Social Care,LD u65 Residentl Care Placemnt,LD Residential Care External,W2KB55,Third Party Payments          ,Private Contractors           ,EH01,Miscellaneous Agency Services           ,761.31,06/07/2015,REV,MACINTYRE                     
129,Adult Social Care,LD u65 Residentl Care Placemnt,LD Residential Care External,W2KB55,Third Party Payments          ,Private Contractors           ,EH01,Miscellaneous Agency Services           ,761.31,06/07/2015,REV,MACINTYRE                     
130,Adult Social Care,LD u65 Residentl Care Placemnt,LD Residential Care External,W2KB55,Third Party Payments          ,Private Contractors           ,EH01,Miscellaneous Agency Services           ,761.31,06/07/2015,REV,MACINTYRE                     
131,Adult Social Care,LD u65 Residentl Care Placemnt,LD Residential Care External,W2KB55,Third Party Payments          ,Private Contractors           ,EH01,Miscellaneous Agency Services           ,990.20,06/07/2015,REV,MACINTYRE                     
132,Adult Social Care,LD u65 Residentl Care Placemnt,LD Residential Care External,W2KB55,Third Party Payments          ,Private Contractors           ,EH01,Miscellaneous Agency Services           ,990.20,06/07/2015,REV,MACINTYRE                     
133,Adult Social Care,LD u65 Residentl Care Placemnt,LD Residential Care External,W2KB55,Third Party Payments          ,Private Contractors           ,EH01,Miscellaneous Agency Services           ,990.20,06/07/2015,REV,MACINTYRE                     
134,Adult Social Care,LD u65 Residentl Care Placemnt,LD Residential Care External,W2KB55,Third Party Payments          ,Private Contractors           ,EH01,Miscellaneous Agency Services           ,990.20,06/07/2015,REV,MACINTYRE                     
135,Adult Social Care,LD u65 Residentl Care Placemnt,LD Residential Care External,W2KB55,Third Party Payments          ,Private Contractors           ,EH01,Miscellaneous Agency Services           ,2200.00,24/06/2015,REV,SENAD ECCLESBOURNE LODGE      
136,Adult Social Care,LD u65 Residentl Care Placemnt,LD Residential Care External,W2KB55,Third Party Payments          ,Private Contractors           ,EH01,Miscellaneous Agency Services           ,2200.00,24/06/2015,REV,SENAD ECCLESBOURNE LODGE      
137,Adult Social Care,LD u65 Residentl Care Placemnt,LD Residential Care External,W2KB55,Third Party Payments          ,Private Contractors           ,EH01,Miscellaneous Agency Services           ,2200.00,24/06/2015,REV,SENAD ECCLESBOURNE LODGE      
138,Adult Social Care,LD u65 Residentl Care Placemnt,LD Residential Care External,W2KB55,Third Party Payments          ,Private Contractors           ,EH01,Miscellaneous Agency Services           ,2200.00,24/06/2015,REV,SENAD ECCLESBOURNE LODGE      
139,Adult Social Care,LD u65 Residentl Care Placemnt,LD Residential Care External,W2KB55,Third Party Payments          ,Private Contractors           ,EH01,Miscellaneous Agency Services           ,1419.55,15/06/2015,REV,AUTISM SUSSEX LTD             
140,Adult Social Care,LD u65 Residentl Care Placemnt,LD Residential Care External,W2KB55,Third Party Payments          ,Private Contractors           ,EH01,Miscellaneous Agency Services           ,1419.55,15/06/2015,REV,AUTISM SUSSEX LTD             
141,Adult Social Care,LD u65 Residentl Care Placemnt,LD Residential Care External,W2KB55,Third Party Payments          ,Private Contractors           ,EH01,Miscellaneous Agency Services           ,1419.55,15/06/2015,REV,AUTISM SUSSEX LTD             
142,Adult Social Care,LD u65 Residentl Care Placemnt,LD Residential Care External,W2KB55,Third Party Payments          ,Private Contractors           ,EH01,Miscellaneous Agency Services           ,1419.55,15/06/2015,REV,AUTISM SUSSEX LTD             
143,Adult Social Care,LD u65 Residentl Care Placemnt,LD Residential Care External,W2KB55,Third Party Payments          ,Private Contractors           ,EH01,Miscellaneous Agency Services           ,1429.44,24/05/2015,REV,WINSLOW COURT                 
144,Adult Social Care,LD u65 Residentl Care Placemnt,LD Residential Care External,W2KB55,Third Party Payments          ,Private Contractors           ,EH01,Miscellaneous Agency Services           ,1429.44,24/05/2015,REV,WINSLOW COURT                 
145,Adult Social Care,LD u65 Residentl Care Placemnt,LD Residential Care External,W2KB55,Third Party Payments          ,Private Contractors           ,EH01,Miscellaneous Agency Services           ,1429.44,24/05/2015,REV,WINSLOW COURT                 
146,Adult Social Care,LD u65 Residentl Care Placemnt,LD Residential Care External,W2KB55,Third Party Payments          ,Private Contractors           ,EH01,Miscellaneous Agency Services           ,1429.44,24/05/2015,REV,WINSLOW COURT                 
147,Adult Social Care,LD u65 Residentl Care Placemnt,LD Residential Care External,W2KB55,Third Party Payments          ,Private Contractors           ,EH01,Miscellaneous Agency Services           ,1311.00,01/07/2015,REV,KENT AUTISTIC TRUST           
148,Adult Social Care,LD u65 Residentl Care Placemnt,LD Residential Care External,W2KB55,Third Party Payments          ,Private Contractors           ,EH01,Miscellaneous Agency Services           ,1311.00,01/07/2015,REV,KENT AUTISTIC TRUST           
149,Adult Social Care,LD u65 Residentl Care Placemnt,LD Residential Care External,W2KB55,Third Party Payments          ,Private Contractors           ,EH01,Miscellaneous Agency Services           ,1311.00,01/07/2015,REV,KENT AUTISTIC TRUST           
150,Adult Social Care,LD u65 Residentl Care Placemnt,LD Residential Care External,W2KB55,Third Party Payments          ,Private Contractors           ,EH01,Miscellaneous Agency Services           ,1311.00,01/07/2015,REV,KENT AUTISTIC TRUST           
151,Adult Social Care,LD u65 Residentl Care Placemnt,LD Residential Care External,W2KB55,Third Party Payments          ,Private Contractors           ,EH01,Miscellaneous Agency Services           ,1146.96,22/06/2015,REV,KISIMUL SCHOOL                
152,Adult Social Care,LD u65 Residentl Care Placemnt,LD Residential Care External,W2KB55,Third Party Payments          ,Private Contractors           ,EH01,Miscellaneous Agency Services           ,2676.24,22/06/2015,REV,KISIMUL SCHOOL                
153,Adult Social Care,LD u65 Residentl Care Placemnt,LD Residential Care External,W2KB55,Third Party Payments          ,Private Contractors           ,EH01,Miscellaneous Agency Services           ,2676.24,22/06/2015,REV,KISIMUL SCHOOL                
154,Adult Social Care,LD u65 Residentl Care Placemnt,LD Residential Care External,W2KB55,Third Party Payments          ,Private Contractors           ,EH01,Miscellaneous Agency Services           ,2676.24,22/06/2015,REV,KISIMUL SCHOOL                
155,Adult Social Care,LD u65 Residentl Care Placemnt,LD Residential Care External,W2KB55,Third Party Payments          ,Private Contractors           ,EH01,Miscellaneous Agency Services           ,2676.24,22/06/2015,REV,KISIMUL SCHOOL                
156,Adult Social Care,LD u65 Residentl Care Placemnt,LD Residential Care External,W2KB55,Third Party Payments          ,Private Contractors           ,EH01,Miscellaneous Agency Services           ,-1146.96,22/06/2015,REV,KISIMUL SCHOOL                
157,Adult Social Care,LD u65 Residentl Care Placemnt,LD Residential Care External,W2KB55,Third Party Payments          ,Private Contractors           ,EH01,Miscellaneous Agency Services           ,1529.28,22/06/2015,REV,KISIMUL SCHOOL                
158,Adult Social Care,LD u65 Residentl Care Placemnt,LD Residential Care External,W2KB55,Third Party Payments          ,Private Contractors           ,EH01,Miscellaneous Agency Services           ,-1529.28,22/06/2015,REV,KISIMUL SCHOOL                
159,Adult Social Care,MH u65 Residentl Care Placemnt,MH ResidentialCare Ext-Morden,W2HB55,Third Party Payments          ,Private Contractors           ,EH01,Miscellaneous Agency Services           ,600.00,01/07/2015,REV,ABBEY HOUSE RESIDENTIAL HOMES 
160,Adult Social Care,MH u65 Residentl Care Placemnt,MH ResidentialCare Ext-Morden,W2HB55,Third Party Payments          ,Private Contractors           ,EH01,Miscellaneous Agency Services           ,500.00,01/07/2015,REV,ABBEY HOUSE RESIDENTIAL HOMES 
161,Adult Social Care,MH u65 Residentl Care Placemnt,MH ResidentialCare Ext-Morden,W2HB55,Third Party Payments          ,Private Contractors           ,EH01,Miscellaneous Agency Services           ,500.00,01/07/2015,REV,ABBEY HOUSE RESIDENTIAL HOMES 
162,Adult Social Care,MH u65 Residentl Care Placemnt,MH ResidentialCare Ext-Morden,W2HB55,Third Party Payments          ,Private Contractors           ,EH01,Miscellaneous Agency Services           ,600.00,01/07/2015,REV,ABBEY HOUSE RESIDENTIAL HOMES 
163,Adult Social Care,MH u65 Residentl Care Placemnt,MH ResidentialCare Ext-Morden,W2HB55,Third Party Payments          ,Private Contractors           ,EH01,Miscellaneous Agency Services           ,600.00,01/07/2015,REV,ABBEY HOUSE RESIDENTIAL HOMES 
164,Adult Social Care,MH u65 Residentl Care Placemnt,MH ResidentialCare Ext-Morden,W2HB55,Third Party Payments          ,Private Contractors           ,EH01,Miscellaneous Agency Services           ,500.00,01/07/2015,REV,ABBEY HOUSE RESIDENTIAL HOMES 
165,Adult Social Care,MH u65 Residentl Care Placemnt,MH ResidentialCare Ext-Morden,W2HB55,Third Party Payments          ,Private Contractors           ,EH01,Miscellaneous Agency Services           ,500.00,01/07/2015,REV,ABBEY HOUSE RESIDENTIAL HOMES 
166,Adult Social Care,MH u65 Residentl Care Placemnt,MH ResidentialCare Ext-Morden,W2HB55,Third Party Payments          ,Private Contractors           ,EH01,Miscellaneous Agency Services           ,600.00,01/07/2015,REV,ABBEY HOUSE RESIDENTIAL HOMES 
167,Adult Social Care,LD u65 Residentl Care Placemnt,LD Residential Care External,W2KB55,Third Party Payments          ,Private Contractors           ,EH01,Miscellaneous Agency Services           ,1074.97,01/07/2015,REV,ASHCROFT CARE SERVICES        
168,Adult Social Care,LD u65 Residentl Care Placemnt,LD Residential Care External,W2KB55,Third Party Payments          ,Private Contractors           ,EH01,Miscellaneous Agency Services           ,1074.97,01/07/2015,REV,ASHCROFT CARE SERVICES        
169,Adult Social Care,LD u65 Residentl Care Placemnt,LD Residential Care External,W2KB55,Third Party Payments          ,Private Contractors           ,EH01,Miscellaneous Agency Services           ,1074.97,01/07/2015,REV,ASHCROFT CARE SERVICES        
170,Adult Social Care,LD u65 Residentl Care Placemnt,LD Residential Care External,W2KB55,Third Party Payments          ,Private Contractors           ,EH01,Miscellaneous Agency Services           ,1074.97,01/07/2015,REV,ASHCROFT CARE SERVICES        
171,Adult Social Care,LD u65 Residentl Care Placemnt,LD Residential Care External,W2KB55,Third Party Payments          ,Private Contractors           ,EH01,Miscellaneous Agency Services           ,1343.73,01/07/2015,REV,ASHCROFT CARE SERVICES        
172,Adult Social Care,LD u65 Residentl Care Placemnt,LD Residential Care External,W2KB55,Third Party Payments          ,Private Contractors           ,EH01,Miscellaneous Agency Services           ,1343.73,01/07/2015,REV,ASHCROFT CARE SERVICES        
173,Adult Social Care,LD u65 Residentl Care Placemnt,LD Residential Care External,W2KB55,Third Party Payments          ,Private Contractors           ,EH01,Miscellaneous Agency Services           ,1343.73,01/07/2015,REV,ASHCROFT CARE SERVICES        
174,Adult Social Care,LD u65 Residentl Care Placemnt,LD Residential Care External,W2KB55,Third Party Payments          ,Private Contractors           ,EH01,Miscellaneous Agency Services           ,1343.73,01/07/2015,REV,ASHCROFT CARE SERVICES        
175,Adult Social Care,LD u65 Residentl Care Placemnt,LD Residential Care External,W2KB55,Third Party Payments          ,Private Contractors           ,EH01,Miscellaneous Agency Services           ,802.59,05/07/2015,REV,CRAEGMOOR FACILITIES - WINDSOR
176,Adult Social Care,LD u65 Residentl Care Placemnt,LD Residential Care External,W2KB55,Third Party Payments          ,Private Contractors           ,EH01,Miscellaneous Agency Services           ,802.59,05/07/2015,REV,CRAEGMOOR FACILITIES - WINDSOR
177,Adult Social Care,LD u65 Residentl Care Placemnt,LD Residential Care External,W2KB55,Third Party Payments          ,Private Contractors           ,EH01,Miscellaneous Agency Services           ,802.59,05/07/2015,REV,CRAEGMOOR FACILITIES - WINDSOR
178,Adult Social Care,LD u65 Residentl Care Placemnt,LD Residential Care External,W2KB55,Third Party Payments          ,Private Contractors           ,EH01,Miscellaneous Agency Services           ,802.59,05/07/2015,REV,CRAEGMOOR FACILITIES - WINDSOR
179,Adult Social Care,LD u65 Home Care,LD Home Care External,W2KB49,Third Party Payments          ,Private Contractors           ,EH01,Miscellaneous Agency Services           ,790.00,20/06/2015,REV,CRUSOE CARE RESIDENTIAL HOME  
180,Adult Social Care,LD u65 Home Care,LD Home Care External,W2KB49,Third Party Payments          ,Private Contractors           ,EH01,Miscellaneous Agency Services           ,790.00,20/06/2015,REV,CRUSOE CARE RESIDENTIAL HOME  
181,Adult Social Care,LD u65 Home Care,LD Home Care External,W2KB49,Third Party Payments          ,Private Contractors           ,EH01,Miscellaneous Agency Services           ,790.00,20/06/2015,REV,CRUSOE CARE RESIDENTIAL HOME  
182,Adult Social Care,LD u65 Home Care,LD Home Care External,W2KB49,Third Party Payments          ,Private Contractors           ,EH01,Miscellaneous Agency Services           ,790.00,20/06/2015,REV,CRUSOE CARE RESIDENTIAL HOME  
183,Childrens & Education Services,Fostering Services,ART Independent Agency Foster,W1DE46,Supplies & Services           ,Services                      ,DF53,Task Based Fostering                    ,542.86,17/04/2015,REV,BRIGHTER FUTURES FOSTER CARE  
184,Childrens & Education Services,Fostering Services,ART Independent Agency Foster,W1DE46,Supplies & Services           ,Services                      ,DF53,Task Based Fostering                    ,760.00,17/04/2015,REV,BRIGHTER FUTURES FOSTER CARE  
185,Childrens & Education Services,Fostering Services,ART Independent Agency Foster,W1DE46,Supplies & Services           ,Services                      ,DF53,Task Based Fostering                    ,760.00,17/04/2015,REV,BRIGHTER FUTURES FOSTER CARE  
186,Childrens & Education Services,Fostering Services,ART Independent Agency Foster,W1DE46,Supplies & Services           ,Services                      ,DF53,Task Based Fostering                    ,760.00,17/04/2015,REV,BRIGHTER FUTURES FOSTER CARE  
187,Childrens & Education Services,Fostering Services,ART Independent Agency Foster,W1DE46,Supplies & Services           ,Services                      ,DF53,Task Based Fostering                    ,760.00,17/04/2015,REV,BRIGHTER FUTURES FOSTER CARE  
188,Adult Social Care,PS u65 Nursing Care Placements,PD EAST TEAM-Nursing,W2JJ53,Third Party Payments          ,Private Contractors           ,EH01,Miscellaneous Agency Services           ,1890.36,16/06/2015,REV,BUPA CARE SERVICES BACS RECEIP
189,Adult Social Care,PS u65 Nursing Care Placements,PD EAST TEAM-Nursing,W2JJ53,Third Party Payments          ,Private Contractors           ,EH01,Miscellaneous Agency Services           ,1890.36,16/06/2015,REV,BUPA CARE SERVICES BACS RECEIP
190,Adult Social Care,PS u65 Nursing Care Placements,PD EAST TEAM-Nursing,W2JJ53,Third Party Payments          ,Private Contractors           ,EH01,Miscellaneous Agency Services           ,1890.36,16/06/2015,REV,BUPA CARE SERVICES BACS RECEIP
191,Adult Social Care,PS u65 Nursing Care Placements,PD EAST TEAM-Nursing,W2JJ53,Third Party Payments          ,Private Contractors           ,EH01,Miscellaneous Agency Services           ,1890.36,16/06/2015,REV,BUPA CARE SERVICES BACS RECEIP
192,Adult Social Care,OP 65&Over Resi Care Placement,OP West - Residential Care Ext,W2LG55,Third Party Payments          ,Private Contractors           ,EH01,Miscellaneous Agency Services           ,524.22,24/04/2015,REV,LINK HOUSE                    
193,Adult Social Care,OP 65&Over Resi Care Placement,OP West - Residential Care Ext,W2LG55,Third Party Payments          ,Private Contractors           ,EH01,Miscellaneous Agency Services           ,524.22,24/04/2015,REV,LINK HOUSE                    
194,Adult Social Care,PS u65 Residentl Care Placemnt,PD R/Park-Residential Care              ,W2JM55,Third Party Payments          ,Private Contractors           ,EH01,Miscellaneous Contrct Services          ,668.81,02/07/2015,REV,GARWOOD FOUNDATION            
195,Adult Social Care,PS u65 Residentl Care Placemnt,PD R/Park-Residential Care              ,W2JM55,Third Party Payments          ,Private Contractors           ,EH01,Miscellaneous Contrct Services          ,668.81,02/07/2015,REV,GARWOOD FOUNDATION            
196,Adult Social Care,PS u65 Residentl Care Placemnt,PD R/Park-Residential Care              ,W2JM55,Third Party Payments          ,Private Contractors           ,EH01,Miscellaneous Contrct Services          ,668.81,02/07/2015,REV,GARWOOD FOUNDATION            
197,Adult Social Care,PS u65 Residentl Care Placemnt,PD R/Park-Residential Care              ,W2JM55,Third Party Payments          ,Private Contractors           ,EH01,Miscellaneous Contrct Services          ,668.81,02/07/2015,REV,GARWOOD FOUNDATION            
198,Adult Social Care,PS u65 Residentl Care Placemnt,PD R/Park-Residential Care              ,W2JM55,Third Party Payments          ,Private Contractors           ,EH01,Miscellaneous Contrct Services          ,668.81,02/07/2015,REV,GARWOOD FOUNDATION            
199,Adult Social Care,PS u65 Residentl Care Placemnt,PD R/Park-Residential Care              ,W2JM55,Third Party Payments          ,Private Contractors           ,EH01,Miscellaneous Contrct Services          ,668.81,02/07/2015,REV,GARWOOD FOUNDATION            
200,Adult Social Care,PS u65 Residentl Care Placemnt,PD R/Park-Residential Care              ,W2JM55,Third Party Payments          ,Private Contractors           ,EH01,Miscellaneous Contrct Services          ,668.81,02/07/2015,REV,GARWOOD FOUNDATION            
201,Adult Social Care,PS u65 Residentl Care Placemnt,PD R/Park-Residential Care              ,W2JM55,Third Party Payments          ,Private Contractors           ,EH01,Miscellaneous Contrct Services          ,668.81,02/07/2015,REV,GARWOOD FOUNDATION            
202,Adult Social Care,PS u65 Residentl Care Placemnt,PD R/Park-Residential Care              ,W2JM55,Third Party Payments          ,Private Contractors           ,EH01,Miscellaneous Contrct Services          ,668.81,02/07/2015,REV,GARWOOD FOUNDATION            
203,Adult Social Care,LD u65 Residentl Care Placemnt,LD Residential Care External,W2KB55,Third Party Payments          ,Private Contractors           ,EH01,Miscellaneous Agency Services           ,648.35,03/07/2015,REV,THE SONS OF DIVINE PROVIDENCE 
204,Adult Social Care,LD u65 Residentl Care Placemnt,LD Residential Care External,W2KB55,Third Party Payments          ,Private Contractors           ,EH01,Miscellaneous Agency Services           ,648.35,03/07/2015,REV,THE SONS OF DIVINE PROVIDENCE 
205,Adult Social Care,LD u65 Residentl Care Placemnt,LD Residential Care External,W2KB55,Third Party Payments          ,Private Contractors           ,EH01,Miscellaneous Agency Services           ,648.35,03/07/2015,REV,THE SONS OF DIVINE PROVIDENCE 
206,Adult Social Care,LD u65 Residentl Care Placemnt,LD Residential Care External,W2KB55,Third Party Payments          ,Private Contractors           ,EH01,Miscellaneous Agency Services           ,648.35,03/07/2015,REV,THE SONS OF DIVINE PROVIDENCE 
207,Adult Social Care,OP 65&Over Resi Care Placement,OP West - Residential Care Ext,W2LG55,Third Party Payments          ,Private Contractors           ,EH01,Miscellaneous Agency Services           ,608.25,22/06/2015,REV,NIGHTINGALE HOUSE             
208,Adult Social Care,OP 65&Over Resi Care Placement,OP West - Residential Care Ext,W2LG55,Third Party Payments          ,Private Contractors           ,EH01,Miscellaneous Agency Services           ,608.25,22/06/2015,REV,NIGHTINGALE HOUSE             
209,Adult Social Care,OP 65&Over Resi Care Placement,OP West - Residential Care Ext,W2LG55,Third Party Payments          ,Private Contractors           ,EH01,Miscellaneous Agency Services           ,608.25,22/06/2015,REV,NIGHTINGALE HOUSE             
210,Adult Social Care,OP 65&Over Resi Care Placement,OP West - Residential Care Ext,W2LG55,Third Party Payments          ,Private Contractors           ,EH01,Miscellaneous Agency Services           ,608.25,22/06/2015,REV,NIGHTINGALE HOUSE             
211,Adult Social Care,OP 65&Over Resi Care Placement,OP West - Residential Care Ext,W2LG55,Third Party Payments          ,Private Contractors           ,EH01,Miscellaneous Agency Services           ,550.00,29/06/2015,REV,WHEATLANDS CARE HOME          
212,Adult Social Care,OP 65&Over Resi Care Placement,OP West - Residential Care Ext,W2LG55,Third Party Payments          ,Private Contractors           ,EH01,Miscellaneous Agency Services           ,550.00,29/06/2015,REV,WHEATLANDS CARE HOME          
213,Adult Social Care,OP 65&Over Resi Care Placement,OP West - Residential Care Ext,W2LG55,Third Party Payments          ,Private Contractors           ,EH01,Miscellaneous Agency Services           ,550.00,29/06/2015,REV,WHEATLANDS CARE HOME          
214,Adult Social Care,OP 65&Over Resi Care Placement,OP West - Residential Care Ext,W2LG55,Third Party Payments          ,Private Contractors           ,EH01,Miscellaneous Agency Services           ,550.00,29/06/2015,REV,WHEATLANDS CARE HOME          
215,Adult Social Care,OP 65 & Over Direct Payments,OP East -Direct Payment Scheme,W2LH36,Third Party Payments          ,Private Contractors           ,EH73,Direct Payments                         ,719.55,01/07/2015,REV,REDACTED
216,Adult Social Care,OP 65 & Over Direct Payments,OP East -Direct Payment Scheme,W2LH36,Third Party Payments          ,Private Contractors           ,EH73,Direct Payments                         ,3042.24,01/07/2015,REV,REDACTED
217,Adult Social Care,LD u65 Residentl Care Placemnt,LD Residential Care External,W2KB55,Third Party Payments          ,Private Contractors           ,EH01,Miscellaneous Agency Services           ,801.42,26/06/2015,REV,PARK HALL RESIDENTIAL HOME    
218,Adult Social Care,LD u65 Residentl Care Placemnt,LD Residential Care External,W2KB55,Third Party Payments          ,Private Contractors           ,EH01,Miscellaneous Agency Services           ,1122.00,26/06/2015,REV,PARK HALL RESIDENTIAL HOME    
219,Adult Social Care,LD u65 Residentl Care Placemnt,LD Residential Care External,W2KB55,Third Party Payments          ,Private Contractors           ,EH01,Miscellaneous Agency Services           ,1122.00,26/06/2015,REV,PARK HALL RESIDENTIAL HOME    
220,Adult Social Care,PS u65 Direct Payments,PD EAST TEAM-Direct Payment,W2JJ36,Third Party Payments          ,Private Contractors           ,EH73,Direct Payments                         ,879.48,01/07/2015,REV,REDACTED
221,Adult Social Care,PS u65 Direct Payments,PD R/Park-Direct Payments,W2JM36,Third Party Payments          ,Private Contractors           ,EH73,Direct Payments                         ,3068.64,01/07/2015,REV,REDACTED
222,Adult Social Care,LD u65 Residentl Care Placemnt,LD Residential Care External,W2KB55,Third Party Payments          ,Private Contractors           ,EH01,Miscellaneous Agency Services           ,1122.00,26/06/2015,REV,PARK HALL RESIDENTIAL HOME    
223,Adult Social Care,LD u65 Residentl Care Placemnt,LD Residential Care External,W2KB55,Third Party Payments          ,Private Contractors           ,EH01,Miscellaneous Agency Services           ,1122.00,26/06/2015,REV,PARK HALL RESIDENTIAL HOME    
224,Adult Social Care,LD u65 Residentl Care Placemnt,LD Residential Care External,W2KB55,Third Party Payments          ,Private Contractors           ,EH01,Miscellaneous Agency Services           ,1122.00,26/06/2015,REV,PARK HALL RESIDENTIAL HOME    
225,Adult Social Care,LD u65 Residentl Care Placemnt,LD Residential Care External,W2KB55,Third Party Payments          ,Private Contractors           ,EH01,Miscellaneous Agency Services           ,1122.00,26/06/2015,REV,PARK HALL RESIDENTIAL HOME    
226,Adult Social Care,LD u65 Residentl Care Placemnt,LD Residential Care External,W2KB55,Third Party Payments          ,Private Contractors           ,EH01,Miscellaneous Agency Services           ,1122.00,26/06/2015,REV,PARK HALL RESIDENTIAL HOME    
227,Adult Social Care,LD u65 Residentl Care Placemnt,LD Residential Care External,W2KB55,Third Party Payments          ,Private Contractors           ,EH01,Miscellaneous Agency Services           ,1122.00,26/06/2015,REV,PARK HALL RESIDENTIAL HOME    
228,Adult Social Care,LD u65 Residentl Care Placemnt,LD Residential Care External,W2KB55,Third Party Payments          ,Private Contractors           ,EH01,Miscellaneous Agency Services           ,1122.00,26/06/2015,REV,PARK HALL RESIDENTIAL HOME    
229,Adult Social Care,LD u65 Residentl Care Placemnt,LD Residential Care External,W2KB55,Third Party Payments          ,Private Contractors           ,EH01,Miscellaneous Agency Services           ,1122.00,26/06/2015,REV,PARK HALL RESIDENTIAL HOME    
230,Adult Social Care,LD u65 Residentl Care Placemnt,LD Residential Care External,W2KB55,Third Party Payments          ,Private Contractors           ,EH01,Miscellaneous Agency Services           ,1122.00,26/06/2015,REV,PARK HALL RESIDENTIAL HOME    
231,Adult Social Care,LD u65 Residentl Care Placemnt,LD Residential Care External,W2KB55,Third Party Payments          ,Private Contractors           ,EH01,Miscellaneous Agency Services           ,1122.00,26/06/2015,REV,PARK HALL RESIDENTIAL HOME    
232,Adult Social Care,LD u65 Residentl Care Placemnt,LD Residential Care External,W2KB55,Third Party Payments          ,Private Contractors           ,EH01,Miscellaneous Agency Services           ,-801.42,26/06/2015,REV,PARK HALL RESIDENTIAL HOME    
233,Adult Social Care,LD u65 Residentl Care Placemnt,LD Residential Care External,W2KB55,Third Party Payments          ,Private Contractors           ,EH01,Miscellaneous Agency Services           ,1122.00,26/06/2015,REV,PARK HALL RESIDENTIAL HOME    
234,Adult Social Care,PS u65 Nursing Care Placements,PD R/Park-Nursing                       ,W2JM53,Third Party Payments          ,Private Contractors           ,EH01,Miscellaneous Contrct Services          ,700.35,15/06/2015,REV,MEADBANK NURSING CENTRE       
235,Adult Social Care,PS u65 Nursing Care Placements,PD R/Park-Nursing                       ,W2JM53,Third Party Payments          ,Private Contractors           ,EH01,Miscellaneous Contrct Services          ,700.35,15/06/2015,REV,MEADBANK NURSING CENTRE       
236,Adult Social Care,PS u65 Nursing Care Placements,PD R/Park-Nursing                       ,W2JM53,Third Party Payments          ,Private Contractors           ,EH01,Miscellaneous Contrct Services          ,700.35,15/06/2015,REV,MEADBANK NURSING CENTRE       
237,Adult Social Care,PS u65 Nursing Care Placements,PD R/Park-Nursing                       ,W2JM53,Third Party Payments          ,Private Contractors           ,EH01,Miscellaneous Contrct Services          ,700.35,15/06/2015,REV,MEADBANK NURSING CENTRE       
238,Adult Social Care,PS u65 Nursing Care Placements,PD R/Park-Nursing                       ,W2JM53,Third Party Payments          ,Private Contractors           ,EH01,Miscellaneous Contrct Services          ,547.05,15/06/2015,REV,SUTTON NURSING HOMES LTD      
239,Adult Social Care,PS u65 Nursing Care Placements,PD R/Park-Nursing                       ,W2JM53,Third Party Payments          ,Private Contractors           ,EH01,Miscellaneous Contrct Services          ,950.00,01/07/2015,REV,QUEEN ALEXANDRA HOSPITAL HOME 
240,Adult Social Care,PS u65 Nursing Care Placements,PD R/Park-Nursing                       ,W2JM53,Third Party Payments          ,Private Contractors           ,EH01,Miscellaneous Contrct Services          ,950.00,01/07/2015,REV,QUEEN ALEXANDRA HOSPITAL HOME 
241,Adult Social Care,PS u65 Nursing Care Placements,PD R/Park-Nursing                       ,W2JM53,Third Party Payments          ,Private Contractors           ,EH01,Miscellaneous Contrct Services          ,950.00,01/07/2015,REV,QUEEN ALEXANDRA HOSPITAL HOME 
242,Adult Social Care,PS u65 Nursing Care Placements,PD R/Park-Nursing                       ,W2JM53,Third Party Payments          ,Private Contractors           ,EH01,Miscellaneous Contrct Services          ,950.00,01/07/2015,REV,QUEEN ALEXANDRA HOSPITAL HOME 
243,Childrens & Education Services,Fostering Services,ART Independent Agency Foster,W1DE46,Supplies & Services           ,Services                      ,DF53,Task Based Fostering                    ,670.00,14/06/2015,REV,THE NATIONAL FOSTERING AGENCY 
244,Childrens & Education Services,Fostering Services,ART Independent Agency Foster,W1DE46,Supplies & Services           ,Services                      ,DF53,Task Based Fostering                    ,670.00,14/06/2015,REV,THE NATIONAL FOSTERING AGENCY 
245,Childrens & Education Services,Fostering Services,ART Independent Agency Foster,W1DE46,Supplies & Services           ,Services                      ,DF53,Task Based Fostering                    ,670.00,14/06/2015,REV,THE NATIONAL FOSTERING AGENCY 
246,Childrens & Education Services,Fostering Services,ART Independent Agency Foster,W1DE46,Supplies & Services           ,Services                      ,DF53,Task Based Fostering                    ,670.00,14/06/2015,REV,THE NATIONAL FOSTERING AGENCY 
247,Childrens & Education Services,Fostering Services,ART Independent Agency Foster,W1DE46,Supplies & Services           ,Services                      ,DF53,Task Based Fostering                    ,670.00,14/06/2015,REV,THE NATIONAL FOSTERING AGENCY 
248,Childrens & Education Services,Fostering Services,ART Independent Agency Foster,W1DE46,Supplies & Services           ,Services                      ,DF53,Task Based Fostering                    ,670.00,14/06/2015,REV,THE NATIONAL FOSTERING AGENCY 
249,Childrens & Education Services,Fostering Services,ART Independent Agency Foster,W1DE46,Supplies & Services           ,Services                      ,DF53,Task Based Fostering                    ,668.57,14/06/2015,REV,THE NATIONAL FOSTERING AGENCY 
250,Adult Social Care,LD u65 Other Services,LD INTERNAL TRANSPORT SLA,W2KB59,Transport Related Expenditure ,Recharge frm Transport Holding,CB04,Transport SLA/Rech-Dir Non Std          ,741.20,10/06/2015,REV,HEADSTART EMPLOYMENT LTD      
251,Childrens & Education Services,Family - Other Services,CS SWD Personal support                 ,W1CF49,Third Party Payments          ,Private Contractors           ,EH01,Miscellaneous Contrct Services          ,4273.13,24/06/2015,REV,AMBITION RECRUITMENT          
252,Childrens & Education Services,Family - Other Services,CS SWD Personal support                 ,W1CF49,Third Party Payments          ,Private Contractors           ,EH01,Miscellaneous Contrct Services          ,4273.13,01/07/2015,REV,AMBITION RECRUITMENT          
253,Adult Social Care,LD u65 Residentl Care Placemnt,LD Residential Care External,W2KB55,Third Party Payments          ,Private Contractors           ,EH01,Miscellaneous Agency Services           ,1681.31,15/06/2015,REV,BROADHAM CARE LTD             
254,Adult Social Care,LD u65 Residentl Care Placemnt,LD Residential Care External,W2KB55,Third Party Payments          ,Private Contractors           ,EH01,Miscellaneous Agency Services           ,1681.31,15/06/2015,REV,BROADHAM CARE LTD             
255,Adult Social Care,LD u65 Residentl Care Placemnt,LD Residential Care External,W2KB55,Third Party Payments          ,Private Contractors           ,EH01,Miscellaneous Agency Services           ,1681.31,15/06/2015,REV,BROADHAM CARE LTD             
256,Adult Social Care,LD u65 Residentl Care Placemnt,LD Residential Care External,W2KB55,Third Party Payments          ,Private Contractors           ,EH01,Miscellaneous Agency Services           ,1681.31,15/06/2015,REV,BROADHAM CARE LTD             
257,Adult Social Care,LD u65 Residentl Care Placemnt,LD Residential Care External,W2KB55,Third Party Payments          ,Private Contractors           ,EH01,Miscellaneous Agency Services           ,1420.00,15/06/2015,REV,BROADHAM CARE LTD             
258,Adult Social Care,LD u65 Residentl Care Placemnt,LD Residential Care External,W2KB55,Third Party Payments          ,Private Contractors           ,EH01,Miscellaneous Agency Services           ,1420.00,15/06/2015,REV,BROADHAM CARE LTD             
259,Adult Social Care,OP 65 & Over Day Care,OP East - Daycare,W2LH33,Third Party Payments          ,Private Contractors           ,EH01,Miscellaneous Agency Services           ,-501.92,12/05/2015,REV,WOODLANDS                     
260,Adult Social Care,PS u65 Nursing Care Placements,PD R/Park-Nursing                       ,W2JM53,Third Party Payments          ,Private Contractors           ,EH01,Miscellaneous Contrct Services          ,774.00,18/05/2015,REV,LIFE STYLE CARE (2011) PLC    
261,Adult Social Care,PS u65 Nursing Care Placements,PD R/Park-Nursing                       ,W2JM53,Third Party Payments          ,Private Contractors           ,EH01,Miscellaneous Contrct Services          ,774.00,18/05/2015,REV,LIFE STYLE CARE (2011) PLC    
262,Adult Social Care,PS u65 Nursing Care Placements,PD R/Park-Nursing                       ,W2JM53,Third Party Payments          ,Private Contractors           ,EH01,Miscellaneous Contrct Services          ,774.00,18/05/2015,REV,LIFE STYLE CARE (2011) PLC    
263,Adult Social Care,PS u65 Nursing Care Placements,PD R/Park-Nursing                       ,W2JM53,Third Party Payments          ,Private Contractors           ,EH01,Miscellaneous Contrct Services          ,774.00,18/05/2015,REV,LIFE STYLE CARE (2011) PLC    
264,Adult Social Care,MH u65 Residentl Care Placemnt,MH ResidentialCare Ext - Wim,W2HC55,Third Party Payments          ,Private Contractors           ,EH01,Miscellaneous Agency Services           ,841.27,18/06/2015,REV,RNID                          
265,Adult Social Care,MH u65 Residentl Care Placemnt,MH ResidentialCare Ext - Wim,W2HC55,Third Party Payments          ,Private Contractors           ,EH01,Miscellaneous Agency Services           ,841.27,18/06/2015,REV,RNID                          
266,Adult Social Care,MH u65 Residentl Care Placemnt,MH ResidentialCare Ext - Wim,W2HC55,Third Party Payments          ,Private Contractors           ,EH01,Miscellaneous Agency Services           ,841.27,18/06/2015,REV,RNID                          
267,Adult Social Care,MH u65 Residentl Care Placemnt,MH ResidentialCare Ext - Wim,W2HC55,Third Party Payments          ,Private Contractors           ,EH01,Miscellaneous Agency Services           ,841.27,18/06/2015,REV,RNID                          
268,Adult Social Care,LD u65 Residentl Care Placemnt,LD Residential Care External,W2KB55,Third Party Payments          ,Private Contractors           ,EH01,Miscellaneous Agency Services           ,1420.00,15/06/2015,REV,BROADHAM CARE LTD             
269,Adult Social Care,LD u65 Residentl Care Placemnt,LD Residential Care External,W2KB55,Third Party Payments          ,Private Contractors           ,EH01,Miscellaneous Agency Services           ,1420.00,15/06/2015,REV,BROADHAM CARE LTD             
270,Adult Social Care,LD u65 Residentl Care Placemnt,LD Residential Care External,W2KB55,Third Party Payments          ,Private Contractors           ,EH01,Miscellaneous Agency Services           ,1144.28,01/06/2015,REV,CARRICKS BROOK                
271,Adult Social Care,LD u65 Residentl Care Placemnt,LD Residential Care External,W2KB55,Third Party Payments          ,Private Contractors           ,EH01,Miscellaneous Agency Services           ,1602.00,01/06/2015,REV,CARRICKS BROOK                
272,Adult Social Care,LD u65 Residentl Care Placemnt,LD Residential Care External,W2KB55,Third Party Payments          ,Private Contractors           ,EH01,Miscellaneous Agency Services           ,1602.00,01/06/2015,REV,CARRICKS BROOK                
273,Adult Social Care,LD u65 Residentl Care Placemnt,LD Residential Care External,W2KB55,Third Party Payments          ,Private Contractors           ,EH01,Miscellaneous Agency Services           ,1602.00,01/06/2015,REV,CARRICKS BROOK                
274,Adult Social Care,LD u65 Residentl Care Placemnt,LD Residential Care External,W2KB55,Third Party Payments          ,Private Contractors           ,EH01,Miscellaneous Agency Services           ,1602.00,01/06/2015,REV,CARRICKS BROOK                
275,Adult Social Care,LD u65 Residentl Care Placemnt,LD Residential Care External,W2KB55,Third Party Payments          ,Private Contractors           ,EH01,Miscellaneous Agency Services           ,1282.52,10/06/2015,REV,CARE ASPIRATIONS LIMITED      
276,Adult Social Care,LD u65 Residentl Care Placemnt,LD Residential Care External,W2KB55,Third Party Payments          ,Private Contractors           ,EH01,Miscellaneous Agency Services           ,1795.54,10/06/2015,REV,CARE ASPIRATIONS LIMITED      
277,Adult Social Care,LD u65 Residentl Care Placemnt,LD Residential Care External,W2KB55,Third Party Payments          ,Private Contractors           ,EH01,Miscellaneous Agency Services           ,1795.54,10/06/2015,REV,CARE ASPIRATIONS LIMITED      
278,Adult Social Care,LD u65 Residentl Care Placemnt,LD Residential Care External,W2KB55,Third Party Payments          ,Private Contractors           ,EH01,Miscellaneous Agency Services           ,1795.54,10/06/2015,REV,CARE ASPIRATIONS LIMITED      
279,Adult Social Care,LD u65 Residentl Care Placemnt,LD Residential Care External,W2KB55,Third Party Payments          ,Private Contractors           ,EH01,Miscellaneous Agency Services           ,1795.54,10/06/2015,REV,CARE ASPIRATIONS LIMITED      
280,Adult Social Care,LD u65 Residentl Care Placemnt,LD Residential Care External,W2KB55,Third Party Payments          ,Private Contractors           ,EH01,Miscellaneous Agency Services           ,-513.01,10/06/2015,REV,CARE ASPIRATIONS LIMITED      
281,Adult Social Care,LD u65 Residentl Care Placemnt,LD Residential Care External,W2KB55,Third Party Payments          ,Private Contractors           ,EH01,Miscellaneous Agency Services           ,1571.42,09/06/2015,REV,CHATSWORTH CARE               
282,Adult Social Care,LD u65 Residentl Care Placemnt,LD Residential Care External,W2KB55,Third Party Payments          ,Private Contractors           ,EH01,Miscellaneous Agency Services           ,2200.00,09/06/2015,REV,CHATSWORTH CARE               
283,Adult Social Care,LD u65 Residentl Care Placemnt,LD Residential Care External,W2KB55,Third Party Payments          ,Private Contractors           ,EH01,Miscellaneous Agency Services           ,2200.00,09/06/2015,REV,CHATSWORTH CARE               
284,Adult Social Care,LD u65 Residentl Care Placemnt,LD Residential Care External,W2KB55,Third Party Payments          ,Private Contractors           ,EH01,Miscellaneous Agency Services           ,2200.00,09/06/2015,REV,CHATSWORTH CARE               
285,Adult Social Care,LD u65 Residentl Care Placemnt,LD Residential Care External,W2KB55,Third Party Payments          ,Private Contractors           ,EH01,Miscellaneous Agency Services           ,2200.00,09/06/2015,REV,CHATSWORTH CARE               
286,Adult Social Care,LD u65 Residentl Care Placemnt,LD Residential Care External,W2KB55,Third Party Payments          ,Private Contractors           ,EH01,Miscellaneous Agency Services           ,-628.57,09/06/2015,REV,CHATSWORTH CARE               
287,Adult Social Care,LD u65 Residentl Care Placemnt,LD Residential Care External,W2KB55,Third Party Payments          ,Private Contractors           ,EH01,Miscellaneous Agency Services           ,628.57,09/06/2015,REV,CHATSWORTH CARE               
288,Adult Social Care,LD u65 Residentl Care Placemnt,LD Residential Care External,W2KB55,Third Party Payments          ,Private Contractors           ,EH01,Miscellaneous Agency Services           ,-628.57,09/06/2015,REV,CHATSWORTH CARE               
289,Adult Social Care,LD u65 Residentl Care Placemnt,LD Residential Care External,W2KB55,Third Party Payments          ,Private Contractors           ,EH01,Miscellaneous Agency Services           ,560.00,01/06/2015,REV,OAKDOWN HOUSE LTD             
290,Adult Social Care,LD u65 Residentl Care Placemnt,LD Residential Care External,W2KB55,Third Party Payments          ,Private Contractors           ,EH01,Miscellaneous Agency Services           ,560.00,01/06/2015,REV,OAKDOWN HOUSE LTD             
291,Adult Social Care,LD u65 Residentl Care Placemnt,LD Residential Care External,W2KB55,Third Party Payments          ,Private Contractors           ,EH01,Miscellaneous Agency Services           ,560.00,01/06/2015,REV,OAKDOWN HOUSE LTD             
292,Adult Social Care,LD u65 Residentl Care Placemnt,LD Residential Care External,W2KB55,Third Party Payments          ,Private Contractors           ,EH01,Miscellaneous Agency Services           ,560.00,01/06/2015,REV,OAKDOWN HOUSE LTD             
293,Childrens & Education Services,Family - Other Services,CS SWD Personal support                 ,W1CF49,Third Party Payments          ,Private Contractors           ,EH01,Miscellaneous Contrct Services          ,614.25,13/04/2015,REV,LITTLE CATERPILLARS PLAYGROUP 
294,Adult Social Care,OP 65 & Over Day Care,OP East - Daycare,W2LH33,Third Party Payments          ,Private Contractors           ,EH01,Miscellaneous Agency Services           ,-627.40,12/05/2015,REV,WOODLANDS                     
295,Adult Social Care,OP 65 & Over Day Care,OP East - Daycare,W2LH33,Third Party Payments          ,Private Contractors           ,EH01,Miscellaneous Agency Services           ,-878.36,12/05/2015,REV,WOODLANDS                     
296,Adult Social Care,OP 65 & Over Day Care,OP East - Daycare,W2LH33,Third Party Payments          ,Private Contractors           ,EH01,Miscellaneous Agency Services           ,-690.14,12/05/2015,REV,WOODLANDS                     
297,Childrens & Education Services,Asset Management,S106 Bid,K08077,Supplies & Services           ,Services                      ,DF09,Miscellaneous Fees                      ,1800.00,09/07/2015,REV,REDACTED
298,Childrens & Education Services,Leaving Care Services,CL Setting Up Home Allowance,W1DF41,Third Party Payments          ,Private Contractors           ,EH01,Miscellaneous Agency Services           ,1141.50,27/05/2015,REV,THE ARTEMIS TEAM LIMITED      
299,Adult Social Care,LD u65 Residentl Care Placemnt,LD Residential Care External,W2KB55,Third Party Payments          ,Private Contractors           ,EH01,Miscellaneous Agency Services           ,1115.23,18/06/2015,REV,REDACTED
300,Adult Social Care,LD u65 Residentl Care Placemnt,LD Residential Care External,W2KB55,Third Party Payments          ,Private Contractors           ,EH01,Miscellaneous Agency Services           ,1115.23,18/06/2015,REV,REDACTED
301,Adult Social Care,LD u65 Residentl Care Placemnt,LD Residential Care External,W2KB55,Third Party Payments          ,Private Contractors           ,EH01,Miscellaneous Agency Services           ,1115.23,18/06/2015,REV,REDACTED
302,Adult Social Care,LD u65 Residentl Care Placemnt,LD Residential Care External,W2KB55,Third Party Payments          ,Private Contractors           ,EH01,Miscellaneous Agency Services           ,1115.23,18/06/2015,REV,REDACTED
303,Adult Social Care,LD u65 Residentl Care Placemnt,LD Residential Care External,W2KB55,Third Party Payments          ,Private Contractors           ,EH01,Miscellaneous Agency Services           ,1195.00,10/07/2015,REV,GREENFIELD CARE HOMES LTD     
304,Adult Social Care,LD u65 Residentl Care Placemnt,LD Residential Care External,W2KB55,Third Party Payments          ,Private Contractors           ,EH01,Miscellaneous Agency Services           ,1195.00,10/07/2015,REV,GREENFIELD CARE HOMES LTD     
305,Adult Social Care,LD u65 Residentl Care Placemnt,LD Residential Care External,W2KB55,Third Party Payments          ,Private Contractors           ,EH01,Miscellaneous Agency Services           ,1195.00,10/07/2015,REV,GREENFIELD CARE HOMES LTD     
306,Adult Social Care,LD u65 Residentl Care Placemnt,LD Residential Care External,W2KB55,Third Party Payments          ,Private Contractors           ,EH01,Miscellaneous Agency Services           ,1195.00,10/07/2015,REV,GREENFIELD CARE HOMES LTD     
307,Adult Social Care,LD u65 Residentl Care Placemnt,LD Residential Care External,W2KB55,Third Party Payments          ,Private Contractors           ,EH01,Miscellaneous Agency Services           ,1156.00,10/07/2015,REV,GREENFIELD CARE HOMES LTD     
308,Adult Social Care,LD u65 Residentl Care Placemnt,LD Residential Care External,W2KB55,Third Party Payments          ,Private Contractors           ,EH01,Miscellaneous Agency Services           ,1156.00,10/07/2015,REV,GREENFIELD CARE HOMES LTD     
309,Adult Social Care,LD u65 Residentl Care Placemnt,LD Residential Care External,W2KB55,Third Party Payments          ,Private Contractors           ,EH01,Miscellaneous Agency Services           ,1156.00,10/07/2015,REV,GREENFIELD CARE HOMES LTD     
310,Adult Social Care,LD u65 Residentl Care Placemnt,LD Residential Care External,W2KB55,Third Party Payments          ,Private Contractors           ,EH01,Miscellaneous Agency Services           ,1156.00,10/07/2015,REV,GREENFIELD CARE HOMES LTD     
311,Adult Social Care,LD u65 Residentl Care Placemnt,LD Residential Care External,W2KB55,Third Party Payments          ,Private Contractors           ,EH01,Miscellaneous Agency Services           ,1186.00,10/07/2015,REV,GREENFIELD CARE HOMES LTD     
312,Adult Social Care,LD u65 Residentl Care Placemnt,LD Residential Care External,W2KB55,Third Party Payments          ,Private Contractors           ,EH01,Miscellaneous Agency Services           ,1186.00,10/07/2015,REV,GREENFIELD CARE HOMES LTD     
313,Adult Social Care,LD u65 Residentl Care Placemnt,LD Residential Care External,W2KB55,Third Party Payments          ,Private Contractors           ,EH01,Miscellaneous Agency Services           ,1186.00,10/07/2015,REV,GREENFIELD CARE HOMES LTD     
314,Adult Social Care,LD u65 Residentl Care Placemnt,LD Residential Care External,W2KB55,Third Party Payments          ,Private Contractors           ,EH01,Miscellaneous Agency Services           ,1186.00,10/07/2015,REV,GREENFIELD CARE HOMES LTD     
315,Adult Social Care,LD u65 Residentl Care Placemnt,LD Residential Care External,W2KB55,Third Party Payments          ,Private Contractors           ,EH01,Miscellaneous Agency Services           ,1195.00,10/07/2015,REV,GREENFIELD CARE HOMES LTD     
316,Adult Social Care,LD u65 Residentl Care Placemnt,LD Residential Care External,W2KB55,Third Party Payments          ,Private Contractors           ,EH01,Miscellaneous Agency Services           ,1195.00,10/07/2015,REV,GREENFIELD CARE HOMES LTD     
317,Adult Social Care,LD u65 Residentl Care Placemnt,LD Residential Care External,W2KB55,Third Party Payments          ,Private Contractors           ,EH01,Miscellaneous Agency Services           ,1195.00,10/07/2015,REV,GREENFIELD CARE HOMES LTD     
318,Adult Social Care,LD u65 Residentl Care Placemnt,LD Residential Care External,W2KB55,Third Party Payments          ,Private Contractors           ,EH01,Miscellaneous Agency Services           ,1195.00,10/07/2015,REV,GREENFIELD CARE HOMES LTD     
319,Adult Social Care,LD u65 Residentl Care Placemnt,LD Residential Care External,W2KB55,Third Party Payments          ,Private Contractors           ,EH01,Miscellaneous Agency Services           ,1183.00,10/07/2015,REV,GREENFIELD CARE HOMES LTD     
320,Adult Social Care,LD u65 Residentl Care Placemnt,LD Residential Care External,W2KB55,Third Party Payments          ,Private Contractors           ,EH01,Miscellaneous Agency Services           ,1183.00,10/07/2015,REV,GREENFIELD CARE HOMES LTD     
321,Adult Social Care,LD u65 Residentl Care Placemnt,LD Residential Care External,W2KB55,Third Party Payments          ,Private Contractors           ,EH01,Miscellaneous Agency Services           ,1183.00,10/07/2015,REV,GREENFIELD CARE HOMES LTD     
322,Adult Social Care,LD u65 Residentl Care Placemnt,LD Residential Care External,W2KB55,Third Party Payments          ,Private Contractors           ,EH01,Miscellaneous Agency Services           ,1183.00,10/07/2015,REV,GREENFIELD CARE HOMES LTD     
323,Adult Social Care,LD u65 Residentl Care Placemnt,LD Residential Care External,W2KB55,Third Party Payments          ,Private Contractors           ,EH01,Miscellaneous Agency Services           ,1195.00,10/07/2015,REV,GREENFIELD CARE HOMES LTD     
324,Adult Social Care,LD u65 Residentl Care Placemnt,LD Residential Care External,W2KB55,Third Party Payments          ,Private Contractors           ,EH01,Miscellaneous Agency Services           ,1195.00,10/07/2015,REV,GREENFIELD CARE HOMES LTD     
325,Adult Social Care,LD u65 Residentl Care Placemnt,LD Residential Care External,W2KB55,Third Party Payments          ,Private Contractors           ,EH01,Miscellaneous Agency Services           ,1195.00,10/07/2015,REV,GREENFIELD CARE HOMES LTD     
326,Adult Social Care,LD u65 Residentl Care Placemnt,LD Residential Care External,W2KB55,Third Party Payments          ,Private Contractors           ,EH01,Miscellaneous Agency Services           ,1195.00,10/07/2015,REV,GREENFIELD CARE HOMES LTD     
327,Adult Social Care,LD u65 Residentl Care Placemnt,LD Residential Care External,W2KB55,Third Party Payments          ,Private Contractors           ,EH01,Miscellaneous Agency Services           ,750.00,10/07/2015,REV,GREENFIELD CARE HOMES LTD     
328,Adult Social Care,LD u65 Residentl Care Placemnt,LD Residential Care External,W2KB55,Third Party Payments          ,Private Contractors           ,EH01,Miscellaneous Agency Services           ,750.00,10/07/2015,REV,GREENFIELD CARE HOMES LTD     
329,Adult Social Care,LD u65 Residentl Care Placemnt,LD Residential Care External,W2KB55,Third Party Payments          ,Private Contractors           ,EH01,Miscellaneous Agency Services           ,750.00,10/07/2015,REV,GREENFIELD CARE HOMES LTD     
330,Adult Social Care,LD u65 Residentl Care Placemnt,LD Residential Care External,W2KB55,Third Party Payments          ,Private Contractors           ,EH01,Miscellaneous Agency Services           ,750.00,10/07/2015,REV,GREENFIELD CARE HOMES LTD     
331,Adult Social Care,MH u65 Residentl Care Placemnt,MH ResidentialCare Ext-Morden,W2HB55,Third Party Payments          ,Private Contractors           ,EH01,Miscellaneous Agency Services           ,709.77,01/07/2015,REV,JANE'S HOUSE                  
332,Adult Social Care,MH u65 Residentl Care Placemnt,MH ResidentialCare Ext-Morden,W2HB55,Third Party Payments          ,Private Contractors           ,EH01,Miscellaneous Agency Services           ,709.77,01/07/2015,REV,JANE'S HOUSE                  
333,Adult Social Care,MH u65 Residentl Care Placemnt,MH ResidentialCare Ext-Morden,W2HB55,Third Party Payments          ,Private Contractors           ,EH01,Miscellaneous Agency Services           ,709.77,01/07/2015,REV,JANE'S HOUSE                  
334,Adult Social Care,MH u65 Residentl Care Placemnt,MH ResidentialCare Ext-Morden,W2HB55,Third Party Payments          ,Private Contractors           ,EH01,Miscellaneous Agency Services           ,709.77,01/07/2015,REV,JANE'S HOUSE                  
335,Adult Social Care,LD u65 Residentl Care Placemnt,LD Residential Care External,W2KB55,Third Party Payments          ,Private Contractors           ,EH01,Miscellaneous Agency Services           ,2661.43,10/06/2015,REV,ST JOHN'S SCHOOL AND COLLEGE  
336,Adult Social Care,LD u65 Residentl Care Placemnt,LD Residential Care External,W2KB55,Third Party Payments          ,Private Contractors           ,EH01,Miscellaneous Agency Services           ,3105.00,10/06/2015,REV,ST JOHN'S SCHOOL AND COLLEGE  
337,Adult Social Care,LD u65 Residentl Care Placemnt,LD Residential Care External,W2KB55,Third Party Payments          ,Private Contractors           ,EH01,Miscellaneous Agency Services           ,3105.00,10/06/2015,REV,ST JOHN'S SCHOOL AND COLLEGE  
338,Adult Social Care,LD u65 Residentl Care Placemnt,LD Residential Care External,W2KB55,Third Party Payments          ,Private Contractors           ,EH01,Miscellaneous Agency Services           ,3105.00,10/06/2015,REV,ST JOHN'S SCHOOL AND COLLEGE  
339,Adult Social Care,LD u65 Residentl Care Placemnt,LD Residential Care External,W2KB55,Third Party Payments          ,Private Contractors           ,EH01,Miscellaneous Agency Services           ,3105.00,10/06/2015,REV,ST JOHN'S SCHOOL AND COLLEGE  
340,Adult Social Care,LD u65 Residentl Care Placemnt,LD Residential Care External,W2KB55,Third Party Payments          ,Private Contractors           ,EH01,Miscellaneous Agency Services           ,2070.00,10/06/2015,REV,ST JOHN'S SCHOOL AND COLLEGE  
341,Adult Social Care,LD u65 Residentl Care Placemnt,LD Residential Care External,W2KB55,Third Party Payments          ,Private Contractors           ,EH01,Miscellaneous Agency Services           ,2070.00,10/06/2015,REV,ST JOHN'S SCHOOL AND COLLEGE  
342,Adult Social Care,LD u65 Residentl Care Placemnt,LD Residential Care External,W2KB55,Third Party Payments          ,Private Contractors           ,EH01,Miscellaneous Agency Services           ,2070.00,10/06/2015,REV,ST JOHN'S SCHOOL AND COLLEGE  
343,Adult Social Care,LD u65 Residentl Care Placemnt,LD Residential Care External,W2KB55,Third Party Payments          ,Private Contractors           ,EH01,Miscellaneous Agency Services           ,2070.00,10/06/2015,REV,ST JOHN'S SCHOOL AND COLLEGE  
344,Adult Social Care,LD u65 Residentl Care Placemnt,LD Residential Care External,W2KB55,Third Party Payments          ,Private Contractors           ,EH01,Miscellaneous Agency Services           ,2070.00,10/06/2015,REV,ST JOHN'S SCHOOL AND COLLEGE  
345,Adult Social Care,LD u65 Residentl Care Placemnt,LD Residential Care External,W2KB55,Third Party Payments          ,Private Contractors           ,EH01,Miscellaneous Agency Services           ,2070.00,10/06/2015,REV,ST JOHN'S SCHOOL AND COLLEGE  
346,Adult Social Care,LD u65 Residentl Care Placemnt,LD Residential Care External,W2KB55,Third Party Payments          ,Private Contractors           ,EH01,Miscellaneous Agency Services           ,2070.00,10/06/2015,REV,ST JOHN'S SCHOOL AND COLLEGE  
347,Adult Social Care,LD u65 Residentl Care Placemnt,LD Residential Care External,W2KB55,Third Party Payments          ,Private Contractors           ,EH01,Miscellaneous Agency Services           ,-887.14,10/06/2015,REV,ST JOHN'S SCHOOL AND COLLEGE  
348,Adult Social Care,LD u65 Residentl Care Placemnt,LD Residential Care External,W2KB55,Third Party Payments          ,Private Contractors           ,EH01,Miscellaneous Agency Services           ,887.14,10/06/2015,REV,ST JOHN'S SCHOOL AND COLLEGE  
349,Adult Social Care,LD u65 Residentl Care Placemnt,LD Residential Care External,W2KB55,Third Party Payments          ,Private Contractors           ,EH01,Miscellaneous Agency Services           ,1364.66,10/06/2015,REV,ST JOHN'S SCHOOL AND COLLEGE  
350,Adult Social Care,LD u65 Residentl Care Placemnt,LD Residential Care External,W2KB55,Third Party Payments          ,Private Contractors           ,EH01,Miscellaneous Agency Services           ,2388.15,10/06/2015,REV,ST JOHN'S SCHOOL AND COLLEGE  
351,Adult Social Care,LD u65 Residentl Care Placemnt,LD Residential Care External,W2KB55,Third Party Payments          ,Private Contractors           ,EH01,Miscellaneous Agency Services           ,2388.15,10/06/2015,REV,ST JOHN'S SCHOOL AND COLLEGE  
352,Adult Social Care,LD u65 Residentl Care Placemnt,LD Residential Care External,W2KB55,Third Party Payments          ,Private Contractors           ,EH01,Miscellaneous Agency Services           ,2388.15,10/06/2015,REV,ST JOHN'S SCHOOL AND COLLEGE  
353,Adult Social Care,LD u65 Residentl Care Placemnt,LD Residential Care External,W2KB55,Third Party Payments          ,Private Contractors           ,EH01,Miscellaneous Agency Services           ,2388.15,10/06/2015,REV,ST JOHN'S SCHOOL AND COLLEGE  
354,Adult Social Care,LD u65 Residentl Care Placemnt,LD Residential Care External,W2KB55,Third Party Payments          ,Private Contractors           ,EH01,Miscellaneous Agency Services           ,2388.15,10/06/2015,REV,ST JOHN'S SCHOOL AND COLLEGE  
355,Adult Social Care,LD u65 Residentl Care Placemnt,LD Residential Care External,W2KB55,Third Party Payments          ,Private Contractors           ,EH01,Miscellaneous Agency Services           ,2388.15,10/06/2015,REV,ST JOHN'S SCHOOL AND COLLEGE  
356,Adult Social Care,LD u65 Residentl Care Placemnt,LD Residential Care External,W2KB55,Third Party Payments          ,Private Contractors           ,EH01,Miscellaneous Agency Services           ,2388.15,10/06/2015,REV,ST JOHN'S SCHOOL AND COLLEGE  
357,Adult Social Care,LD u65 Residentl Care Placemnt,LD Residential Care External,W2KB55,Third Party Payments          ,Private Contractors           ,EH01,Miscellaneous Agency Services           ,2388.15,10/06/2015,REV,ST JOHN'S SCHOOL AND COLLEGE  
358,Adult Social Care,LD u65 Residentl Care Placemnt,LD Residential Care External,W2KB55,Third Party Payments          ,Private Contractors           ,EH01,Miscellaneous Agency Services           ,2388.15,10/06/2015,REV,ST JOHN'S SCHOOL AND COLLEGE  
359,Adult Social Care,LD u65 Residentl Care Placemnt,LD Residential Care External,W2KB55,Third Party Payments          ,Private Contractors           ,EH01,Miscellaneous Agency Services           ,2388.15,10/06/2015,REV,ST JOHN'S SCHOOL AND COLLEGE  
360,Adult Social Care,LD u65 Residentl Care Placemnt,LD Residential Care External,W2KB55,Third Party Payments          ,Private Contractors           ,EH01,Miscellaneous Agency Services           ,2388.15,10/06/2015,REV,ST JOHN'S SCHOOL AND COLLEGE  
361,Adult Social Care,LD u65 Residentl Care Placemnt,LD Residential Care External,W2KB55,Third Party Payments          ,Private Contractors           ,EH01,Miscellaneous Agency Services           ,2388.15,10/06/2015,REV,ST JOHN'S SCHOOL AND COLLEGE  
362,Adult Social Care,LD u65 Residentl Care Placemnt,LD Residential Care External,W2KB55,Third Party Payments          ,Private Contractors           ,EH01,Miscellaneous Agency Services           ,1023.49,10/06/2015,REV,ST JOHN'S SCHOOL AND COLLEGE  
363,Adult Social Care,LD u65 Residentl Care Placemnt,LD Residential Care External,W2KB55,Third Party Payments          ,Private Contractors           ,EH01,Miscellaneous Agency Services           ,1089.00,19/06/2015,REV,REDACTED
364,Adult Social Care,LD u65 Residentl Care Placemnt,LD Residential Care External,W2KB55,Third Party Payments          ,Private Contractors           ,EH01,Miscellaneous Agency Services           ,1089.00,19/06/2015,REV,REDACTED
365,Adult Social Care,LD u65 Residentl Care Placemnt,LD Residential Care External,W2KB55,Third Party Payments          ,Private Contractors           ,EH01,Miscellaneous Agency Services           ,1089.00,19/06/2015,REV,REDACTED
366,Adult Social Care,LD u65 Residentl Care Placemnt,LD Residential Care External,W2KB55,Third Party Payments          ,Private Contractors           ,EH01,Miscellaneous Agency Services           ,1089.00,19/06/2015,REV,REDACTED
367,Adult Social Care,LD u65 Residentl Care Placemnt,LD Residential Care External,W2KB55,Third Party Payments          ,Private Contractors           ,EH01,Miscellaneous Agency Services           ,1320.00,13/07/2015,REV,THE REGARD PARTNERSHIP LTD    
368,Adult Social Care,LD u65 Residentl Care Placemnt,LD Residential Care External,W2KB55,Third Party Payments          ,Private Contractors           ,EH01,Miscellaneous Agency Services           ,1320.00,13/07/2015,REV,THE REGARD PARTNERSHIP LTD    
369,Adult Social Care,LD u65 Residentl Care Placemnt,LD Residential Care External,W2KB55,Third Party Payments          ,Private Contractors           ,EH01,Miscellaneous Agency Services           ,1320.00,13/07/2015,REV,THE REGARD PARTNERSHIP LTD    
370,Adult Social Care,LD u65 Residentl Care Placemnt,LD Residential Care External,W2KB55,Third Party Payments          ,Private Contractors           ,EH01,Miscellaneous Agency Services           ,1320.00,13/07/2015,REV,THE REGARD PARTNERSHIP LTD    
371,Adult Social Care,LD u65 Residentl Care Placemnt,LD Residential Care External,W2KB55,Third Party Payments          ,Private Contractors           ,EH01,Miscellaneous Agency Services           ,1384.00,13/07/2015,REV,THE REGARD PARTNERSHIP LTD    
372,Adult Social Care,LD u65 Residentl Care Placemnt,LD Residential Care External,W2KB55,Third Party Payments          ,Private Contractors           ,EH01,Miscellaneous Agency Services           ,1384.00,13/07/2015,REV,THE REGARD PARTNERSHIP LTD    
373,Adult Social Care,LD u65 Residentl Care Placemnt,LD Residential Care External,W2KB55,Third Party Payments          ,Private Contractors           ,EH01,Miscellaneous Agency Services           ,1384.00,13/07/2015,REV,THE REGARD PARTNERSHIP LTD    
374,Adult Social Care,LD u65 Residentl Care Placemnt,LD Residential Care External,W2KB55,Third Party Payments          ,Private Contractors           ,EH01,Miscellaneous Agency Services           ,1384.00,13/07/2015,REV,THE REGARD PARTNERSHIP LTD    
375,Adult Social Care,LD u65 Residentl Care Placemnt,LD Residential Care External,W2KB55,Third Party Payments          ,Private Contractors           ,EH01,Miscellaneous Agency Services           ,1040.00,13/07/2015,REV,THE REGARD PARTNERSHIP LTD    
376,Adult Social Care,LD u65 Residentl Care Placemnt,LD Residential Care External,W2KB55,Third Party Payments          ,Private Contractors           ,EH01,Miscellaneous Agency Services           ,1040.00,13/07/2015,REV,THE REGARD PARTNERSHIP LTD    
377,Adult Social Care,LD u65 Residentl Care Placemnt,LD Residential Care External,W2KB55,Third Party Payments          ,Private Contractors           ,EH01,Miscellaneous Agency Services           ,1040.00,13/07/2015,REV,THE REGARD PARTNERSHIP LTD    
378,Adult Social Care,LD u65 Residentl Care Placemnt,LD Residential Care External,W2KB55,Third Party Payments          ,Private Contractors           ,EH01,Miscellaneous Agency Services           ,1040.00,13/07/2015,REV,THE REGARD PARTNERSHIP LTD    
379,Adult Social Care,LD u65 Residentl Care Placemnt,LD Residential Care External,W2KB55,Third Party Payments          ,Private Contractors           ,EH01,Miscellaneous Agency Services           ,1300.00,13/07/2015,REV,THE REGARD PARTNERSHIP LTD    
380,Adult Social Care,LD u65 Residentl Care Placemnt,LD Residential Care External,W2KB55,Third Party Payments          ,Private Contractors           ,EH01,Miscellaneous Agency Services           ,1300.00,13/07/2015,REV,THE REGARD PARTNERSHIP LTD    
381,Adult Social Care,LD u65 Residentl Care Placemnt,LD Residential Care External,W2KB55,Third Party Payments          ,Private Contractors           ,EH01,Miscellaneous Agency Services           ,1300.00,13/07/2015,REV,THE REGARD PARTNERSHIP LTD    
382,Adult Social Care,LD u65 Residentl Care Placemnt,LD Residential Care External,W2KB55,Third Party Payments          ,Private Contractors           ,EH01,Miscellaneous Agency Services           ,1300.00,13/07/2015,REV,THE REGARD PARTNERSHIP LTD    
383,Adult Social Care,OP 65&Over Resi Care Placement,OP West - Residential Care Ext,W2LG55,Third Party Payments          ,Private Contractors           ,EH01,Miscellaneous Agency Services           ,608.25,22/06/2015,REV,NIGHTINGALE HOUSE             
384,Adult Social Care,OP 65&Over Resi Care Placement,OP West - Residential Care Ext,W2LG55,Third Party Payments          ,Private Contractors           ,EH01,Miscellaneous Agency Services           ,608.25,22/06/2015,REV,NIGHTINGALE HOUSE             
385,Adult Social Care,OP 65&Over Resi Care Placement,OP West - Residential Care Ext,W2LG55,Third Party Payments          ,Private Contractors           ,EH01,Miscellaneous Agency Services           ,608.25,22/06/2015,REV,NIGHTINGALE HOUSE             
386,Adult Social Care,OP 65&Over Resi Care Placement,OP West - Residential Care Ext,W2LG55,Third Party Payments          ,Private Contractors           ,EH01,Miscellaneous Agency Services           ,608.25,22/06/2015,REV,NIGHTINGALE HOUSE             
387,Adult Social Care,LD u65 Residentl Care Placemnt,LD Residential Care External,W2KB55,Third Party Payments          ,Private Contractors           ,EH01,Miscellaneous Agency Services           ,1107.37,20/07/2015,REV,THE REGARD PARTNERSHIP LTD    
388,Adult Social Care,LD u65 Residentl Care Placemnt,LD Residential Care External,W2KB55,Third Party Payments          ,Private Contractors           ,EH01,Miscellaneous Agency Services           ,1107.37,20/07/2015,REV,THE REGARD PARTNERSHIP LTD    
389,Adult Social Care,LD u65 Residentl Care Placemnt,LD Residential Care External,W2KB55,Third Party Payments          ,Private Contractors           ,EH01,Miscellaneous Agency Services           ,1107.37,20/07/2015,REV,THE REGARD PARTNERSHIP LTD    
390,Adult Social Care,LD u65 Residentl Care Placemnt,LD Residential Care External,W2KB55,Third Party Payments          ,Private Contractors           ,EH01,Miscellaneous Agency Services           ,1107.37,20/07/2015,REV,THE REGARD PARTNERSHIP LTD    
391,Adult Social Care,LD u65 Residentl Care Placemnt,LD Residential Care External,W2KB55,Third Party Payments          ,Private Contractors           ,EH01,Miscellaneous Agency Services           ,1750.00,03/07/2015,REV,YOYAGE CARE LTD               
392,Adult Social Care,LD u65 Residentl Care Placemnt,LD Residential Care External,W2KB55,Third Party Payments          ,Private Contractors           ,EH01,Miscellaneous Agency Services           ,1750.00,03/07/2015,REV,YOYAGE CARE LTD               
393,Adult Social Care,LD u65 Residentl Care Placemnt,LD Residential Care External,W2KB55,Third Party Payments          ,Private Contractors           ,EH01,Miscellaneous Agency Services           ,1750.00,03/07/2015,REV,YOYAGE CARE LTD               
394,Adult Social Care,LD u65 Residentl Care Placemnt,LD Residential Care External,W2KB55,Third Party Payments          ,Private Contractors           ,EH01,Miscellaneous Agency Services           ,1750.00,03/07/2015,REV,YOYAGE CARE LTD               
395,Adult Social Care,LD u65 Residentl Care Placemnt,LD Residential Care External,W2KB55,Third Party Payments          ,Private Contractors           ,EH01,Miscellaneous Agency Services           ,1291.00,03/07/2015,REV,YOYAGE CARE LTD               
396,Adult Social Care,LD u65 Residentl Care Placemnt,LD Residential Care External,W2KB55,Third Party Payments          ,Private Contractors           ,EH01,Miscellaneous Agency Services           ,1291.00,03/07/2015,REV,YOYAGE CARE LTD               
397,Adult Social Care,LD u65 Residentl Care Placemnt,LD Residential Care External,W2KB55,Third Party Payments          ,Private Contractors           ,EH01,Miscellaneous Agency Services           ,1291.00,03/07/2015,REV,YOYAGE CARE LTD               
398,Adult Social Care,LD u65 Residentl Care Placemnt,LD Residential Care External,W2KB55,Third Party Payments          ,Private Contractors           ,EH01,Miscellaneous Agency Services           ,1291.00,03/07/2015,REV,YOYAGE CARE LTD               
399,Adult Social Care,LD u65 Residentl Care Placemnt,LD Residential Care External,W2KB55,Third Party Payments          ,Private Contractors           ,EH01,Miscellaneous Agency Services           ,1600.00,01/07/2015,REV,YOYAGE CARE LTD               
400,Adult Social Care,LD u65 Residentl Care Placemnt,LD Residential Care External,W2KB55,Third Party Payments          ,Private Contractors           ,EH01,Miscellaneous Agency Services           ,1600.00,01/07/2015,REV,YOYAGE CARE LTD               
401,Adult Social Care,LD u65 Residentl Care Placemnt,LD Residential Care External,W2KB55,Third Party Payments          ,Private Contractors           ,EH01,Miscellaneous Agency Services           ,1600.00,01/07/2015,REV,YOYAGE CARE LTD               
402,Adult Social Care,LD u65 Residentl Care Placemnt,LD Residential Care External,W2KB55,Third Party Payments          ,Private Contractors           ,EH01,Miscellaneous Agency Services           ,1600.00,01/07/2015,REV,YOYAGE CARE LTD               
403,Childrens & Education Services,Leaving Care Services,CL Setting Up Home Allowance,W1DF41,Third Party Payments          ,Private Contractors           ,EH01,Miscellaneous Agency Services           ,750.00,10/07/2015,REV,REDACTED
404,Adult Social Care,LD u65 Residentl Care Placemnt,LD Residential Care External,W2KB55,Third Party Payments          ,Private Contractors           ,EH01,Miscellaneous Agency Services           ,17247.00,25/03/2015,REV,ST JOSEPHS SCHOOL             
405,Adult Social Care,OP 65&Over Resi Care Placement,OP West - Residential Care Ext,W2LG55,Third Party Payments          ,Private Contractors           ,EH01,Miscellaneous Agency Services           ,521.99,20/04/2015,REV,BUPA CARE HOMES               
406,Adult Social Care,OP 65&Over Resi Care Placement,OP West - Residential Care Ext,W2LG55,Third Party Payments          ,Private Contractors           ,EH01,Miscellaneous Agency Services           ,521.99,20/04/2015,REV,BUPA CARE HOMES               
407,Adult Social Care,OP 65&Over Resi Care Placement,OP West - Residential Care Ext,W2LG55,Third Party Payments          ,Private Contractors           ,EH01,Miscellaneous Agency Services           ,521.99,20/04/2015,REV,BUPA CARE HOMES               
408,Adult Social Care,OP 65&Over Resi Care Placement,OP West - Residential Care Ext,W2LG55,Third Party Payments          ,Private Contractors           ,EH01,Miscellaneous Agency Services           ,521.99,20/04/2015,REV,BUPA CARE HOMES               
409,Adult Social Care,PS u65 Nursing Care Placements,PD EAST TEAM-Nursing,W2JJ53,Third Party Payments          ,Private Contractors           ,EH01,Miscellaneous Agency Services           ,1200.00,19/06/2015,REV,HAVERING COURT NURSING HOME   
410,Adult Social Care,PS u65 Nursing Care Placements,PD EAST TEAM-Nursing,W2JJ53,Third Party Payments          ,Private Contractors           ,EH01,Miscellaneous Agency Services           ,1200.00,19/06/2015,REV,HAVERING COURT NURSING HOME   
411,Adult Social Care,PS u65 Nursing Care Placements,PD EAST TEAM-Nursing,W2JJ53,Third Party Payments          ,Private Contractors           ,EH01,Miscellaneous Agency Services           ,1200.00,19/06/2015,REV,HAVERING COURT NURSING HOME   
412,Adult Social Care,PS u65 Nursing Care Placements,PD EAST TEAM-Nursing,W2JJ53,Third Party Payments          ,Private Contractors           ,EH01,Miscellaneous Agency Services           ,1200.00,19/06/2015,REV,HAVERING COURT NURSING HOME   
413,Adult Social Care,PS u65 Nursing Care Placements,PD EAST TEAM-Nursing,W2JJ53,Third Party Payments          ,Private Contractors           ,EH01,Miscellaneous Agency Services           ,800.00,18/05/2015,REV,LIFE STYLE CARE (2011) PLC    
414,Adult Social Care,PS u65 Nursing Care Placements,PD EAST TEAM-Nursing,W2JJ53,Third Party Payments          ,Private Contractors           ,EH01,Miscellaneous Agency Services           ,800.00,18/05/2015,REV,LIFE STYLE CARE (2011) PLC    
415,Adult Social Care,LD u65 Residentl Care Placemnt,LD Residential Care External,W2KB55,Third Party Payments          ,Private Contractors           ,EH01,Miscellaneous Agency Services           ,1670.50,29/06/2015,REV,ELIZABETH FITZROY HOMES       
416,Adult Social Care,LD u65 Residentl Care Placemnt,LD Residential Care External,W2KB55,Third Party Payments          ,Private Contractors           ,EH01,Miscellaneous Agency Services           ,1670.50,29/06/2015,REV,ELIZABETH FITZROY HOMES       
417,Adult Social Care,LD u65 Residentl Care Placemnt,LD Residential Care External,W2KB55,Third Party Payments          ,Private Contractors           ,EH01,Miscellaneous Agency Services           ,1670.50,29/06/2015,REV,ELIZABETH FITZROY HOMES       
418,Adult Social Care,LD u65 Residentl Care Placemnt,LD Residential Care External,W2KB55,Third Party Payments          ,Private Contractors           ,EH01,Miscellaneous Agency Services           ,1670.50,29/06/2015,REV,ELIZABETH FITZROY HOMES       
419,Adult Social Care,LD u65 Residentl Care Placemnt,LD Residential Care External,W2KB55,Third Party Payments          ,Private Contractors           ,EH01,Miscellaneous Agency Services           ,1482.92,29/06/2015,REV,THE LEO TRUST                 
420,Adult Social Care,LD u65 Residentl Care Placemnt,LD Residential Care External,W2KB55,Third Party Payments          ,Private Contractors           ,EH01,Miscellaneous Agency Services           ,1482.92,29/06/2015,REV,THE LEO TRUST                 
421,Adult Social Care,LD u65 Residentl Care Placemnt,LD Residential Care External,W2KB55,Third Party Payments          ,Private Contractors           ,EH01,Miscellaneous Agency Services           ,1482.92,29/06/2015,REV,THE LEO TRUST                 
422,Adult Social Care,LD u65 Residentl Care Placemnt,LD Residential Care External,W2KB55,Third Party Payments          ,Private Contractors           ,EH01,Miscellaneous Agency Services           ,1482.92,29/06/2015,REV,THE LEO TRUST                 
423,Adult Social Care,LD u65 Residentl Care Placemnt,LD Residential Care External,W2KB55,Third Party Payments          ,Private Contractors           ,EH01,Miscellaneous Agency Services           ,1000.00,29/06/2015,REV,ODYSSEY CARE SOLUTIONS        
424,Adult Social Care,LD u65 Residentl Care Placemnt,LD Residential Care External,W2KB55,Third Party Payments          ,Private Contractors           ,EH01,Miscellaneous Agency Services           ,1000.00,29/06/2015,REV,ODYSSEY CARE SOLUTIONS        
425,Adult Social Care,LD u65 Residentl Care Placemnt,LD Residential Care External,W2KB55,Third Party Payments          ,Private Contractors           ,EH01,Miscellaneous Agency Services           ,1000.00,29/06/2015,REV,ODYSSEY CARE SOLUTIONS        
426,Adult Social Care,LD u65 Residentl Care Placemnt,LD Residential Care External,W2KB55,Third Party Payments          ,Private Contractors           ,EH01,Miscellaneous Agency Services           ,1000.00,29/06/2015,REV,ODYSSEY CARE SOLUTIONS        
427,Adult Social Care,LD u65 Residentl Care Placemnt,LD Residential Care External,W2KB55,Third Party Payments          ,Private Contractors           ,EH01,Miscellaneous Agency Services           ,1635.23,14/06/2015,REV,SPRING LAKE CARE HOME LTD     
428,Adult Social Care,LD u65 Residentl Care Placemnt,LD Residential Care External,W2KB55,Third Party Payments          ,Private Contractors           ,EH01,Miscellaneous Agency Services           ,1635.23,14/06/2015,REV,SPRING LAKE CARE HOME LTD     
429,Adult Social Care,LD u65 Residentl Care Placemnt,LD Residential Care External,W2KB55,Third Party Payments          ,Private Contractors           ,EH01,Miscellaneous Agency Services           ,1635.23,14/06/2015,REV,SPRING LAKE CARE HOME LTD     
430,Adult Social Care,LD u65 Residentl Care Placemnt,LD Residential Care External,W2KB55,Third Party Payments          ,Private Contractors           ,EH01,Miscellaneous Agency Services           ,1635.23,14/06/2015,REV,SPRING LAKE CARE HOME LTD     
431,Adult Social Care,LD u65 Residentl Care Placemnt,LD Residential Care External,W2KB55,Third Party Payments          ,Private Contractors           ,EH01,Miscellaneous Agency Services           ,1635.23,12/07/2015,REV,SPRING LAKE CARE HOME LTD     
432,Adult Social Care,LD u65 Residentl Care Placemnt,LD Residential Care External,W2KB55,Third Party Payments          ,Private Contractors           ,EH01,Miscellaneous Agency Services           ,1635.23,12/07/2015,REV,SPRING LAKE CARE HOME LTD     
433,Adult Social Care,LD u65 Residentl Care Placemnt,LD Residential Care External,W2KB55,Third Party Payments          ,Private Contractors           ,EH01,Miscellaneous Agency Services           ,1635.23,12/07/2015,REV,SPRING LAKE CARE HOME LTD     
434,Adult Social Care,PS u65 Nursing Care Placements,PD EAST TEAM-Nursing,W2JJ53,Third Party Payments          ,Private Contractors           ,EH01,Miscellaneous Agency Services           ,800.00,18/05/2015,REV,LIFE STYLE CARE (2011) PLC    
435,Adult Social Care,PS u65 Nursing Care Placements,PD EAST TEAM-Nursing,W2JJ53,Third Party Payments          ,Private Contractors           ,EH01,Miscellaneous Agency Services           ,800.00,18/05/2015,REV,LIFE STYLE CARE (2011) PLC    
436,Adult Social Care,OP 65&Over Resi Care Placement,OP West - Residential Care Ext,W2LG55,Third Party Payments          ,Private Contractors           ,EH01,Miscellaneous Agency Services           ,550.00,30/05/2015,REV,WHEATLANDS CARE HOME          
437,Adult Social Care,OP 65&Over Resi Care Placement,OP West - Residential Care Ext,W2LG55,Third Party Payments          ,Private Contractors           ,EH01,Miscellaneous Agency Services           ,550.00,30/05/2015,REV,WHEATLANDS CARE HOME          
438,Adult Social Care,OP 65&Over Resi Care Placement,OP West - Residential Care Ext,W2LG55,Third Party Payments          ,Private Contractors           ,EH01,Miscellaneous Agency Services           ,550.00,30/05/2015,REV,WHEATLANDS CARE HOME          
439,Adult Social Care,OP 65&Over Resi Care Placement,OP West - Residential Care Ext,W2LG55,Third Party Payments          ,Private Contractors           ,EH01,Miscellaneous Agency Services           ,550.00,30/05/2015,REV,WHEATLANDS CARE HOME          
440,Adult Social Care,LD u65 Residentl Care Placemnt,LD Residential Care External,W2KB55,Third Party Payments          ,Private Contractors           ,EH01,Miscellaneous Agency Services           ,1635.23,12/07/2015,REV,SPRING LAKE CARE HOME LTD     
441,Adult Social Care,LD u65 Residentl Care Placemnt,LD Residential Care External,W2KB55,Third Party Payments          ,Private Contractors           ,EH01,Miscellaneous Agency Services           ,2785.00,14/06/2015,REV,SPRING LAKE CARE HOME LTD     
442,Adult Social Care,LD u65 Residentl Care Placemnt,LD Residential Care External,W2KB55,Third Party Payments          ,Private Contractors           ,EH01,Miscellaneous Agency Services           ,2785.00,14/06/2015,REV,SPRING LAKE CARE HOME LTD     
443,Adult Social Care,LD u65 Residentl Care Placemnt,LD Residential Care External,W2KB55,Third Party Payments          ,Private Contractors           ,EH01,Miscellaneous Agency Services           ,2785.00,14/06/2015,REV,SPRING LAKE CARE HOME LTD     
444,Adult Social Care,LD u65 Residentl Care Placemnt,LD Residential Care External,W2KB55,Third Party Payments          ,Private Contractors           ,EH01,Miscellaneous Agency Services           ,2785.00,14/06/2015,REV,SPRING LAKE CARE HOME LTD     
445,Adult Social Care,LD u65 Residentl Care Placemnt,LD Residential Care External,W2KB55,Third Party Payments          ,Private Contractors           ,EH01,Miscellaneous Agency Services           ,2785.00,12/07/2015,REV,SPRING LAKE CARE HOME LTD     
446,Adult Social Care,LD u65 Residentl Care Placemnt,LD Residential Care External,W2KB55,Third Party Payments          ,Private Contractors           ,EH01,Miscellaneous Agency Services           ,2785.00,12/07/2015,REV,SPRING LAKE CARE HOME LTD     
447,Adult Social Care,LD u65 Residentl Care Placemnt,LD Residential Care External,W2KB55,Third Party Payments          ,Private Contractors           ,EH01,Miscellaneous Agency Services           ,2785.00,12/07/2015,REV,SPRING LAKE CARE HOME LTD     
448,Adult Social Care,LD u65 Residentl Care Placemnt,LD Residential Care External,W2KB55,Third Party Payments          ,Private Contractors           ,EH01,Miscellaneous Agency Services           ,2785.00,12/07/2015,REV,SPRING LAKE CARE HOME LTD     
449,Childrens & Education Services,Leaving Care Services,CL Setting Up Home Allowance,W1DF41,Third Party Payments          ,Private Contractors           ,EH01,Miscellaneous Agency Services           ,750.00,14/07/2015,REV,REDACTED
450,Childrens & Education Services,Leaving Care Services,CL Setting Up Home Allowance,W1DF41,Third Party Payments          ,Private Contractors           ,EH01,Miscellaneous Agency Services           ,750.00,14/07/2015,REV,REDACTED
451,Adult Social Care,LD u65 Residentl Care Placemnt,LD Residential Care External,W2KB55,Third Party Payments          ,Private Contractors           ,EH01,Miscellaneous Agency Services           ,1013.00,13/07/2015,REV,HAYDON PARK LODGE             
452,Adult Social Care,LD u65 Residentl Care Placemnt,LD Residential Care External,W2KB55,Third Party Payments          ,Private Contractors           ,EH01,Miscellaneous Agency Services           ,1013.00,13/07/2015,REV,HAYDON PARK LODGE             
453,Adult Social Care,LD u65 Residentl Care Placemnt,LD Residential Care External,W2KB55,Third Party Payments          ,Private Contractors           ,EH01,Miscellaneous Agency Services           ,1013.00,13/07/2015,REV,HAYDON PARK LODGE             
454,Adult Social Care,LD u65 Residentl Care Placemnt,LD Residential Care External,W2KB55,Third Party Payments          ,Private Contractors           ,EH01,Miscellaneous Agency Services           ,1013.00,13/07/2015,REV,HAYDON PARK LODGE             
455,Adult Social Care,LD u65 Residentl Care Placemnt,LD Residential Care External,W2KB55,Third Party Payments          ,Private Contractors           ,EH01,Miscellaneous Agency Services           ,585.46,13/07/2015,REV,HAYDON PARK LODGE             
456,Adult Social Care,LD u65 Residentl Care Placemnt,LD Residential Care External,W2KB55,Third Party Payments          ,Private Contractors           ,EH01,Miscellaneous Agency Services           ,585.46,13/07/2015,REV,HAYDON PARK LODGE             
457,Adult Social Care,LD u65 Residentl Care Placemnt,LD Residential Care External,W2KB55,Third Party Payments          ,Private Contractors           ,EH01,Miscellaneous Agency Services           ,585.46,13/07/2015,REV,HAYDON PARK LODGE             
458,Adult Social Care,LD u65 Residentl Care Placemnt,LD Residential Care External,W2KB55,Third Party Payments          ,Private Contractors           ,EH01,Miscellaneous Agency Services           ,585.46,13/07/2015,REV,HAYDON PARK LODGE             
459,Adult Social Care,LD u65 Residentl Care Placemnt,LD Residential Care External,W2KB55,Third Party Payments          ,Private Contractors           ,EH01,Miscellaneous Agency Services           ,964.00,13/07/2015,REV,HAYDON PARK LODGE             
460,Adult Social Care,LD u65 Residentl Care Placemnt,LD Residential Care External,W2KB55,Third Party Payments          ,Private Contractors           ,EH01,Miscellaneous Agency Services           ,964.00,13/07/2015,REV,HAYDON PARK LODGE             
461,Adult Social Care,LD u65 Residentl Care Placemnt,LD Residential Care External,W2KB55,Third Party Payments          ,Private Contractors           ,EH01,Miscellaneous Agency Services           ,964.00,13/07/2015,REV,HAYDON PARK LODGE             
462,Adult Social Care,LD u65 Residentl Care Placemnt,LD Residential Care External,W2KB55,Third Party Payments          ,Private Contractors           ,EH01,Miscellaneous Agency Services           ,964.00,13/07/2015,REV,HAYDON PARK LODGE             
463,Adult Social Care,LD u65 Residentl Care Placemnt,LD Comm-Residential-Surrey Oak,W2KT55,Third Party Payments          ,Private Contractors           ,EH01,MISCELLANEOUS AGENCY SERVICES           ,1635.53,30/06/2015,REV,SURREY & BORDERS PARTNERSHIP  
464,Adult Social Care,LD u65 Residentl Care Placemnt,LD Comm-Residential-Surrey Oak,W2KT55,Third Party Payments          ,Private Contractors           ,EH01,MISCELLANEOUS AGENCY SERVICES           ,2862.18,30/06/2015,REV,SURREY & BORDERS PARTNERSHIP  
465,Adult Social Care,LD u65 Residentl Care Placemnt,LD Comm-Residential-Surrey Oak,W2KT55,Third Party Payments          ,Private Contractors           ,EH01,MISCELLANEOUS AGENCY SERVICES           ,2862.18,30/06/2015,REV,SURREY & BORDERS PARTNERSHIP  
466,Adult Social Care,LD u65 Residentl Care Placemnt,LD Comm-Residential-Surrey Oak,W2KT55,Third Party Payments          ,Private Contractors           ,EH01,MISCELLANEOUS AGENCY SERVICES           ,2862.18,30/06/2015,REV,SURREY & BORDERS PARTNERSHIP  
467,Adult Social Care,LD u65 Residentl Care Placemnt,LD Comm-Residential-Surrey Oak,W2KT55,Third Party Payments          ,Private Contractors           ,EH01,MISCELLANEOUS AGENCY SERVICES           ,2862.18,30/06/2015,REV,SURREY & BORDERS PARTNERSHIP  
468,Adult Social Care,LD u65 Residentl Care Placemnt,LD Comm-Residential-Surrey Oak,W2KT55,Third Party Payments          ,Private Contractors           ,EH01,MISCELLANEOUS AGENCY SERVICES           ,-1635.53,30/06/2015,REV,SURREY & BORDERS PARTNERSHIP  
469,Adult Social Care,LD u65 Residentl Care Placemnt,LD Residential Care External,W2KB55,Third Party Payments          ,Private Contractors           ,EH01,Miscellaneous Agency Services           ,930.00,13/07/2015,REV,HAYDON PARK LODGE             
470,Adult Social Care,LD u65 Residentl Care Placemnt,LD Residential Care External,W2KB55,Third Party Payments          ,Private Contractors           ,EH01,Miscellaneous Agency Services           ,930.00,13/07/2015,REV,HAYDON PARK LODGE             
471,Adult Social Care,LD u65 Residentl Care Placemnt,LD Residential Care External,W2KB55,Third Party Payments          ,Private Contractors           ,EH01,Miscellaneous Agency Services           ,930.00,13/07/2015,REV,HAYDON PARK LODGE             
472,Adult Social Care,LD u65 Residentl Care Placemnt,LD Residential Care External,W2KB55,Third Party Payments          ,Private Contractors           ,EH01,Miscellaneous Agency Services           ,930.00,13/07/2015,REV,HAYDON PARK LODGE             
473,Adult Social Care,LD u65 Residentl Care Placemnt,LD Residential Care External,W2KB55,Third Party Payments          ,Private Contractors           ,EH01,Miscellaneous Agency Services           ,1013.00,13/07/2015,REV,HAYDON PARK LODGE             
474,Adult Social Care,LD u65 Residentl Care Placemnt,LD Residential Care External,W2KB55,Third Party Payments          ,Private Contractors           ,EH01,Miscellaneous Agency Services           ,1013.00,13/07/2015,REV,HAYDON PARK LODGE             
475,Adult Social Care,LD u65 Residentl Care Placemnt,LD Residential Care External,W2KB55,Third Party Payments          ,Private Contractors           ,EH01,Miscellaneous Agency Services           ,1013.00,13/07/2015,REV,HAYDON PARK LODGE             
476,Adult Social Care,LD u65 Residentl Care Placemnt,LD Residential Care External,W2KB55,Third Party Payments          ,Private Contractors           ,EH01,Miscellaneous Agency Services           ,1013.00,13/07/2015,REV,HAYDON PARK LODGE             
477,Adult Social Care,LD u65 Residentl Care Placemnt,LD Residential Care External,W2KB55,Third Party Payments          ,Private Contractors           ,EH01,Miscellaneous Agency Services           ,585.46,13/07/2015,REV,HAYDON PARK LODGE             
478,Adult Social Care,LD u65 Residentl Care Placemnt,LD Residential Care External,W2KB55,Third Party Payments          ,Private Contractors           ,EH01,Miscellaneous Agency Services           ,585.46,13/07/2015,REV,HAYDON PARK LODGE             
479,Adult Social Care,LD u65 Residentl Care Placemnt,LD Residential Care External,W2KB55,Third Party Payments          ,Private Contractors           ,EH01,Miscellaneous Agency Services           ,585.46,13/07/2015,REV,HAYDON PARK LODGE             
480,Adult Social Care,LD u65 Residentl Care Placemnt,LD Residential Care External,W2KB55,Third Party Payments          ,Private Contractors           ,EH01,Miscellaneous Agency Services           ,585.46,13/07/2015,REV,HAYDON PARK LODGE             
481,Adult Social Care,LD u65 Residentl Care Placemnt,LD Residential Care External,W2KB55,Third Party Payments          ,Private Contractors           ,EH01,Miscellaneous Agency Services           ,988.00,13/07/2015,REV,HAYDON PARK LODGE             
482,Adult Social Care,LD u65 Residentl Care Placemnt,LD Residential Care External,W2KB55,Third Party Payments          ,Private Contractors           ,EH01,Miscellaneous Agency Services           ,988.00,13/07/2015,REV,HAYDON PARK LODGE             
483,Adult Social Care,LD u65 Residentl Care Placemnt,LD Residential Care External,W2KB55,Third Party Payments          ,Private Contractors           ,EH01,Miscellaneous Agency Services           ,988.00,13/07/2015,REV,HAYDON PARK LODGE             
484,Adult Social Care,LD u65 Residentl Care Placemnt,LD Residential Care External,W2KB55,Third Party Payments          ,Private Contractors           ,EH01,Miscellaneous Agency Services           ,988.00,13/07/2015,REV,HAYDON PARK LODGE             
485,Adult Social Care,LD u65 Residentl Care Placemnt,LD Residential Care External,W2KB55,Third Party Payments          ,Private Contractors           ,EH01,Miscellaneous Agency Services           ,585.46,13/07/2015,REV,HAYDON PARK LODGE             
486,Adult Social Care,LD u65 Residentl Care Placemnt,LD Residential Care External,W2KB55,Third Party Payments          ,Private Contractors           ,EH01,Miscellaneous Agency Services           ,585.46,13/07/2015,REV,HAYDON PARK LODGE             
487,Adult Social Care,LD u65 Residentl Care Placemnt,LD Residential Care External,W2KB55,Third Party Payments          ,Private Contractors           ,EH01,Miscellaneous Agency Services           ,585.46,13/07/2015,REV,HAYDON PARK LODGE             
488,Adult Social Care,LD u65 Residentl Care Placemnt,LD Residential Care External,W2KB55,Third Party Payments          ,Private Contractors           ,EH01,Miscellaneous Agency Services           ,585.46,13/07/2015,REV,HAYDON PARK LODGE             
489,Adult Social Care,LD u65 Residentl Care Placemnt,LD Residential Care External,W2KB55,Third Party Payments          ,Private Contractors           ,EH01,Miscellaneous Agency Services           ,800.00,14/07/2015,REV,ST GEORGES RES. CARE HOME     
490,Adult Social Care,LD u65 Residentl Care Placemnt,LD Residential Care External,W2KB55,Third Party Payments          ,Private Contractors           ,EH01,Miscellaneous Agency Services           ,800.00,14/07/2015,REV,ST GEORGES RES. CARE HOME     
491,Adult Social Care,LD u65 Residentl Care Placemnt,LD Residential Care External,W2KB55,Third Party Payments          ,Private Contractors           ,EH01,Miscellaneous Agency Services           ,800.00,14/07/2015,REV,ST GEORGES RES. CARE HOME     
492,Adult Social Care,LD u65 Residentl Care Placemnt,LD Residential Care External,W2KB55,Third Party Payments          ,Private Contractors           ,EH01,Miscellaneous Agency Services           ,800.00,14/07/2015,REV,ST GEORGES RES. CARE HOME     
493,Childrens & Education Services,Leaving Care Services,"MASH, FR and VCT NRTPF                  ",W1CE39,Third Party Payments          ,Private Contractors           ,EH04,Accommodation Based Support             ,2015.00,08/07/2015,REV,EURO HOTELS(GILROY COURT)LTD  
494,Childrens & Education Services,Leaving Care Services,"MASH, FR and VCT NRTPF                  ",W1CE39,Third Party Payments          ,Private Contractors           ,EH04,Accommodation Based Support             ,1285.50,08/07/2015,REV,ROOMS & STUDIOS MANAGEMENT    
495,Adult Social Care,PS u65 Nursing Care Placements,PD R/Park-Nursing                       ,W2JM53,Third Party Payments          ,Private Contractors           ,EH01,Miscellaneous Contrct Services          ,850.00,18/05/2015,REV,LIFE STYLE CARE (2011) PLC    
496,Adult Social Care,PS u65 Nursing Care Placements,PD R/Park-Nursing                       ,W2JM53,Third Party Payments          ,Private Contractors           ,EH01,Miscellaneous Contrct Services          ,850.00,18/05/2015,REV,LIFE STYLE CARE (2011) PLC    
497,Adult Social Care,PS u65 Nursing Care Placements,PD R/Park-Nursing                       ,W2JM53,Third Party Payments          ,Private Contractors           ,EH01,Miscellaneous Contrct Services          ,850.00,18/05/2015,REV,LIFE STYLE CARE (2011) PLC    
498,Adult Social Care,PS u65 Nursing Care Placements,PD R/Park-Nursing                       ,W2JM53,Third Party Payments          ,Private Contractors           ,EH01,Miscellaneous Contrct Services          ,850.00,18/05/2015,REV,LIFE STYLE CARE (2011) PLC    
499,Adult Social Care,LD u65 Residentl Care Placemnt,LD Residential Care External,W2KB55,Third Party Payments          ,Private Contractors           ,EH01,Miscellaneous Agency Services           ,1150.00,14/07/2015,REV,ST GEORGES RES. CARE HOME     
500,Adult Social Care,LD u65 Residentl Care Placemnt,LD Residential Care External,W2KB55,Third Party Payments          ,Private Contractors           ,EH01,Miscellaneous Agency Services           ,1150.00,14/07/2015,REV,ST GEORGES RES. CARE HOME     
501,Adult Social Care,LD u65 Residentl Care Placemnt,LD Residential Care External,W2KB55,Third Party Payments          ,Private Contractors           ,EH01,Miscellaneous Agency Services           ,1150.00,14/07/2015,REV,ST GEORGES RES. CARE HOME     
502,Adult Social Care,LD u65 Residentl Care Placemnt,LD Residential Care External,W2KB55,Third Party Payments          ,Private Contractors           ,EH01,Miscellaneous Agency Services           ,1150.00,14/07/2015,REV,ST GEORGES RES. CARE HOME     
503,Adult Social Care,LD u65 Residentl Care Placemnt,LD Residential Care External,W2KB55,Third Party Payments          ,Private Contractors           ,EH01,Miscellaneous Agency Services           ,950.00,14/07/2015,REV,ST GEORGES RES. CARE HOME     
504,Adult Social Care,LD u65 Residentl Care Placemnt,LD Residential Care External,W2KB55,Third Party Payments          ,Private Contractors           ,EH01,Miscellaneous Agency Services           ,950.00,14/07/2015,REV,ST GEORGES RES. CARE HOME     
505,Adult Social Care,LD u65 Residentl Care Placemnt,LD Residential Care External,W2KB55,Third Party Payments          ,Private Contractors           ,EH01,Miscellaneous Agency Services           ,950.00,14/07/2015,REV,ST GEORGES RES. CARE HOME     
506,Adult Social Care,LD u65 Residentl Care Placemnt,LD Residential Care External,W2KB55,Third Party Payments          ,Private Contractors           ,EH01,Miscellaneous Agency Services           ,950.00,14/07/2015,REV,ST GEORGES RES. CARE HOME     
507,Adult Social Care,PS u65 Residentl Care Placemnt,PD R/Park-Residential Care              ,W2JM55,Third Party Payments          ,Private Contractors           ,EH01,Miscellaneous Contrct Services          ,1037.36,06/07/2015,REV,HOTHFIELD MANOR FSHC          
508,Adult Social Care,PS u65 Residentl Care Placemnt,PD R/Park-Residential Care              ,W2JM55,Third Party Payments          ,Private Contractors           ,EH01,Miscellaneous Contrct Services          ,1037.36,06/07/2015,REV,HOTHFIELD MANOR FSHC          
509,Adult Social Care,PS u65 Residentl Care Placemnt,PD R/Park-Residential Care              ,W2JM55,Third Party Payments          ,Private Contractors           ,EH01,Miscellaneous Contrct Services          ,1037.36,06/07/2015,REV,HOTHFIELD MANOR FSHC          
510,Adult Social Care,PS u65 Residentl Care Placemnt,PD R/Park-Residential Care              ,W2JM55,Third Party Payments          ,Private Contractors           ,EH01,Miscellaneous Contrct Services          ,1037.36,06/07/2015,REV,HOTHFIELD MANOR FSHC          
511,Adult Social Care,LD u65 Residentl Care Placemnt,LD Residential Care External,W2KB55,Third Party Payments          ,Private Contractors           ,EH01,Miscellaneous Agency Services           ,1262.00,14/07/2015,REV,WALSINGHAM                    
512,Adult Social Care,LD u65 Residentl Care Placemnt,LD Residential Care External,W2KB55,Third Party Payments          ,Private Contractors           ,EH01,Miscellaneous Agency Services           ,1262.00,14/07/2015,REV,WALSINGHAM                    
513,Adult Social Care,LD u65 Residentl Care Placemnt,LD Residential Care External,W2KB55,Third Party Payments          ,Private Contractors           ,EH01,Miscellaneous Agency Services           ,1262.00,14/07/2015,REV,WALSINGHAM                    
514,Adult Social Care,LD u65 Residentl Care Placemnt,LD Residential Care External,W2KB55,Third Party Payments          ,Private Contractors           ,EH01,Miscellaneous Agency Services           ,1262.00,14/07/2015,REV,WALSINGHAM                    
515,Adult Social Care,LD u65 Residentl Care Placemnt,LD Residential Care External,W2KB55,Third Party Payments          ,Private Contractors           ,EH01,Miscellaneous Agency Services           ,1290.64,14/07/2015,REV,WALSINGHAM                    
516,Adult Social Care,LD u65 Residentl Care Placemnt,LD Residential Care External,W2KB55,Third Party Payments          ,Private Contractors           ,EH01,Miscellaneous Agency Services           ,1290.64,14/07/2015,REV,WALSINGHAM                    
517,Adult Social Care,LD u65 Residentl Care Placemnt,LD Residential Care External,W2KB55,Third Party Payments          ,Private Contractors           ,EH01,Miscellaneous Agency Services           ,1290.64,14/07/2015,REV,WALSINGHAM                    
518,Adult Social Care,LD u65 Residentl Care Placemnt,LD Residential Care External,W2KB55,Third Party Payments          ,Private Contractors           ,EH01,Miscellaneous Agency Services           ,1290.64,14/07/2015,REV,WALSINGHAM                    
519,Adult Social Care,LD u65 Residentl Care Placemnt,LD Residential Care External,W2KB55,Third Party Payments          ,Private Contractors           ,EH01,Miscellaneous Agency Services           ,1395.52,14/07/2015,REV,WALSINGHAM                    
520,Adult Social Care,LD u65 Residentl Care Placemnt,LD Residential Care External,W2KB55,Third Party Payments          ,Private Contractors           ,EH01,Miscellaneous Agency Services           ,1395.52,14/07/2015,REV,WALSINGHAM                    
521,Adult Social Care,LD u65 Residentl Care Placemnt,LD Residential Care External,W2KB55,Third Party Payments          ,Private Contractors           ,EH01,Miscellaneous Agency Services           ,1395.52,14/07/2015,REV,WALSINGHAM                    
522,Adult Social Care,LD u65 Residentl Care Placemnt,LD Residential Care External,W2KB55,Third Party Payments          ,Private Contractors           ,EH01,Miscellaneous Agency Services           ,1395.52,14/07/2015,REV,WALSINGHAM                    
523,Adult Social Care,LD u65 Residentl Care Placemnt,LD Residential Care External,W2KB55,Third Party Payments          ,Private Contractors           ,EH01,Miscellaneous Agency Services           ,1395.52,14/07/2015,REV,WALSINGHAM                    
524,Adult Social Care,LD u65 Residentl Care Placemnt,LD Residential Care External,W2KB55,Third Party Payments          ,Private Contractors           ,EH01,Miscellaneous Agency Services           ,1395.52,14/07/2015,REV,WALSINGHAM                    
525,Adult Social Care,LD u65 Residentl Care Placemnt,LD Residential Care External,W2KB55,Third Party Payments          ,Private Contractors           ,EH01,Miscellaneous Agency Services           ,1395.52,14/07/2015,REV,WALSINGHAM                    
526,Adult Social Care,LD u65 Residentl Care Placemnt,LD Residential Care External,W2KB55,Third Party Payments          ,Private Contractors           ,EH01,Miscellaneous Agency Services           ,1395.52,14/07/2015,REV,WALSINGHAM                    
527,Adult Social Care,LD u65 Residentl Care Placemnt,LD Residential Care External,W2KB55,Third Party Payments          ,Private Contractors           ,EH01,Miscellaneous Agency Services           ,1395.52,14/07/2015,REV,WALSINGHAM                    
528,Adult Social Care,LD u65 Residentl Care Placemnt,LD Residential Care External,W2KB55,Third Party Payments          ,Private Contractors           ,EH01,Miscellaneous Agency Services           ,1395.52,14/07/2015,REV,WALSINGHAM                    
529,Adult Social Care,LD u65 Residentl Care Placemnt,LD Residential Care External,W2KB55,Third Party Payments          ,Private Contractors           ,EH01,Miscellaneous Agency Services           ,1395.52,14/07/2015,REV,WALSINGHAM                    
530,Adult Social Care,LD u65 Residentl Care Placemnt,LD Residential Care External,W2KB55,Third Party Payments          ,Private Contractors           ,EH01,Miscellaneous Agency Services           ,1395.52,14/07/2015,REV,WALSINGHAM                    
531,Housing Services,Bed / breakfast accommodation,Homelessness Prevention,N47171,Transfer Payments             ,Housing Benefits              ,FA11,Sanctuary Scheme Rent Rescue            ,4365.87,16/07/2015,REV,WANDLE HOUSING ASSOCIATION    
532,Adult Social Care,PS u65 Home Care,PD EAST TEAM-Homecare,W2JJ49,Third Party Payments          ,Private Contractors           ,EH01,Miscellaneous Agency Services           ,552.72,30/06/2015,REV,BUPA CARE HOMES (ANS) LTD     
533,Adult Social Care,PS u65 Home Care,PD EAST TEAM-Homecare,W2JJ49,Third Party Payments          ,Private Contractors           ,EH01,Miscellaneous Agency Services           ,552.72,30/06/2015,REV,BUPA CARE HOMES (ANS) LTD     
534,Adult Social Care,PS u65 Home Care,PD EAST TEAM-Homecare,W2JJ49,Third Party Payments          ,Private Contractors           ,EH01,Miscellaneous Agency Services           ,552.72,30/06/2015,REV,BUPA CARE HOMES (ANS) LTD     
535,Adult Social Care,PS u65 Home Care,PD EAST TEAM-Homecare,W2JJ49,Third Party Payments          ,Private Contractors           ,EH01,Miscellaneous Agency Services           ,552.72,30/06/2015,REV,BUPA CARE HOMES (ANS) LTD     
536,Childrens & Education Services,Family - Other Services,CS SWD Personal support                 ,W1CF49,Third Party Payments          ,Private Contractors           ,EH01,Miscellaneous Contrct Services          ,4273.13,08/07/2015,REV,AMBITION RECRUITMENT          
537,Adult Social Care,LD u65 Residentl Care Placemnt,LD Residential Care External,W2KB55,Third Party Payments          ,Private Contractors           ,EH01,Miscellaneous Agency Services           ,851.65,12/07/2015,REV,L'ARCHE                       
538,Adult Social Care,LD u65 Residentl Care Placemnt,LD Residential Care External,W2KB55,Third Party Payments          ,Private Contractors           ,EH01,Miscellaneous Agency Services           ,851.65,12/07/2015,REV,L'ARCHE                       
539,Adult Social Care,LD u65 Residentl Care Placemnt,LD Residential Care External,W2KB55,Third Party Payments          ,Private Contractors           ,EH01,Miscellaneous Agency Services           ,851.65,12/07/2015,REV,L'ARCHE                       
540,Adult Social Care,LD u65 Residentl Care Placemnt,LD Residential Care External,W2KB55,Third Party Payments          ,Private Contractors           ,EH01,Miscellaneous Agency Services           ,851.65,12/07/2015,REV,L'ARCHE                       
541,Adult Social Care,LD u65 Residentl Care Placemnt,LD Residential Care External,W2KB55,Third Party Payments          ,Private Contractors           ,EH01,Miscellaneous Agency Services           ,1249.37,13/07/2015,REV,WESTHOPE LTD                  
542,Adult Social Care,LD u65 Residentl Care Placemnt,LD Residential Care External,W2KB55,Third Party Payments          ,Private Contractors           ,EH01,Miscellaneous Agency Services           ,1249.37,13/07/2015,REV,WESTHOPE LTD                  
543,Adult Social Care,LD u65 Residentl Care Placemnt,LD Residential Care External,W2KB55,Third Party Payments          ,Private Contractors           ,EH01,Miscellaneous Agency Services           ,1249.37,13/07/2015,REV,WESTHOPE LTD                  
544,Adult Social Care,LD u65 Residentl Care Placemnt,LD Residential Care External,W2KB55,Third Party Payments          ,Private Contractors           ,EH01,Miscellaneous Agency Services           ,1249.37,13/07/2015,REV,WESTHOPE LTD                  
545,Childrens & Education Services,Leaving Care Services,CL Setting Up Home Allowance,W1DF41,Third Party Payments          ,Private Contractors           ,EH01,Miscellaneous Agency Services           ,812.00,05/07/2015,REV,WEST SUSSEX COUNTY COUNCIL    
546,Childrens & Education Services,Family - Other Services,CS SWD Personal support                 ,W1CF49,Third Party Payments          ,Private Contractors           ,EH01,Miscellaneous Contrct Services          ,853.19,13/05/2015,REV,AMBITION RECRUITMENT          
547,Adult Social Care,LD u65 Residentl Care Placemnt,LD Residential Care External,W2KB55,Third Party Payments          ,Private Contractors           ,EH01,Miscellaneous Agency Services           ,4986.60,17/07/2015,REV,VIBRANCE                      
548,Adult Social Care,LD u65 Residentl Care Placemnt,LD Residential Care External,W2KB55,Third Party Payments          ,Private Contractors           ,EH01,Miscellaneous Agency Services           ,4986.60,17/07/2015,REV,VIBRANCE                      
549,Adult Social Care,LD u65 Residentl Care Placemnt,LD Residential Care External,W2KB55,Third Party Payments          ,Private Contractors           ,EH01,Miscellaneous Agency Services           ,4986.60,17/07/2015,REV,VIBRANCE                      
550,Adult Social Care,LD u65 Residentl Care Placemnt,LD Residential Care External,W2KB55,Third Party Payments          ,Private Contractors           ,EH01,Miscellaneous Agency Services           ,4986.60,17/07/2015,REV,VIBRANCE                      
551,Adult Social Care,LD u65 Residentl Care Placemnt,LD Residential Care External,W2KB55,Third Party Payments          ,Private Contractors           ,EH01,Miscellaneous Agency Services           ,654.55,16/07/2015,REV,COTTISBRAINE HOUSE            
552,Adult Social Care,LD u65 Residentl Care Placemnt,LD Residential Care External,W2KB55,Third Party Payments          ,Private Contractors           ,EH01,Miscellaneous Agency Services           ,654.55,16/07/2015,REV,COTTISBRAINE HOUSE            
553,Adult Social Care,LD u65 Residentl Care Placemnt,LD Residential Care External,W2KB55,Third Party Payments          ,Private Contractors           ,EH01,Miscellaneous Agency Services           ,654.55,16/07/2015,REV,COTTISBRAINE HOUSE            
554,Adult Social Care,LD u65 Residentl Care Placemnt,LD Residential Care External,W2KB55,Third Party Payments          ,Private Contractors           ,EH01,Miscellaneous Agency Services           ,654.55,16/07/2015,REV,COTTISBRAINE HOUSE            
555,Adult Social Care,LD u65 Residentl Care Placemnt,LD Residential Care External,W2KB55,Third Party Payments          ,Private Contractors           ,EH01,Miscellaneous Agency Services           ,700.00,16/07/2015,REV,COTTISBRAINE HOUSE            
556,Adult Social Care,LD u65 Residentl Care Placemnt,LD Residential Care External,W2KB55,Third Party Payments          ,Private Contractors           ,EH01,Miscellaneous Agency Services           ,700.00,16/07/2015,REV,COTTISBRAINE HOUSE            
557,Adult Social Care,LD u65 Residentl Care Placemnt,LD Residential Care External,W2KB55,Third Party Payments          ,Private Contractors           ,EH01,Miscellaneous Agency Services           ,700.00,16/07/2015,REV,COTTISBRAINE HOUSE            
558,Adult Social Care,LD u65 Residentl Care Placemnt,LD Residential Care External,W2KB55,Third Party Payments          ,Private Contractors           ,EH01,Miscellaneous Agency Services           ,700.00,16/07/2015,REV,COTTISBRAINE HOUSE            
559,Adult Social Care,LD u65 Residentl Care Placemnt,LD Residential Care External,W2KB55,Third Party Payments          ,Private Contractors           ,EH01,Miscellaneous Agency Services           ,1827.00,13/07/2015,REV,INDEPENDENCE HOMES LTD        
560,Adult Social Care,LD u65 Residentl Care Placemnt,LD Residential Care External,W2KB55,Third Party Payments          ,Private Contractors           ,EH01,Miscellaneous Agency Services           ,1827.00,13/07/2015,REV,INDEPENDENCE HOMES LTD        
561,Adult Social Care,LD u65 Residentl Care Placemnt,LD Residential Care External,W2KB55,Third Party Payments          ,Private Contractors           ,EH01,Miscellaneous Agency Services           ,1827.00,13/07/2015,REV,INDEPENDENCE HOMES LTD        
562,Adult Social Care,LD u65 Residentl Care Placemnt,LD Residential Care External,W2KB55,Third Party Payments          ,Private Contractors           ,EH01,Miscellaneous Agency Services           ,1827.00,13/07/2015,REV,INDEPENDENCE HOMES LTD        
563,Adult Social Care,LD u65 Residentl Care Placemnt,LD Residential Care External,W2KB55,Third Party Payments          ,Private Contractors           ,EH01,Miscellaneous Agency Services           ,820.00,15/07/2015,REV,PARK LODGE                    
564,Adult Social Care,LD u65 Residentl Care Placemnt,LD Residential Care External,W2KB55,Third Party Payments          ,Private Contractors           ,EH01,Miscellaneous Agency Services           ,820.00,15/07/2015,REV,PARK LODGE                    
565,Adult Social Care,LD u65 Residentl Care Placemnt,LD Residential Care External,W2KB55,Third Party Payments          ,Private Contractors           ,EH01,Miscellaneous Agency Services           ,820.00,15/07/2015,REV,PARK LODGE                    
566,Adult Social Care,LD u65 Residentl Care Placemnt,LD Residential Care External,W2KB55,Third Party Payments          ,Private Contractors           ,EH01,Miscellaneous Agency Services           ,820.00,15/07/2015,REV,PARK LODGE                    
567,Adult Social Care,LD u65 Residentl Care Placemnt,LD Residential Care External,W2KB55,Third Party Payments          ,Private Contractors           ,EH01,Miscellaneous Agency Services           ,734.66,15/07/2015,REV,PARK LODGE                    
568,Adult Social Care,LD u65 Residentl Care Placemnt,LD Residential Care External,W2KB55,Third Party Payments          ,Private Contractors           ,EH01,Miscellaneous Agency Services           ,734.66,15/07/2015,REV,PARK LODGE                    
569,Adult Social Care,LD u65 Residentl Care Placemnt,LD Residential Care External,W2KB55,Third Party Payments          ,Private Contractors           ,EH01,Miscellaneous Agency Services           ,734.66,15/07/2015,REV,PARK LODGE                    
570,Adult Social Care,LD u65 Residentl Care Placemnt,LD Residential Care External,W2KB55,Third Party Payments          ,Private Contractors           ,EH01,Miscellaneous Agency Services           ,734.66,15/07/2015,REV,PARK LODGE                    
571,Adult Social Care,PS u65 Nursing Care Placements,PD R/Park-Nursing                       ,W2JM53,Third Party Payments          ,Private Contractors           ,EH01,Miscellaneous Contrct Services          ,1063.57,19/06/2015,REV,REDACTED
572,Adult Social Care,PS u65 Nursing Care Placements,PD R/Park-Nursing                       ,W2JM53,Third Party Payments          ,Private Contractors           ,EH01,Miscellaneous Contrct Services          ,1063.57,19/06/2015,REV,REDACTED
573,Adult Social Care,PS u65 Nursing Care Placements,PD R/Park-Nursing                       ,W2JM53,Third Party Payments          ,Private Contractors           ,EH01,Miscellaneous Contrct Services          ,1063.57,19/06/2015,REV,REDACTED
574,Adult Social Care,PS u65 Nursing Care Placements,PD R/Park-Nursing                       ,W2JM53,Third Party Payments          ,Private Contractors           ,EH01,Miscellaneous Contrct Services          ,1063.57,19/06/2015,REV,REDACTED
575,Adult Social Care,MH u65 Residentl Care Placemnt,MH ResidentialCare Ext - Wim,W2HC55,Third Party Payments          ,Private Contractors           ,EH01,Miscellaneous Agency Services           ,792.77,01/07/2015,REV,MENTAL HEALTH CARE (UK) LTD   
576,Adult Social Care,MH u65 Residentl Care Placemnt,MH ResidentialCare Ext - Wim,W2HC55,Third Party Payments          ,Private Contractors           ,EH01,Miscellaneous Agency Services           ,792.77,01/07/2015,REV,MENTAL HEALTH CARE (UK) LTD   
577,Adult Social Care,MH u65 Residentl Care Placemnt,MH ResidentialCare Ext - Wim,W2HC55,Third Party Payments          ,Private Contractors           ,EH01,Miscellaneous Agency Services           ,792.77,01/07/2015,REV,MENTAL HEALTH CARE (UK) LTD   
578,Adult Social Care,MH u65 Residentl Care Placemnt,MH ResidentialCare Ext - Wim,W2HC55,Third Party Payments          ,Private Contractors           ,EH01,Miscellaneous Agency Services           ,792.77,01/07/2015,REV,MENTAL HEALTH CARE (UK) LTD   
579,,,Disabled Facilities Grant DCLG          ,CE004RA,Other Capital Expenditure,,E1,Grants                                  ,-8053.00,25/06/2015,CAP,JJ MANSION LTD                
580,Adult Social Care,LD u65 Direct Payments,LD Direct Payment Scheme,W2KB36,Third Party Payments          ,Private Contractors           ,EH73,Direct Payments                         ,900.00,10/07/2015,REV,REDACTED
581,Adult Social Care,LD u65 Residentl Care Placemnt,LD Residential Care External,W2KB55,Third Party Payments          ,Private Contractors           ,EH01,Miscellaneous Agency Services           ,593.64,30/09/2014,REV,VIBRANCE                      
582,Adult Social Care,LD u65 Residentl Care Placemnt,LD Residential Care External,W2KB55,Third Party Payments          ,Private Contractors           ,EH01,Miscellaneous Agency Services           ,831.10,30/09/2014,REV,VIBRANCE                      
583,Adult Social Care,LD u65 Residentl Care Placemnt,LD Residential Care External,W2KB55,Third Party Payments          ,Private Contractors           ,EH01,Miscellaneous Agency Services           ,593.64,30/09/2014,REV,VIBRANCE                      
584,Adult Social Care,LD u65 Residentl Care Placemnt,LD Residential Care External,W2KB55,Third Party Payments          ,Private Contractors           ,EH01,Miscellaneous Agency Services           ,831.10,30/09/2014,REV,VIBRANCE                      
585,Adult Social Care,LD u65 Residentl Care Placemnt,LD Residential Care External,W2KB55,Third Party Payments          ,Private Contractors           ,EH01,Miscellaneous Agency Services           ,712.37,30/09/2014,REV,VIBRANCE                      
586,Adult Social Care,LD u65 Residentl Care Placemnt,LD Residential Care External,W2KB55,Third Party Payments          ,Private Contractors           ,EH01,Miscellaneous Agency Services           ,831.10,30/09/2014,REV,VIBRANCE                      
587,Adult Social Care,LD u65 Residentl Care Placemnt,LD Residential Care External,W2KB55,Third Party Payments          ,Private Contractors           ,EH01,Miscellaneous Agency Services           ,831.10,30/09/2014,REV,VIBRANCE                      
588,Adult Social Care,OP 65&Over Resi Care Placement,OP West - Residential Care Ext,W2LG55,Third Party Payments          ,Private Contractors           ,EH01,Miscellaneous Agency Services           ,710.50,06/07/2015,REV,OATLANDS CARE LIMITED         
589,Adult Social Care,OP 65&Over Resi Care Placement,OP West - Residential Care Ext,W2LG55,Third Party Payments          ,Private Contractors           ,EH01,Miscellaneous Agency Services           ,710.50,06/07/2015,REV,OATLANDS CARE LIMITED         
590,Adult Social Care,OP 65&Over Resi Care Placement,OP West - Residential Care Ext,W2LG55,Third Party Payments          ,Private Contractors           ,EH01,Miscellaneous Agency Services           ,710.50,06/07/2015,REV,OATLANDS CARE LIMITED         
591,Adult Social Care,OP 65&Over Resi Care Placement,OP West - Residential Care Ext,W2LG55,Third Party Payments          ,Private Contractors           ,EH01,Miscellaneous Agency Services           ,710.50,06/07/2015,REV,OATLANDS CARE LIMITED         
592,Adult Social Care,LD u65 Residentl Care Placemnt,LD Residential Care External,W2KB55,Third Party Payments          ,Private Contractors           ,EH01,Miscellaneous Agency Services           ,831.10,30/09/2014,REV,VIBRANCE                      
593,Adult Social Care,LD u65 Residentl Care Placemnt,LD Residential Care External,W2KB55,Third Party Payments          ,Private Contractors           ,EH01,Miscellaneous Agency Services           ,831.10,30/09/2014,REV,VIBRANCE                      
594,Childrens & Education Services,Asset Management,S106 Bid,K08077,Premises Related Expenditure  ,RepairsAlterations&MtceOfBldgs,BA05,DDM - Electrical                        ,-1543.98,20/07/2015,REV,EA ENERGY SOLUTIONS LIMITED   
595,Adult Social Care,MH u65 Nursing Care Placements,MH Nursing Care - Morden,W2HB53,Third Party Payments          ,Private Contractors           ,EH01,Miscellaneous Agency Services           ,679.13,01/07/2015,REV,CARE UNLIMITED                
596,Adult Social Care,MH u65 Nursing Care Placements,MH Nursing Care - Morden,W2HB53,Third Party Payments          ,Private Contractors           ,EH01,Miscellaneous Agency Services           ,679.13,01/07/2015,REV,CARE UNLIMITED                
597,Adult Social Care,MH u65 Nursing Care Placements,MH Nursing Care - Morden,W2HB53,Third Party Payments          ,Private Contractors           ,EH01,Miscellaneous Agency Services           ,679.13,01/07/2015,REV,CARE UNLIMITED                
598,Adult Social Care,MH u65 Nursing Care Placements,MH Nursing Care - Morden,W2HB53,Third Party Payments          ,Private Contractors           ,EH01,Miscellaneous Agency Services           ,679.13,01/07/2015,REV,CARE UNLIMITED                
599,Childrens & Education Services,Leaving Care Services,"MASH, FR and VCT NRTPF                  ",W1CE39,Third Party Payments          ,Private Contractors           ,EH04,Accommodation Based Support             ,800.00,10/07/2015,REV,REDACTED
600,Adult Social Care,LD u65 Home Care,LD Comm -Home Care-Surrey Oak,W2KT49,Third Party Payments          ,Private Contractors           ,EH01,Miscellaneous Agency Services           ,1800.00,31/07/2015,REV,PRECIOUS HOMES LTD            
601,Adult Social Care,LD u65 Home Care,LD Comm -Home Care-Surrey Oak,W2KT49,Third Party Payments          ,Private Contractors           ,EH01,Miscellaneous Agency Services           ,1800.00,31/07/2015,REV,PRECIOUS HOMES LTD            
602,Adult Social Care,LD u65 Home Care,LD Comm -Home Care-Surrey Oak,W2KT49,Third Party Payments          ,Private Contractors           ,EH01,Miscellaneous Agency Services           ,1800.00,31/07/2015,REV,PRECIOUS HOMES LTD            
603,Adult Social Care,LD u65 Home Care,LD Comm -Home Care-Surrey Oak,W2KT49,Third Party Payments          ,Private Contractors           ,EH01,Miscellaneous Agency Services           ,1800.00,31/07/2015,REV,PRECIOUS HOMES LTD            
604,Adult Social Care,PS u65 Nursing Care Placements,PD EAST TEAM-Nursing,W2JJ53,Third Party Payments          ,Private Contractors           ,EH01,Miscellaneous Agency Services           ,1169.12,30/06/2015,REV,ROYAL HOSP FOR NEURO-DISAB    
605,Adult Social Care,PS u65 Nursing Care Placements,PD EAST TEAM-Nursing,W2JJ53,Third Party Payments          ,Private Contractors           ,EH01,Miscellaneous Agency Services           ,1169.12,30/06/2015,REV,ROYAL HOSP FOR NEURO-DISAB    
606,Adult Social Care,PS u65 Nursing Care Placements,PD EAST TEAM-Nursing,W2JJ53,Third Party Payments          ,Private Contractors           ,EH01,Miscellaneous Agency Services           ,1169.12,30/06/2015,REV,ROYAL HOSP FOR NEURO-DISAB    
607,Adult Social Care,LD u65 Residentl Care Placemnt,LD Residential Care External,W2KB55,Third Party Payments          ,Private Contractors           ,EH01,Miscellaneous Agency Services           ,1190.00,01/07/2015,REV,CARE MANAGEMENT GROUP         
608,Adult Social Care,LD u65 Residentl Care Placemnt,LD Residential Care External,W2KB55,Third Party Payments          ,Private Contractors           ,EH01,Miscellaneous Agency Services           ,1190.00,01/07/2015,REV,CARE MANAGEMENT GROUP         
609,Adult Social Care,LD u65 Residentl Care Placemnt,LD Residential Care External,W2KB55,Third Party Payments          ,Private Contractors           ,EH01,Miscellaneous Agency Services           ,1190.00,01/07/2015,REV,CARE MANAGEMENT GROUP         
610,Adult Social Care,LD u65 Residentl Care Placemnt,LD Residential Care External,W2KB55,Third Party Payments          ,Private Contractors           ,EH01,Miscellaneous Agency Services           ,1190.00,01/07/2015,REV,CARE MANAGEMENT GROUP         
611,Adult Social Care,LD u65 Residentl Care Placemnt,LD Residential Care External,W2KB55,Third Party Payments          ,Private Contractors           ,EH01,Miscellaneous Agency Services           ,1375.00,01/07/2015,REV,CARE MANAGEMENT GROUP         
612,Adult Social Care,LD u65 Residentl Care Placemnt,LD Residential Care External,W2KB55,Third Party Payments          ,Private Contractors           ,EH01,Miscellaneous Agency Services           ,1375.00,01/07/2015,REV,CARE MANAGEMENT GROUP         
613,Adult Social Care,LD u65 Residentl Care Placemnt,LD Residential Care External,W2KB55,Third Party Payments          ,Private Contractors           ,EH01,Miscellaneous Agency Services           ,1375.00,01/07/2015,REV,CARE MANAGEMENT GROUP         
614,Adult Social Care,LD u65 Residentl Care Placemnt,LD Residential Care External,W2KB55,Third Party Payments          ,Private Contractors           ,EH01,Miscellaneous Agency Services           ,1375.00,01/07/2015,REV,CARE MANAGEMENT GROUP         
615,Adult Social Care,LD u65 Residentl Care Placemnt,LD Residential Care External,W2KB55,Third Party Payments          ,Private Contractors           ,EH01,Miscellaneous Agency Services           ,1495.00,01/07/2015,REV,CARE MANAGEMENT GROUP         
616,Adult Social Care,LD u65 Residentl Care Placemnt,LD Residential Care External,W2KB55,Third Party Payments          ,Private Contractors           ,EH01,Miscellaneous Agency Services           ,1495.00,01/07/2015,REV,CARE MANAGEMENT GROUP         
617,Childrens & Education Services,,ART Secure Accommodation                ,W1DE59,Third Party Payments          ,Private Contractors           ,EH79,Private Tenant/Landlord                 ,529.00,20/04/2015,REV,THE YOUTH JUSTICE BOARD       
618,Childrens & Education Services,,ART Secure Accommodation                ,W1DE59,Third Party Payments          ,Private Contractors           ,EH79,Private Tenant/Landlord                 ,3703.00,20/04/2015,REV,THE YOUTH JUSTICE BOARD       
619,Childrens & Education Services,,ART Secure Accommodation                ,W1DE59,Third Party Payments          ,Private Contractors           ,EH79,Private Tenant/Landlord                 ,3703.00,20/04/2015,REV,THE YOUTH JUSTICE BOARD       
620,Childrens & Education Services,,ART Secure Accommodation                ,W1DE59,Third Party Payments          ,Private Contractors           ,EH79,Private Tenant/Landlord                 ,3703.00,20/04/2015,REV,THE YOUTH JUSTICE BOARD       
621,Childrens & Education Services,,ART Secure Accommodation                ,W1DE59,Third Party Payments          ,Private Contractors           ,EH79,Private Tenant/Landlord                 ,3703.00,20/04/2015,REV,THE YOUTH JUSTICE BOARD       
622,Childrens & Education Services,,ART Secure Accommodation                ,W1DE59,Third Party Payments          ,Private Contractors           ,EH79,Private Tenant/Landlord                 ,1058.00,20/04/2015,REV,THE YOUTH JUSTICE BOARD       
623,Childrens & Education Services,,ART Secure Accommodation                ,W1DE59,Third Party Payments          ,Private Contractors           ,EH79,Private Tenant/Landlord                 ,1491.00,19/06/2015,REV,THE YOUTH JUSTICE BOARD       
624,Childrens & Education Services,,ART Secure Accommodation                ,W1DE59,Third Party Payments          ,Private Contractors           ,EH79,Private Tenant/Landlord                 ,3479.00,19/06/2015,REV,THE YOUTH JUSTICE BOARD       
625,Adult Social Care,LD u65 Residentl Care Placemnt,LD Residential Care External,W2KB55,Third Party Payments          ,Private Contractors           ,EH01,Miscellaneous Agency Services           ,1495.00,01/07/2015,REV,CARE MANAGEMENT GROUP         
626,Adult Social Care,LD u65 Residentl Care Placemnt,LD Residential Care External,W2KB55,Third Party Payments          ,Private Contractors           ,EH01,Miscellaneous Agency Services           ,1495.00,01/07/2015,REV,CARE MANAGEMENT GROUP         
627,Adult Social Care,LD u65 Residentl Care Placemnt,LD Residential Care External,W2KB55,Third Party Payments          ,Private Contractors           ,EH01,Miscellaneous Agency Services           ,1511.00,01/07/2015,REV,CARE MANAGEMENT GROUP         
628,Adult Social Care,LD u65 Residentl Care Placemnt,LD Residential Care External,W2KB55,Third Party Payments          ,Private Contractors           ,EH01,Miscellaneous Agency Services           ,1511.00,01/07/2015,REV,CARE MANAGEMENT GROUP         
629,Adult Social Care,LD u65 Residentl Care Placemnt,LD Residential Care External,W2KB55,Third Party Payments          ,Private Contractors           ,EH01,Miscellaneous Agency Services           ,1511.00,01/07/2015,REV,CARE MANAGEMENT GROUP         
630,Adult Social Care,LD u65 Residentl Care Placemnt,LD Residential Care External,W2KB55,Third Party Payments          ,Private Contractors           ,EH01,Miscellaneous Agency Services           ,1511.00,01/07/2015,REV,CARE MANAGEMENT GROUP         
631,Adult Social Care,LD u65 Residentl Care Placemnt,LD Residential Care External,W2KB55,Third Party Payments          ,Private Contractors           ,EH01,Miscellaneous Agency Services           ,1261.00,01/07/2015,REV,CARE MANAGEMENT GROUP         
632,Adult Social Care,LD u65 Residentl Care Placemnt,LD Residential Care External,W2KB55,Third Party Payments          ,Private Contractors           ,EH01,Miscellaneous Agency Services           ,1261.00,01/07/2015,REV,CARE MANAGEMENT GROUP         
633,Adult Social Care,LD u65 Residentl Care Placemnt,LD Residential Care External,W2KB55,Third Party Payments          ,Private Contractors           ,EH01,Miscellaneous Agency Services           ,1261.00,01/07/2015,REV,CARE MANAGEMENT GROUP         
634,Adult Social Care,LD u65 Residentl Care Placemnt,LD Residential Care External,W2KB55,Third Party Payments          ,Private Contractors           ,EH01,Miscellaneous Agency Services           ,1261.00,01/07/2015,REV,CARE MANAGEMENT GROUP         
635,Adult Social Care,LD u65 Residentl Care Placemnt,LD Residential Care External,W2KB55,Third Party Payments          ,Private Contractors           ,EH01,Miscellaneous Agency Services           ,1395.52,16/06/2015,REV,WALSINGHAM                    
636,Adult Social Care,LD u65 Residentl Care Placemnt,LD Residential Care External,W2KB55,Third Party Payments          ,Private Contractors           ,EH01,Miscellaneous Agency Services           ,1395.52,16/06/2015,REV,WALSINGHAM                    
637,Adult Social Care,LD u65 Residentl Care Placemnt,LD Residential Care External,W2KB55,Third Party Payments          ,Private Contractors           ,EH01,Miscellaneous Agency Services           ,1395.52,16/06/2015,REV,WALSINGHAM                    
638,Adult Social Care,LD u65 Residentl Care Placemnt,LD Residential Care External,W2KB55,Third Party Payments          ,Private Contractors           ,EH01,Miscellaneous Agency Services           ,1395.52,16/06/2015,REV,WALSINGHAM                    
639,Childrens & Education Services,Leaving Care Services,CL Setting Up Home Allowance,W1DF41,Third Party Payments          ,Private Contractors           ,EH01,Miscellaneous Agency Services           ,750.00,20/07/2015,REV,REDACTED
640,Childrens & Education Services,,ART Secure Accommodation                ,W1DE59,Third Party Payments          ,Private Contractors           ,EH79,Private Tenant/Landlord                 ,3479.00,19/06/2015,REV,THE YOUTH JUSTICE BOARD       
641,Childrens & Education Services,,ART Secure Accommodation                ,W1DE59,Third Party Payments          ,Private Contractors           ,EH79,Private Tenant/Landlord                 ,3479.00,19/06/2015,REV,THE YOUTH JUSTICE BOARD       
642,Childrens & Education Services,,ART Secure Accommodation                ,W1DE59,Third Party Payments          ,Private Contractors           ,EH79,Private Tenant/Landlord                 ,3479.00,19/06/2015,REV,THE YOUTH JUSTICE BOARD       
643,Childrens & Education Services,,ART Secure Accommodation                ,W1DE59,Third Party Payments          ,Private Contractors           ,EH79,Private Tenant/Landlord                 ,529.00,20/04/2015,REV,THE YOUTH JUSTICE BOARD       
644,Childrens & Education Services,,ART Secure Accommodation                ,W1DE59,Third Party Payments          ,Private Contractors           ,EH79,Private Tenant/Landlord                 ,3703.00,20/04/2015,REV,THE YOUTH JUSTICE BOARD       
645,Childrens & Education Services,,ART Secure Accommodation                ,W1DE59,Third Party Payments          ,Private Contractors           ,EH79,Private Tenant/Landlord                 ,3703.00,20/04/2015,REV,THE YOUTH JUSTICE BOARD       
646,Childrens & Education Services,,ART Secure Accommodation                ,W1DE59,Third Party Payments          ,Private Contractors           ,EH79,Private Tenant/Landlord                 ,-1587.00,20/04/2015,REV,THE YOUTH JUSTICE BOARD       
647,Adult Social Care,OP 65 & Over Direct Payments,OP East -Direct Payment Scheme,W2LH36,Third Party Payments          ,Private Contractors           ,EH73,Direct Payments                         ,-1309.95,29/06/2015,REV,REDACTED
648,Adult Social Care,OP 65 & Over Direct Payments,OP East -Direct Payment Scheme,W2LH36,Third Party Payments          ,Private Contractors           ,EH73,Direct Payments                         ,-1309.95,29/06/2015,REV,REDACTED
649,Adult Social Care,OP 65 & Over Direct Payments,OP East -Direct Payment Scheme,W2LH36,Third Party Payments          ,Private Contractors           ,EH73,Direct Payments                         ,-1309.95,29/06/2015,REV,REDACTED
650,Adult Social Care,OP 65 & Over Direct Payments,OP East -Direct Payment Scheme,W2LH36,Third Party Payments          ,Private Contractors           ,EH73,Direct Payments                         ,-1309.95,29/06/2015,REV,REDACTED
651,Childrens & Education Services,,ART Residential Secure accommo,W1DE58,Third Party Payments          ,Private Contractors           ,EH17,Supported Lodgings                      ,850.00,01/07/2015,REV,NETPEX LTD                    
652,Childrens & Education Services,Asset Management,S106 Bid,K08077,Premises Related Expenditure  ,RepairsAlterations&MtceOfBldgs,BA05,DDM - Electrical                        ,1543.98,21/07/2015,REV,EA ENERGY SOLUTIONS LIMITED   
653,Adult Social Care,LD u65 Residentl Care Placemnt,LD Residential Care External,W2KB55,Third Party Payments          ,Private Contractors           ,EH01,Miscellaneous Agency Services           ,2255.00,13/07/2015,REV,CORICH COMMUNITY CARE LTD     
654,Adult Social Care,LD u65 Residentl Care Placemnt,LD Residential Care External,W2KB55,Third Party Payments          ,Private Contractors           ,EH01,Miscellaneous Agency Services           ,2255.00,13/07/2015,REV,CORICH COMMUNITY CARE LTD     
655,Adult Social Care,LD u65 Residentl Care Placemnt,LD Residential Care External,W2KB55,Third Party Payments          ,Private Contractors           ,EH01,Miscellaneous Agency Services           ,2255.00,13/07/2015,REV,CORICH COMMUNITY CARE LTD     
656,Adult Social Care,LD u65 Residentl Care Placemnt,LD Residential Care External,W2KB55,Third Party Payments          ,Private Contractors           ,EH01,Miscellaneous Agency Services           ,2255.00,13/07/2015,REV,CORICH COMMUNITY CARE LTD     
657,Adult Social Care,LD u65 Residentl Care Placemnt,LD Residential Care External,W2KB55,Third Party Payments          ,Private Contractors           ,EH01,Miscellaneous Agency Services           ,1232.00,20/07/2015,REV,CRAEGMOOR FACILITIES-SEABOURNE
658,Adult Social Care,LD u65 Residentl Care Placemnt,LD Residential Care External,W2KB55,Third Party Payments          ,Private Contractors           ,EH01,Miscellaneous Agency Services           ,1232.00,20/07/2015,REV,CRAEGMOOR FACILITIES-SEABOURNE
659,Adult Social Care,LD u65 Residentl Care Placemnt,LD Residential Care External,W2KB55,Third Party Payments          ,Private Contractors           ,EH01,Miscellaneous Agency Services           ,1232.00,20/07/2015,REV,CRAEGMOOR FACILITIES-SEABOURNE
660,Adult Social Care,LD u65 Residentl Care Placemnt,LD Residential Care External,W2KB55,Third Party Payments          ,Private Contractors           ,EH01,Miscellaneous Agency Services           ,1232.00,20/07/2015,REV,CRAEGMOOR FACILITIES-SEABOURNE
661,Adult Social Care,LD u65 Residentl Care Placemnt,LD Residential Care External,W2KB55,Third Party Payments          ,Private Contractors           ,EH01,Miscellaneous Agency Services           ,1749.25,13/07/2015,REV,CHHG LTD T/A GRETTON HOMES    
662,Adult Social Care,LD u65 Residentl Care Placemnt,LD Residential Care External,W2KB55,Third Party Payments          ,Private Contractors           ,EH01,Miscellaneous Agency Services           ,1749.25,13/07/2015,REV,CHHG LTD T/A GRETTON HOMES    
663,Adult Social Care,LD u65 Residentl Care Placemnt,LD Residential Care External,W2KB55,Third Party Payments          ,Private Contractors           ,EH01,Miscellaneous Agency Services           ,1749.25,13/07/2015,REV,CHHG LTD T/A GRETTON HOMES    
664,Adult Social Care,LD u65 Residentl Care Placemnt,LD Residential Care External,W2KB55,Third Party Payments          ,Private Contractors           ,EH01,Miscellaneous Agency Services           ,1749.25,13/07/2015,REV,CHHG LTD T/A GRETTON HOMES    
665,Adult Social Care,OP 65&Over Resi Care Placement,OP West - Residential Care Ext,W2LG55,Third Party Payments          ,Private Contractors           ,EH01,Miscellaneous Agency Services           ,521.99,14/07/2015,REV,BUPA CARE HOMES               
666,Adult Social Care,OP 65&Over Resi Care Placement,OP West - Residential Care Ext,W2LG55,Third Party Payments          ,Private Contractors           ,EH01,Miscellaneous Agency Services           ,521.99,14/07/2015,REV,BUPA CARE HOMES               
667,Adult Social Care,OP 65&Over NursingCarePlacemts,OP West - Nursing Care,W2LG53,Customer and client receipts  ,Charges                       ,RC09,Bd&Acc-contrib coll by home X           ,-601.12,02/07/2015,REV,ASLOCKTON HALL                
668,Adult Social Care,OP 65&Over Resi Care Placement,OP West - Residential Care Ext,W2LG55,Third Party Payments          ,Private Contractors           ,EH01,Miscellaneous Agency Services           ,521.99,14/07/2015,REV,BUPA CARE HOMES               
669,Adult Social Care,OP 65&Over Resi Care Placement,OP West - Residential Care Ext,W2LG55,Third Party Payments          ,Private Contractors           ,EH01,Miscellaneous Agency Services           ,521.99,14/07/2015,REV,BUPA CARE HOMES               
670,Adult Social Care,PS u65 Nursing Care Placements,PD R/Park-Nursing                       ,W2JM53,Third Party Payments          ,Private Contractors           ,EH01,Miscellaneous Contrct Services          ,685.71,07/07/2015,REV,BUPA CARE HOMES               
671,Adult Social Care,PS u65 Nursing Care Placements,PD R/Park-Nursing                       ,W2JM53,Third Party Payments          ,Private Contractors           ,EH01,Miscellaneous Contrct Services          ,800.00,07/07/2015,REV,BUPA CARE HOMES               
672,Adult Social Care,PS u65 Nursing Care Placements,PD R/Park-Nursing                       ,W2JM53,Third Party Payments          ,Private Contractors           ,EH01,Miscellaneous Contrct Services          ,800.00,07/07/2015,REV,BUPA CARE HOMES               
673,Adult Social Care,PS u65 Nursing Care Placements,PD R/Park-Nursing                       ,W2JM53,Third Party Payments          ,Private Contractors           ,EH01,Miscellaneous Contrct Services          ,800.00,07/07/2015,REV,BUPA CARE HOMES               
674,Adult Social Care,PS u65 Nursing Care Placements,PD R/Park-Nursing                       ,W2JM53,Third Party Payments          ,Private Contractors           ,EH01,Miscellaneous Contrct Services          ,1800.00,01/07/2015,REV,CROHAM PLACE                  
675,Adult Social Care,PS u65 Nursing Care Placements,PD R/Park-Nursing                       ,W2JM53,Third Party Payments          ,Private Contractors           ,EH01,Miscellaneous Contrct Services          ,1800.00,01/07/2015,REV,CROHAM PLACE                  
676,Adult Social Care,PS u65 Nursing Care Placements,PD R/Park-Nursing                       ,W2JM53,Third Party Payments          ,Private Contractors           ,EH01,Miscellaneous Contrct Services          ,1800.00,01/07/2015,REV,CROHAM PLACE                  
677,Adult Social Care,PS u65 Nursing Care Placements,PD R/Park-Nursing                       ,W2JM53,Third Party Payments          ,Private Contractors           ,EH01,Miscellaneous Contrct Services          ,1800.00,01/07/2015,REV,CROHAM PLACE                  
678,Adult Social Care,MH u65 Residentl Care Placemnt,MH ResidentialCare Ext - Wim,W2HC55,Third Party Payments          ,Private Contractors           ,EH01,Miscellaneous Agency Services           ,841.27,30/06/2015,REV,RNID                          
679,Adult Social Care,MH u65 Residentl Care Placemnt,MH ResidentialCare Ext - Wim,W2HC55,Third Party Payments          ,Private Contractors           ,EH01,Miscellaneous Agency Services           ,841.27,30/06/2015,REV,RNID                          
680,Adult Social Care,MH u65 Residentl Care Placemnt,MH ResidentialCare Ext - Wim,W2HC55,Third Party Payments          ,Private Contractors           ,EH01,Miscellaneous Agency Services           ,841.27,30/06/2015,REV,RNID                          
681,Adult Social Care,MH u65 Residentl Care Placemnt,MH ResidentialCare Ext - Wim,W2HC55,Third Party Payments          ,Private Contractors           ,EH01,Miscellaneous Agency Services           ,841.27,30/06/2015,REV,RNID                          
682,Childrens & Education Services,Other - Other Ch & Fam,CS Short Breaks Day Care                ,W1CA34,Third Party Payments          ,Private Contractors           ,EH01,Miscellaneous Contrct Services          ,1250.00,03/07/2015,REV,GREENMEAD SCHOOL              
683,Childrens & Education Services,Fostering Services,ART Independent Agency Foster,W1DE46,Supplies & Services           ,Services                      ,DF53,Task Based Fostering                    ,700.56,26/05/2015,REV,CORNERWAYS FOSTERING SERV.LTD 
684,Childrens & Education Services,Fostering Services,ART Independent Agency Foster,W1DE46,Supplies & Services           ,Services                      ,DF53,Task Based Fostering                    ,700.56,26/05/2015,REV,CORNERWAYS FOSTERING SERV.LTD 
685,Childrens & Education Services,Fostering Services,ART Independent Agency Foster,W1DE46,Supplies & Services           ,Services                      ,DF53,Task Based Fostering                    ,700.56,26/05/2015,REV,CORNERWAYS FOSTERING SERV.LTD 
686,Childrens & Education Services,Fostering Services,ART Independent Agency Foster,W1DE46,Supplies & Services           ,Services                      ,DF53,Task Based Fostering                    ,700.56,26/05/2015,REV,CORNERWAYS FOSTERING SERV.LTD 
687,Childrens & Education Services,Fostering Services,ART Independent Agency Foster,W1DE46,Supplies & Services           ,Services                      ,DF53,Task Based Fostering                    ,700.56,26/05/2015,REV,CORNERWAYS FOSTERING SERV.LTD 
688,Adult Social Care,OP 65&Over Resi Care Placement,OP West - Residential Care Ext,W2LG55,Third Party Payments          ,Private Contractors           ,EH01,Miscellaneous Agency Services           ,599.09,16/07/2015,REV,WOODLANDS                     
689,Adult Social Care,OP 65&Over Resi Care Placement,OP West - Residential Care Ext,W2LG55,Third Party Payments          ,Private Contractors           ,EH01,Miscellaneous Agency Services           ,524.22,16/07/2015,REV,WOODLANDS                     
690,Adult Social Care,OP 65&Over Resi Care Placement,OP West - Residential Care Ext,W2LG55,Third Party Payments          ,Private Contractors           ,EH01,Miscellaneous Agency Services           ,521.99,14/07/2015,REV,BUPA CARE HOMES               
691,Adult Social Care,OP 65&Over Resi Care Placement,OP West - Residential Care Ext,W2LG55,Third Party Payments          ,Private Contractors           ,EH01,Miscellaneous Agency Services           ,521.99,14/07/2015,REV,BUPA CARE HOMES               
692,Adult Social Care,OP 65&Over Resi Care Placement,OP West - Residential Care Ext,W2LG55,Third Party Payments          ,Private Contractors           ,EH01,Miscellaneous Agency Services           ,521.99,14/07/2015,REV,BUPA CARE HOMES               
693,Adult Social Care,OP 65&Over Resi Care Placement,OP West - Residential Care Ext,W2LG55,Third Party Payments          ,Private Contractors           ,EH01,Miscellaneous Agency Services           ,521.99,14/07/2015,REV,BUPA CARE HOMES               
694,Adult Social Care,OP 65&Over Resi Care Placement,OP West - Residential Care Ext,W2LG55,Third Party Payments          ,Private Contractors           ,EH01,Miscellaneous Agency Services           ,638.22,15/07/2015,REV,WESTMINSTER HEALTHCARE LTD    
695,Adult Social Care,OP 65&Over Resi Care Placement,OP West - Residential Care Ext,W2LG55,Third Party Payments          ,Private Contractors           ,EH01,Miscellaneous Agency Services           ,638.22,15/07/2015,REV,WESTMINSTER HEALTHCARE LTD    
696,Adult Social Care,OP 65&Over Resi Care Placement,OP West - Residential Care Ext,W2LG55,Third Party Payments          ,Private Contractors           ,EH01,Miscellaneous Agency Services           ,638.22,15/07/2015,REV,WESTMINSTER HEALTHCARE LTD    
697,Childrens & Education Services,Fostering Services,ART Independent Agency Foster,W1DE46,Supplies & Services           ,Services                      ,DF53,Task Based Fostering                    ,-500.40,26/05/2015,REV,CORNERWAYS FOSTERING SERV.LTD 
698,Childrens & Education Services,Fostering Services,ART Independent Agency Foster,W1DE46,Supplies & Services           ,Services                      ,DF53,Task Based Fostering                    ,700.56,26/05/2015,REV,CORNERWAYS FOSTERING SERV.LTD 
699,Childrens & Education Services,Fostering Services,ART Independent Agency Foster,W1DE46,Supplies & Services           ,Services                      ,DF53,Task Based Fostering                    ,700.56,26/05/2015,REV,CORNERWAYS FOSTERING SERV.LTD 
700,Childrens & Education Services,Fostering Services,ART Independent Agency Foster,W1DE46,Supplies & Services           ,Services                      ,DF53,Task Based Fostering                    ,700.56,26/05/2015,REV,CORNERWAYS FOSTERING SERV.LTD 
701,Childrens & Education Services,Fostering Services,ART Independent Agency Foster,W1DE46,Supplies & Services           ,Services                      ,DF53,Task Based Fostering                    ,700.56,26/05/2015,REV,CORNERWAYS FOSTERING SERV.LTD 
702,Childrens & Education Services,Fostering Services,ART Independent Agency Foster,W1DE46,Supplies & Services           ,Services                      ,DF53,Task Based Fostering                    ,700.56,26/05/2015,REV,CORNERWAYS FOSTERING SERV.LTD 
703,Childrens & Education Services,Fostering Services,ART Independent Agency Foster,W1DE46,Supplies & Services           ,Services                      ,DF53,Task Based Fostering                    ,-500.40,26/05/2015,REV,CORNERWAYS FOSTERING SERV.LTD 
704,Childrens & Education Services,Fostering Services,ART Independent Agency Foster,W1DE46,Supplies & Services           ,Services                      ,DF53,Task Based Fostering                    ,700.56,26/05/2015,REV,CORNERWAYS FOSTERING SERV.LTD 
705,Childrens & Education Services,Fostering Services,ART Independent Agency Foster,W1DE46,Supplies & Services           ,Services                      ,DF53,Task Based Fostering                    ,700.56,26/05/2015,REV,CORNERWAYS FOSTERING SERV.LTD 
706,Childrens & Education Services,Fostering Services,ART Independent Agency Foster,W1DE46,Supplies & Services           ,Services                      ,DF53,Task Based Fostering                    ,700.56,26/05/2015,REV,CORNERWAYS FOSTERING SERV.LTD 
707,Childrens & Education Services,Fostering Services,ART Independent Agency Foster,W1DE46,Supplies & Services           ,Services                      ,DF53,Task Based Fostering                    ,700.56,26/05/2015,REV,CORNERWAYS FOSTERING SERV.LTD 
708,Childrens & Education Services,Fostering Services,ART Independent Agency Foster,W1DE46,Supplies & Services           ,Services                      ,DF53,Task Based Fostering                    ,700.56,26/05/2015,REV,CORNERWAYS FOSTERING SERV.LTD 
709,Childrens & Education Services,Fostering Services,ART Independent Agency Foster,W1DE46,Supplies & Services           ,Services                      ,DF53,Task Based Fostering                    ,-500.40,26/05/2015,REV,CORNERWAYS FOSTERING SERV.LTD 
710,Adult Social Care,OP 65&Over Resi Care Placement,OP West - Residential Care Ext,W2LG55,Third Party Payments          ,Private Contractors           ,EH01,Miscellaneous Agency Services           ,638.22,15/07/2015,REV,WESTMINSTER HEALTHCARE LTD    
711,Adult Social Care,OP 65&Over Resi Care Placement,OP West - Residential Care Ext,W2LG55,Third Party Payments          ,Private Contractors           ,EH01,Miscellaneous Agency Services           ,524.22,16/07/2015,REV,WOODLANDS                     
712,Adult Social Care,OP 65&Over Resi Care Placement,OP West - Residential Care Ext,W2LG55,Third Party Payments          ,Private Contractors           ,EH01,Miscellaneous Agency Services           ,524.22,16/07/2015,REV,WOODLANDS                     
713,Adult Social Care,OP 65&Over Resi Care Placement,OP West - Residential Care Ext,W2LG55,Third Party Payments          ,Private Contractors           ,EH01,Miscellaneous Agency Services           ,524.22,16/07/2015,REV,WOODLANDS                     
714,Adult Social Care,OP 65&Over Resi Care Placement,OP West - Residential Care Ext,W2LG55,Third Party Payments          ,Private Contractors           ,EH01,Miscellaneous Agency Services           ,524.22,16/07/2015,REV,WOODLANDS                     
715,Adult Social Care,OP 65&Over Resi Care Placement,OP West - Residential Care Ext,W2LG55,Third Party Payments          ,Private Contractors           ,EH01,Miscellaneous Agency Services           ,524.22,16/07/2015,REV,WOODLANDS                     
716,Adult Social Care,OP 65&Over Resi Care Placement,OP West - Residential Care Ext,W2LG55,Third Party Payments          ,Private Contractors           ,EH01,Miscellaneous Agency Services           ,524.22,16/07/2015,REV,WOODLANDS                     
717,Adult Social Care,OP 65&Over Resi Care Placement,OP West - Residential Care Ext,W2LG55,Third Party Payments          ,Private Contractors           ,EH01,Miscellaneous Agency Services           ,524.22,16/07/2015,REV,WOODLANDS                     
718,Adult Social Care,OP 65&Over Resi Care Placement,OP West - Residential Care Ext,W2LG55,Third Party Payments          ,Private Contractors           ,EH01,Miscellaneous Agency Services           ,524.22,16/07/2015,REV,WOODLANDS                     
719,Adult Social Care,OP 65&Over Resi Care Placement,OP West - Residential Care Ext,W2LG55,Third Party Payments          ,Private Contractors           ,EH01,Miscellaneous Agency Services           ,524.22,16/07/2015,REV,WOODLANDS                     
720,Adult Social Care,OP 65&Over Resi Care Placement,OP West - Residential Care Ext,W2LG55,Third Party Payments          ,Private Contractors           ,EH01,Miscellaneous Agency Services           ,524.22,16/07/2015,REV,WOODLANDS                     
721,Adult Social Care,OP 65&Over Resi Care Placement,OP West - Residential Care Ext,W2LG55,Third Party Payments          ,Private Contractors           ,EH01,Miscellaneous Agency Services           ,524.22,16/07/2015,REV,WOODLANDS                     
722,Adult Social Care,OP 65&Over Resi Care Placement,OP West - Residential Care Ext,W2LG55,Third Party Payments          ,Private Contractors           ,EH01,Miscellaneous Agency Services           ,524.22,16/07/2015,REV,WOODLANDS                     
723,Adult Social Care,OP 65&Over Resi Care Placement,OP West - Residential Care Ext,W2LG55,Third Party Payments          ,Private Contractors           ,EH01,Miscellaneous Agency Services           ,524.22,16/07/2015,REV,WOODLANDS                     
724,Adult Social Care,OP 65&Over Resi Care Placement,OP West - Residential Care Ext,W2LG55,Third Party Payments          ,Private Contractors           ,EH01,Miscellaneous Agency Services           ,524.22,16/07/2015,REV,WOODLANDS                     
725,Adult Social Care,OP 65&Over Resi Care Placement,OP West - Residential Care Ext,W2LG55,Third Party Payments          ,Private Contractors           ,EH01,Miscellaneous Agency Services           ,524.22,16/07/2015,REV,WOODLANDS                     
726,Adult Social Care,OP 65&Over Resi Care Placement,OP West - Residential Care Ext,W2LG55,Third Party Payments          ,Private Contractors           ,EH01,Miscellaneous Agency Services           ,524.22,16/07/2015,REV,WOODLANDS                     
727,Adult Social Care,OP 65&Over Resi Care Placement,OP West - Residential Care Ext,W2LG55,Third Party Payments          ,Private Contractors           ,EH01,Miscellaneous Agency Services           ,524.22,16/07/2015,REV,WOODLANDS                     
728,Adult Social Care,OP 65&Over Resi Care Placement,OP West - Residential Care Ext,W2LG55,Third Party Payments          ,Private Contractors           ,EH01,Miscellaneous Agency Services           ,524.22,16/07/2015,REV,WOODLANDS                     
729,Adult Social Care,OP 65&Over Resi Care Placement,OP West - Residential Care Ext,W2LG55,Third Party Payments          ,Private Contractors           ,EH01,Miscellaneous Agency Services           ,524.22,16/07/2015,REV,WOODLANDS                     
730,Adult Social Care,OP 65&Over Resi Care Placement,OP West - Residential Care Ext,W2LG55,Third Party Payments          ,Private Contractors           ,EH01,Miscellaneous Agency Services           ,524.22,16/07/2015,REV,WOODLANDS                     
731,Adult Social Care,OP 65&Over Resi Care Placement,OP West - Residential Care Ext,W2LG55,Third Party Payments          ,Private Contractors           ,EH01,Miscellaneous Agency Services           ,524.22,16/07/2015,REV,WOODLANDS                     
732,Adult Social Care,OP 65&Over Resi Care Placement,OP West - Residential Care Ext,W2LG55,Third Party Payments          ,Private Contractors           ,EH01,Miscellaneous Agency Services           ,524.22,16/07/2015,REV,WOODLANDS                     
733,Adult Social Care,OP 65&Over Resi Care Placement,OP West - Residential Care Ext,W2LG55,Third Party Payments          ,Private Contractors           ,EH01,Miscellaneous Agency Services           ,524.22,16/07/2015,REV,WOODLANDS                     
734,Adult Social Care,OP 65&Over Resi Care Placement,OP West - Residential Care Ext,W2LG55,Third Party Payments          ,Private Contractors           ,EH01,Miscellaneous Agency Services           ,524.22,16/07/2015,REV,WOODLANDS                     
735,Adult Social Care,OP 65&Over Resi Care Placement,OP West - Residential Care Ext,W2LG55,Third Party Payments          ,Private Contractors           ,EH01,Miscellaneous Agency Services           ,524.22,16/07/2015,REV,WOODLANDS                     
736,Adult Social Care,OP 65&Over Resi Care Placement,OP West - Residential Care Ext,W2LG55,Third Party Payments          ,Private Contractors           ,EH01,Miscellaneous Agency Services           ,524.22,16/07/2015,REV,WOODLANDS                     
737,Adult Social Care,OP 65&Over Resi Care Placement,OP West - Residential Care Ext,W2LG55,Third Party Payments          ,Private Contractors           ,EH01,Miscellaneous Agency Services           ,524.22,16/07/2015,REV,WOODLANDS                     
738,Adult Social Care,OP 65&Over Resi Care Placement,OP West - Residential Care Ext,W2LG55,Third Party Payments          ,Private Contractors           ,EH01,Miscellaneous Agency Services           ,524.22,16/07/2015,REV,WOODLANDS                     
739,Adult Social Care,PS u65 Nursing Care Placements,PD R/Park-Nursing                       ,W2JM53,Third Party Payments          ,Private Contractors           ,EH01,Miscellaneous Contrct Services          ,777.21,01/07/2015,REV,SUTTON NURSING HOMES LTD      
740,Adult Social Care,PS u65 Nursing Care Placements,PD R/Park-Nursing                       ,W2JM53,Third Party Payments          ,Private Contractors           ,EH01,Miscellaneous Contrct Services          ,777.21,01/07/2015,REV,SUTTON NURSING HOMES LTD      
741,Adult Social Care,PS u65 Nursing Care Placements,PD R/Park-Nursing                       ,W2JM53,Third Party Payments          ,Private Contractors           ,EH01,Miscellaneous Contrct Services          ,777.21,01/07/2015,REV,SUTTON NURSING HOMES LTD      
742,Adult Social Care,PS u65 Nursing Care Placements,PD R/Park-Nursing                       ,W2JM53,Third Party Payments          ,Private Contractors           ,EH01,Miscellaneous Contrct Services          ,777.21,01/07/2015,REV,SUTTON NURSING HOMES LTD      
743,Adult Social Care,LD u65 Residentl Care Placemnt,LD Comm-Residential-Surrey Oak,W2KT55,Third Party Payments          ,Private Contractors           ,EH01,MISCELLANEOUS AGENCY SERVICES           ,1635.53,11/07/2015,REV,SURREY & BORDERS PARTNERSHIP  
744,Adult Social Care,LD u65 Residentl Care Placemnt,LD Comm-Residential-Surrey Oak,W2KT55,Third Party Payments          ,Private Contractors           ,EH01,MISCELLANEOUS AGENCY SERVICES           ,2862.18,11/07/2015,REV,SURREY & BORDERS PARTNERSHIP  
745,Adult Social Care,LD u65 Residentl Care Placemnt,LD Comm-Residential-Surrey Oak,W2KT55,Third Party Payments          ,Private Contractors           ,EH01,MISCELLANEOUS AGENCY SERVICES           ,2862.18,11/07/2015,REV,SURREY & BORDERS PARTNERSHIP  
746,Adult Social Care,LD u65 Residentl Care Placemnt,LD Comm-Residential-Surrey Oak,W2KT55,Third Party Payments          ,Private Contractors           ,EH01,MISCELLANEOUS AGENCY SERVICES           ,2862.18,11/07/2015,REV,SURREY & BORDERS PARTNERSHIP  
747,Adult Social Care,LD u65 Residentl Care Placemnt,LD Comm-Residential-Surrey Oak,W2KT55,Third Party Payments          ,Private Contractors           ,EH01,MISCELLANEOUS AGENCY SERVICES           ,2862.18,11/07/2015,REV,SURREY & BORDERS PARTNERSHIP  
748,Adult Social Care,LD u65 Residentl Care Placemnt,LD Comm-Residential-Surrey Oak,W2KT55,Third Party Payments          ,Private Contractors           ,EH01,MISCELLANEOUS AGENCY SERVICES           ,-1635.53,11/07/2015,REV,SURREY & BORDERS PARTNERSHIP  
749,Childrens & Education Services,Leaving Care Services,"MASH, FR and VCT NRTPF                  ",W1CE39,Third Party Payments          ,Private Contractors           ,EH04,Accommodation Based Support             ,1950.00,20/07/2015,REV,M K ACCOMMODATION             
750,Childrens & Education Services,Leaving Care Services,"MASH, FR and VCT NRTPF                  ",W1CE39,Third Party Payments          ,Private Contractors           ,EH04,Accommodation Based Support             ,2015.00,20/07/2015,REV,M K ACCOMMODATION             
751,Childrens & Education Services,Leaving Care Services,"MASH, FR and VCT NRTPF                  ",W1CE39,Third Party Payments          ,Private Contractors           ,EH04,Accommodation Based Support             ,1000.00,20/07/2015,REV,REDACTED
752,Childrens & Education Services,Leaving Care Services,"MASH, FR and VCT NRTPF                  ",W1CE39,Third Party Payments          ,Private Contractors           ,EH01,Miscellaneous Contrct Services          ,2000.00,21/07/2015,REV,SAINSBURY'S BUSINESS DIRECT   
753,Adult Social Care,OP 65&Over Resi Care Placement,OP West - Residential Care Ext,W2LG55,Third Party Payments          ,Private Contractors           ,EH01,Miscellaneous Agency Services           ,524.22,02/06/2015,REV,CARTER HOUSE                  
754,Adult Social Care,OP 65&Over Resi Care Placement,OP West - Residential Care Ext,W2LG55,Third Party Payments          ,Private Contractors           ,EH01,Miscellaneous Agency Services           ,524.22,02/06/2015,REV,CARTER HOUSE                  
755,Adult Social Care,OP 65&Over Resi Care Placement,OP West - Residential Care Ext,W2LG55,Third Party Payments          ,Private Contractors           ,EH01,Miscellaneous Agency Services           ,524.22,02/06/2015,REV,CARTER HOUSE                  
756,Central Services,Land Charges,Land Charges,E10283,Supplies & Services           ,Expenses                      ,DH16,Compensation Payments                   ,152832.27,02/06/2015,REV,REDACTED
757,,,Disabled Facilities Grant DCLG          ,CE004RA,Other Capital Expenditure,,E1,Grants                                  ,8053.00,25/06/2015,CAP,JJ MANSION LTD                
758,Childrens & Education Services,Fostering Services,ART In-house Fostering,W1DE47,Supplies & Services           ,Services                      ,DF53,Task Based Fostering                    ,1619.55,10/07/2015,REV,REDACTED
759,Adult Social Care,OP 65&Over Resi Care Placement,OP West - Residential Care Ext,W2LG55,Third Party Payments          ,Private Contractors           ,EH01,Miscellaneous Agency Services           ,524.22,02/06/2015,REV,CARTER HOUSE                  
760,Adult Social Care,OP 65&Over Resi Care Placement,OP West - Residential Care Ext,W2LG55,Third Party Payments          ,Private Contractors           ,EH01,Miscellaneous Agency Services           ,524.22,02/06/2015,REV,CARTER HOUSE                  
761,Adult Social Care,OP 65&Over Resi Care Placement,OP West - Residential Care Ext,W2LG55,Third Party Payments          ,Private Contractors           ,EH01,Miscellaneous Agency Services           ,524.22,02/06/2015,REV,CARTER HOUSE                  
762,Adult Social Care,OP 65&Over Resi Care Placement,OP West - Residential Care Ext,W2LG55,Third Party Payments          ,Private Contractors           ,EH01,Miscellaneous Agency Services           ,524.22,02/06/2015,REV,CARTER HOUSE                  
763,Adult Social Care,OP 65&Over Resi Care Placement,OP West - Residential Care Ext,W2LG55,Third Party Payments          ,Private Contractors           ,EH01,Miscellaneous Agency Services           ,524.22,02/06/2015,REV,CARTER HOUSE                  
764,Adult Social Care,OP 65&Over Resi Care Placement,OP West - Residential Care Ext,W2LG55,Third Party Payments          ,Private Contractors           ,EH01,Miscellaneous Agency Services           ,524.22,02/06/2015,REV,CARTER HOUSE                  
765,Adult Social Care,OP 65&Over Resi Care Placement,OP West - Residential Care Ext,W2LG55,Third Party Payments          ,Private Contractors           ,EH01,Miscellaneous Agency Services           ,524.22,22/06/2015,REV,CARTER HOUSE                  
766,Adult Social Care,OP 65&Over Resi Care Placement,OP West - Residential Care Ext,W2LG55,Third Party Payments          ,Private Contractors           ,EH01,Miscellaneous Agency Services           ,524.22,22/06/2015,REV,CARTER HOUSE                  
767,Adult Social Care,OP 65&Over Resi Care Placement,OP West - Residential Care Ext,W2LG55,Third Party Payments          ,Private Contractors           ,EH01,Miscellaneous Agency Services           ,524.22,22/06/2015,REV,CARTER HOUSE                  
768,Adult Social Care,OP 65&Over Resi Care Placement,OP West - Residential Care Ext,W2LG55,Third Party Payments          ,Private Contractors           ,EH01,Miscellaneous Agency Services           ,524.22,22/06/2015,REV,CARTER HOUSE                  
769,Adult Social Care,OP 65&Over Resi Care Placement,OP West - Residential Care Ext,W2LG55,Third Party Payments          ,Private Contractors           ,EH01,Miscellaneous Agency Services           ,524.22,22/06/2015,REV,CARTER HOUSE                  
770,Adult Social Care,OP 65&Over Resi Care Placement,OP West - Residential Care Ext,W2LG55,Third Party Payments          ,Private Contractors           ,EH01,Miscellaneous Agency Services           ,524.22,22/06/2015,REV,CARTER HOUSE                  
771,Adult Social Care,OP 65&Over Resi Care Placement,OP West - Residential Care Ext,W2LG55,Third Party Payments          ,Private Contractors           ,EH01,Miscellaneous Agency Services           ,524.22,22/06/2015,REV,CARTER HOUSE                  
772,Adult Social Care,OP 65&Over Resi Care Placement,OP West - Residential Care Ext,W2LG55,Third Party Payments          ,Private Contractors           ,EH01,Miscellaneous Agency Services           ,524.22,22/06/2015,REV,CARTER HOUSE                  
773,Adult Social Care,OP 65&Over Resi Care Placement,OP West - Residential Care Ext,W2LG55,Third Party Payments          ,Private Contractors           ,EH01,Miscellaneous Agency Services           ,524.22,22/06/2015,REV,WOODLANDS                     
774,Adult Social Care,OP 65&Over Resi Care Placement,OP West - Residential Care Ext,W2LG55,Third Party Payments          ,Private Contractors           ,EH01,Miscellaneous Agency Services           ,524.22,22/06/2015,REV,WOODLANDS                     
775,Adult Social Care,OP 65&Over Resi Care Placement,OP West - Residential Care Ext,W2LG55,Third Party Payments          ,Private Contractors           ,EH01,Miscellaneous Agency Services           ,524.22,22/06/2015,REV,WOODLANDS                     
776,Adult Social Care,OP 65&Over Resi Care Placement,OP West - Residential Care Ext,W2LG55,Third Party Payments          ,Private Contractors           ,EH01,Miscellaneous Agency Services           ,524.22,22/06/2015,REV,WOODLANDS                     
777,Adult Social Care,OP 65&Over Resi Care Placement,OP West - Residential Care Ext,W2LG55,Third Party Payments          ,Private Contractors           ,EH01,Miscellaneous Agency Services           ,524.22,22/06/2015,REV,WOODLANDS                     
778,Adult Social Care,OP 65&Over Resi Care Placement,OP West - Residential Care Ext,W2LG55,Third Party Payments          ,Private Contractors           ,EH01,Miscellaneous Agency Services           ,524.22,22/06/2015,REV,WOODLANDS                     
779,Adult Social Care,OP 65&Over Resi Care Placement,OP West - Residential Care Ext,W2LG55,Third Party Payments          ,Private Contractors           ,EH01,Miscellaneous Agency Services           ,524.22,22/06/2015,REV,WOODLANDS                     
780,Adult Social Care,OP 65&Over Resi Care Placement,OP West - Residential Care Ext,W2LG55,Third Party Payments          ,Private Contractors           ,EH01,Miscellaneous Agency Services           ,524.22,22/06/2015,REV,WOODLANDS                     
781,Adult Social Care,OP 65&Over Resi Care Placement,OP West - Residential Care Ext,W2LG55,Third Party Payments          ,Private Contractors           ,EH01,Miscellaneous Agency Services           ,524.22,22/06/2015,REV,WOODLANDS                     
782,Adult Social Care,OP 65&Over Resi Care Placement,OP West - Residential Care Ext,W2LG55,Third Party Payments          ,Private Contractors           ,EH01,Miscellaneous Agency Services           ,524.22,22/06/2015,REV,WOODLANDS                     
783,Adult Social Care,OP 65&Over Resi Care Placement,OP West - Residential Care Ext,W2LG55,Third Party Payments          ,Private Contractors           ,EH01,Miscellaneous Agency Services           ,524.22,22/06/2015,REV,WOODLANDS                     
784,Adult Social Care,OP 65&Over Resi Care Placement,OP West - Residential Care Ext,W2LG55,Third Party Payments          ,Private Contractors           ,EH01,Miscellaneous Agency Services           ,524.22,22/06/2015,REV,WOODLANDS                     
785,Adult Social Care,OP 65&Over Resi Care Placement,OP West - Residential Care Ext,W2LG55,Third Party Payments          ,Private Contractors           ,EH01,Miscellaneous Agency Services           ,524.22,22/06/2015,REV,WOODLANDS                     
786,Adult Social Care,OP 65&Over Resi Care Placement,OP West - Residential Care Ext,W2LG55,Third Party Payments          ,Private Contractors           ,EH01,Miscellaneous Agency Services           ,524.22,22/06/2015,REV,WOODLANDS                     
787,Adult Social Care,OP 65&Over Resi Care Placement,OP West - Residential Care Ext,W2LG55,Third Party Payments          ,Private Contractors           ,EH01,Miscellaneous Agency Services           ,524.22,22/06/2015,REV,WOODLANDS                     
788,Adult Social Care,OP 65&Over Resi Care Placement,OP West - Residential Care Ext,W2LG55,Third Party Payments          ,Private Contractors           ,EH01,Miscellaneous Agency Services           ,524.22,22/06/2015,REV,WOODLANDS                     
789,Adult Social Care,OP 65&Over Resi Care Placement,OP West - Residential Care Ext,W2LG55,Third Party Payments          ,Private Contractors           ,EH01,Miscellaneous Agency Services           ,524.22,22/06/2015,REV,WOODLANDS                     
790,Adult Social Care,OP 65&Over Resi Care Placement,OP West - Residential Care Ext,W2LG55,Third Party Payments          ,Private Contractors           ,EH01,Miscellaneous Agency Services           ,524.22,22/06/2015,REV,WOODLANDS                     
791,Adult Social Care,OP 65&Over Resi Care Placement,OP West - Residential Care Ext,W2LG55,Third Party Payments          ,Private Contractors           ,EH01,Miscellaneous Agency Services           ,524.22,22/06/2015,REV,WOODLANDS                     
792,Adult Social Care,OP 65&Over Resi Care Placement,OP West - Residential Care Ext,W2LG55,Third Party Payments          ,Private Contractors           ,EH01,Miscellaneous Agency Services           ,524.22,22/06/2015,REV,WOODLANDS                     
793,Adult Social Care,OP 65&Over Resi Care Placement,OP West - Residential Care Ext,W2LG55,Third Party Payments          ,Private Contractors           ,EH01,Miscellaneous Agency Services           ,524.22,22/06/2015,REV,WOODLANDS                     
794,Adult Social Care,OP 65&Over Resi Care Placement,OP West - Residential Care Ext,W2LG55,Third Party Payments          ,Private Contractors           ,EH01,Miscellaneous Agency Services           ,524.22,22/06/2015,REV,WOODLANDS                     
795,Adult Social Care,OP 65&Over Resi Care Placement,OP West - Residential Care Ext,W2LG55,Third Party Payments          ,Private Contractors           ,EH01,Miscellaneous Agency Services           ,524.22,22/06/2015,REV,WOODLANDS                     
796,Adult Social Care,OP 65&Over Resi Care Placement,OP West - Residential Care Ext,W2LG55,Third Party Payments          ,Private Contractors           ,EH01,Miscellaneous Agency Services           ,524.22,22/06/2015,REV,WOODLANDS                     
